Body Name,Body,Service Label,Service Code,CIPFA Detailed Expenditure Type,CIPFA Detailed Expenditure Code,Date,Transaction Number,Net Amount,Supplier Name,,,,,,,,,,,Mar
Nottinghamshire County Council,1111/1001,Surplus or Deficit from Trading Undertak,TRADING,Premises Related,BJA,05/03/2014,12-10001,520.04,Biffa Waste Services Ltd,,,,,,,,,,,
Nottinghamshire County Council,1111/1001,Surplus or Deficit from Trading Undertak,TRADING,Supplies & Services,DDA,04/03/2014,12-10001,861.5,Hamelin Paperbrands Ltd,,,,,,,,,,,
Nottinghamshire County Council,1111/1001,Surplus or Deficit from Trading Undertak,TRADING,Supplies & Services,DDA,04/03/2014,12-10001,1365.84,Hamelin Paperbrands Ltd,,,,,,,,,,,
Nottinghamshire County Council,1111/1001,Surplus or Deficit from Trading Undertak,TRADING,Supplies & Services,DDA,10/03/2014,12-10001,1959.44,Hamelin Paperbrands Ltd,,,,,,,,,,,
Nottinghamshire County Council,1111/1001,Surplus or Deficit from Trading Undertak,TRADING,Supplies & Services,DDA,18/03/2014,12-10001,10834.47,Hamelin Paperbrands Ltd,,,,,,,,,,,
Nottinghamshire County Council,1111/1001,Surplus or Deficit from Trading Undertak,TRADING,Supplies & Services,DDA,19/03/2014,12-10001,3497.15,Hamelin Paperbrands Ltd,,,,,,,,,,,
Nottinghamshire County Council,1111/1001,Surplus or Deficit from Trading Undertak,TRADING,Supplies & Services,DDA,19/03/2014,12-10001,16822.74,Hamelin Paperbrands Ltd,,,,,,,,,,,
Nottinghamshire County Council,1111/1001,Surplus or Deficit from Trading Undertak,TRADING,Supplies & Services,DDA,06/03/2014,12-10001,663,Plastoreg Smidt Gmbh,,,,,,,,,,,
Nottinghamshire County Council,1111/1001,Surplus or Deficit from Trading Undertak,TRADING,Supplies & Services,DDA,10/03/2014,12-10001,502.08,Plastoreg Smidt Gmbh,,,,,,,,,,,
Nottinghamshire County Council,1111/1001,Surplus or Deficit from Trading Undertak,TRADING,Supplies & Services,DDA,20/03/2014,12-10001,506.88,Plastoreg Smidt Gmbh,,,,,,,,,,,
Nottinghamshire County Council,1111/1001,Surplus or Deficit from Trading Undertak,TRADING,Supplies & Services,DDA,04/03/2014,12-10001,2425.96,Henkel Loctite Adhesives Ltd,,,,,,,,,,,
Nottinghamshire County Council,1111/1001,Surplus or Deficit from Trading Undertak,TRADING,Supplies & Services,DDA,06/03/2014,12-10001,2327.4,Henkel Loctite Adhesives Ltd,,,,,,,,,,,
Nottinghamshire County Council,1111/1001,Surplus or Deficit from Trading Undertak,TRADING,Supplies & Services,DDA,10/03/2014,12-10001,643.8,Henkel Loctite Adhesives Ltd,,,,,,,,,,,
Nottinghamshire County Council,1111/1001,Surplus or Deficit from Trading Undertak,TRADING,Supplies & Services,DDA,19/03/2014,12-10001,1958.52,Henkel Loctite Adhesives Ltd,,,,,,,,,,,
Nottinghamshire County Council,1111/1001,Surplus or Deficit from Trading Undertak,TRADING,Supplies & Services,DAA,20/03/2014,12-10001,531.2,Flip File Ltd,,,,,,,,,,,
Nottinghamshire County Council,1111/1001,Surplus or Deficit from Trading Undertak,TRADING,Supplies & Services,DAA,06/03/2014,12-10001,3042.3,Vivid Laminating Technologies Ltd,,,,,,,,,,,
Nottinghamshire County Council,1111/1001,Surplus or Deficit from Trading Undertak,TRADING,Supplies & Services,DAA,10/03/2014,12-10001,505.86,Supplies Team Ltd,,,,,,,,,,,
Nottinghamshire County Council,1111/1001,Surplus or Deficit from Trading Undertak,TRADING,Supplies & Services,DAA,18/03/2014,12-10001,674.1,Supplies Team Ltd,,,,,,,,,,,
Nottinghamshire County Council,1111/1001,Surplus or Deficit from Trading Undertak,TRADING,Supplies & Services,DAA,10/03/2014,12-10001,1320,Premier Paper Group Ltd,,,,,,,,,,,
Nottinghamshire County Council,1111/1001,Surplus or Deficit from Trading Undertak,TRADING,Supplies & Services,DAA,10/03/2014,12-10001,1320,Premier Paper Group Ltd,,,,,,,,,,,
Nottinghamshire County Council,1111/1001,Surplus or Deficit from Trading Undertak,TRADING,Supplies & Services,DAA,25/03/2014,12-10001,1320,Premier Paper Group Ltd,,,,,,,,,,,
Nottinghamshire County Council,1111/1001,Surplus or Deficit from Trading Undertak,TRADING,Supplies & Services,DAA,04/03/2014,12-10001,602.4,Heritage Envelopes Ltd,,,,,,,,,,,
Nottinghamshire County Council,1111/1001,Surplus or Deficit from Trading Undertak,TRADING,Supplies & Services,DAA,04/03/2014,12-10001,658.71,Heritage Envelopes Ltd,,,,,,,,,,,
Nottinghamshire County Council,1111/1001,Surplus or Deficit from Trading Undertak,TRADING,Supplies & Services,DAA,06/03/2014,12-10001,590.52,Heritage Envelopes Ltd,,,,,,,,,,,
Nottinghamshire County Council,1111/1001,Surplus or Deficit from Trading Undertak,TRADING,Supplies & Services,DAA,04/03/2014,12-10001,892,Antalis Document Supplies,,,,,,,,,,,
Nottinghamshire County Council,1111/1001,Surplus or Deficit from Trading Undertak,TRADING,Supplies & Services,DAA,19/03/2014,12-10001,892,Antalis Document Supplies,,,,,,,,,,,
Nottinghamshire County Council,1111/1001,Surplus or Deficit from Trading Undertak,TRADING,Supplies & Services,DAA,25/03/2014,12-10001,16632,Antalis Document Supplies,,,,,,,,,,,
Nottinghamshire County Council,1111/1001,Surplus or Deficit from Trading Undertak,TRADING,Supplies & Services,DAA,10/03/2014,12-10001,948.6,Talk Paper,,,,,,,,,,,
Nottinghamshire County Council,1111/1001,Surplus or Deficit from Trading Undertak,TRADING,Supplies & Services,DAA,19/03/2014,12-10001,1643.95,Talk Paper,,,,,,,,,,,
Nottinghamshire County Council,1111/1001,Surplus or Deficit from Trading Undertak,TRADING,Supplies & Services,DAA,06/03/2014,12-10001,1339.5,Coomber Electronic Equipment Ltd.,,,,,,,,,,,
Nottinghamshire County Council,1111/1001,Surplus or Deficit from Trading Undertak,TRADING,Supplies & Services,DAA,25/03/2014,12-10001,726,Amp Electrical,,,,,,,,,,,
Nottinghamshire County Council,1111/1001,Surplus or Deficit from Trading Undertak,TRADING,Supplies & Services,DAA,04/03/2014,12-10001,599,Bretford Manufacturing Ltd,,,,,,,,,,,
Nottinghamshire County Council,1111/1001,Surplus or Deficit from Trading Undertak,TRADING,Premises Related,BAA,06/03/2014,12-10001,1771.24,Flexiform Business Furniture,,,,,,,,,,,
Nottinghamshire County Council,1111/1001,Surplus or Deficit from Trading Undertak,TRADING,Premises Related,BAA,04/03/2014,12-10001,567.65,Avery Uk,,,,,,,,,,,
Nottinghamshire County Council,1111/1001,Surplus or Deficit from Trading Undertak,TRADING,Premises Related,BAA,06/03/2014,12-10001,503.85,Avery Uk,,,,,,,,,,,
Nottinghamshire County Council,1111/1001,Surplus or Deficit from Trading Undertak,TRADING,Premises Related,BAA,25/03/2014,12-10001,523.05,Avery Uk,,,,,,,,,,,
Nottinghamshire County Council,1111/1001,Surplus or Deficit from Trading Undertak,TRADING,Premises Related,BJA,19/03/2014,12-10001,920.64,Polystar Plastics Ltd,,,,,,,,,,,
Nottinghamshire County Council,1111/1001,Surplus or Deficit from Trading Undertak,TRADING,Premises Related,BJA,19/03/2014,12-10001,1398.54,Polystar Plastics Ltd,,,,,,,,,,,
Nottinghamshire County Council,1111/1001,Surplus or Deficit from Trading Undertak,TRADING,Premises Related,BJA,19/03/2014,12-10001,725.76,Polystar Plastics Ltd,,,,,,,,,,,
Nottinghamshire County Council,1111/1001,Surplus or Deficit from Trading Undertak,TRADING,Premises Related,BJA,10/03/2014,12-10001,675.05,Soho Consulting Ltd,,,,,,,,,,,
Nottinghamshire County Council,1111/1001,Surplus or Deficit from Trading Undertak,TRADING,Premises Related,BJA,10/03/2014,12-10001,1521.58,Kimberley Clark European Services Ltd,,,,,,,,,,,
Nottinghamshire County Council,1111/1001,Surplus or Deficit from Trading Undertak,TRADING,Premises Related,BJA,10/03/2014,12-10001,1495.8,Kimberley Clark European Services Ltd,,,,,,,,,,,
Nottinghamshire County Council,1111/1001,Surplus or Deficit from Trading Undertak,TRADING,Premises Related,BJA,13/03/2014,12-10001,1331.52,Kimberley Clark European Services Ltd,,,,,,,,,,,
Nottinghamshire County Council,1111/1001,Surplus or Deficit from Trading Undertak,TRADING,Premises Related,BJA,26/03/2014,12-10001,2287.48,Kimberley Clark European Services Ltd,,,,,,,,,,,
Nottinghamshire County Council,1111/1001,Surplus or Deficit from Trading Undertak,TRADING,Premises Related,BJA,06/03/2014,12-10001,840,Macfarlane Group (Uk) Ltd,,,,,,,,,,,
Nottinghamshire County Council,1111/1001,Surplus or Deficit from Trading Undertak,TRADING,Premises Related,BJA,13/03/2014,12-10001,650.6,Cromwell Polythene Ltd,,,,,,,,,,,
Nottinghamshire County Council,1111/1001,Surplus or Deficit from Trading Undertak,TRADING,Premises Related,BJA,10/03/2014,12-10001,711.5,Midland Wiper Manufacturing Co Ltd,,,,,,,,,,,
Nottinghamshire County Council,1111/1001,Surplus or Deficit from Trading Undertak,TRADING,Premises Related,BJA,10/03/2014,12-10001,629.8,Evans Vanodine International Ltd,,,,,,,,,,,
Nottinghamshire County Council,1111/1001,Surplus or Deficit from Trading Undertak,TRADING,Premises Related,BJA,10/03/2014,12-10001,1826.75,Johnson Diversey,,,,,,,,,,,
Nottinghamshire County Council,1111/1001,Surplus or Deficit from Trading Undertak,TRADING,Premises Related,BJA,11/03/2014,12-10001,1536.63,Johnson Diversey,,,,,,,,,,,
Nottinghamshire County Council,1111/1001,Surplus or Deficit from Trading Undertak,TRADING,Premises Related,BJA,25/03/2014,12-10001,702.15,Johnson Diversey,,,,,,,,,,,
Nottinghamshire County Council,1111/1001,Surplus or Deficit from Trading Undertak,TRADING,Premises Related,BJA,18/03/2014,12-10001,2282,Premiere Products,,,,,,,,,,,
Nottinghamshire County Council,1111/1001,Surplus or Deficit from Trading Undertak,TRADING,Premises Related,BJA,19/03/2014,12-10001,2913.8,Premiere Products,,,,,,,,,,,
Nottinghamshire County Council,1111/1001,Surplus or Deficit from Trading Undertak,TRADING,Premises Related,BJA,20/03/2014,12-10001,3311.7,Premiere Products,,,,,,,,,,,
Nottinghamshire County Council,1111/1001,Surplus or Deficit from Trading Undertak,TRADING,Premises Related,BJA,26/03/2014,12-10001,636.56,Premiere Products,,,,,,,,,,,
Nottinghamshire County Council,1111/1001,Surplus or Deficit from Trading Undertak,TRADING,Premises Related,BJA,26/03/2014,12-10001,867.37,Premiere Products,,,,,,,,,,,
Nottinghamshire County Council,1111/1001,Surplus or Deficit from Trading Undertak,TRADING,Premises Related,BJA,06/03/2014,12-10001,1204.66,Numatic International Ltd,,,,,,,,,,,
Nottinghamshire County Council,1111/1001,Surplus or Deficit from Trading Undertak,TRADING,Premises Related,BJA,06/03/2014,12-10001,709.5,Candor Services,,,,,,,,,,,
Nottinghamshire County Council,1111/1001,Surplus or Deficit from Trading Undertak,TRADING,Premises Related,BJA,06/03/2014,12-10001,829,Candor Services,,,,,,,,,,,
Nottinghamshire County Council,1111/1001,Surplus or Deficit from Trading Undertak,TRADING,Premises Related,BJA,10/03/2014,12-10001,678,Candor Services,,,,,,,,,,,
Nottinghamshire County Council,1111/1001,Surplus or Deficit from Trading Undertak,TRADING,Premises Related,BJA,25/03/2014,12-10001,759.5,Candor Services,,,,,,,,,,,
Nottinghamshire County Council,1111/1001,Surplus or Deficit from Trading Undertak,TRADING,Supplies & Services,DAA,04/03/2014,12-10001,1112.75,E.T.I. Ltd,,,,,,,,,,,
Nottinghamshire County Council,1111/1001,Surplus or Deficit from Trading Undertak,TRADING,Supplies & Services,DAA,04/03/2014,12-10001,1582.6,Bunzl Catering Supplies,,,,,,,,,,,
Nottinghamshire County Council,1111/1001,Surplus or Deficit from Trading Undertak,TRADING,Supplies & Services,DAA,19/03/2014,12-10001,568.53,W V Howe (Hardware) Ltd,,,,,,,,,,,
Nottinghamshire County Council,1111/1001,Surplus or Deficit from Trading Undertak,TRADING,Supplies & Services,DAA,19/03/2014,12-10001,850.03,W V Howe (Hardware) Ltd,,,,,,,,,,,
Nottinghamshire County Council,1111/1001,Surplus or Deficit from Trading Undertak,TRADING,Supplies & Services,DAA,10/03/2014,12-10001,543.8,Catering Supplies (Wakefield) Ltd,,,,,,,,,,,
Nottinghamshire County Council,1111/1001,Surplus or Deficit from Trading Undertak,TRADING,Supplies & Services,DAA,10/03/2014,12-10001,585,Catering Supplies (Wakefield) Ltd,,,,,,,,,,,
Nottinghamshire County Council,1111/1001,Surplus or Deficit from Trading Undertak,TRADING,Supplies & Services,DAA,25/03/2014,12-10001,674.6,Catering Supplies (Wakefield) Ltd,,,,,,,,,,,
Nottinghamshire County Council,1111/1001,Surplus or Deficit from Trading Undertak,TRADING,Supplies & Services,DAA,10/03/2014,12-10001,8989.47,Sca Hygiene,,,,,,,,,,,
Nottinghamshire County Council,1111/1001,Surplus or Deficit from Trading Undertak,TRADING,Supplies & Services,DAA,18/03/2014,12-10001,2052.84,Sca Hygiene,,,,,,,,,,,
Nottinghamshire County Council,1111/1001,Surplus or Deficit from Trading Undertak,TRADING,Supplies & Services,DAA,19/03/2014,12-10001,2876.11,Sca Hygiene,,,,,,,,,,,
Nottinghamshire County Council,1111/1001,Surplus or Deficit from Trading Undertak,TRADING,Supplies & Services,DAA,20/03/2014,12-10001,1419.47,Sca Hygiene,,,,,,,,,,,
Nottinghamshire County Council,1111/1001,Surplus or Deficit from Trading Undertak,TRADING,Supplies & Services,DAA,20/03/2014,12-10001,12582.18,Sca Hygiene,,,,,,,,,,,
Nottinghamshire County Council,1111/1001,Surplus or Deficit from Trading Undertak,TRADING,Supplies & Services,DAA,18/03/2014,12-10001,660,Kay-Metzeler Ltd,,,,,,,,,,,
Nottinghamshire County Council,1111/1001,Surplus or Deficit from Trading Undertak,TRADING,Supplies & Services,DAA,25/03/2014,12-10001,528,Kay-Metzeler Ltd,,,,,,,,,,,
Nottinghamshire County Council,1111/1001,Surplus or Deficit from Trading Undertak,TRADING,Supplies & Services,DBA,10/03/2014,12-10001,747.22,North West Tea Service Ltd,,,,,,,,,,,
Nottinghamshire County Council,1111/1001,Surplus or Deficit from Trading Undertak,TRADING,Supplies & Services,DBA,13/03/2014,12-10001,598.78,North West Tea Service Ltd,,,,,,,,,,,
Nottinghamshire County Council,1111/1001,Surplus or Deficit from Trading Undertak,TRADING,Supplies & Services,DAA,19/03/2014,12-10001,599.48,Dualit Ltd,,,,,,,,,,,
Nottinghamshire County Council,1111/1001,Surplus or Deficit from Trading Undertak,TRADING,Supplies & Services,DAA,21/03/2014,12-10001,848.68,Dualit Ltd,,,,,,,,,,,
Nottinghamshire County Council,1111/1001,Surplus or Deficit from Trading Undertak,TRADING,Supplies & Services,DCA,10/03/2014,12-10001,876,Freudenberg Household Products Lp,,,,,,,,,,,
Nottinghamshire County Council,1111/1001,Surplus or Deficit from Trading Undertak,TRADING,Supplies & Services,DCA,20/03/2014,12-10001,775.2,Freudenberg Household Products Lp,,,,,,,,,,,
Nottinghamshire County Council,1111/1001,Surplus or Deficit from Trading Undertak,TRADING,Supplies & Services,DCA,10/03/2014,12-10001,688.94,Shermond,,,,,,,,,,,
Nottinghamshire County Council,1111/1001,Surplus or Deficit from Trading Undertak,TRADING,Supplies & Services,DCA,10/03/2014,12-10001,1484.47,Shermond,,,,,,,,,,,
Nottinghamshire County Council,1111/1001,Surplus or Deficit from Trading Undertak,TRADING,Supplies & Services,DCA,10/03/2014,12-10001,515.87,Shermond,,,,,,,,,,,
Nottinghamshire County Council,1111/1001,Surplus or Deficit from Trading Undertak,TRADING,Supplies & Services,DCA,11/03/2014,12-10001,986.51,Shermond,,,,,,,,,,,
Nottinghamshire County Council,1111/1001,Surplus or Deficit from Trading Undertak,TRADING,Supplies & Services,DCA,13/03/2014,12-10001,772.9,Shermond,,,,,,,,,,,
Nottinghamshire County Council,1111/1001,Surplus or Deficit from Trading Undertak,TRADING,Supplies & Services,DCA,18/03/2014,12-10001,756.23,Shermond,,,,,,,,,,,
Nottinghamshire County Council,1111/1001,Surplus or Deficit from Trading Undertak,TRADING,Supplies & Services,DCA,19/03/2014,12-10001,1452.6,Shermond,,,,,,,,,,,
Nottinghamshire County Council,1111/1001,Surplus or Deficit from Trading Undertak,TRADING,Supplies & Services,DCA,25/03/2014,12-10001,1294.65,Shermond,,,,,,,,,,,
Nottinghamshire County Council,1111/1001,Surplus or Deficit from Trading Undertak,TRADING,Supplies & Services,DCA,21/03/2014,12-10001,1111.36,Arco East Midlands,,,,,,,,,,,
Nottinghamshire County Council,1111/1001,Surplus or Deficit from Trading Undertak,TRADING,Supplies & Services,DKA,26/03/2014,12-10001,613.5,Gailarde Ltd,,,,,,,,,,,
Nottinghamshire County Council,1111/1001,Surplus or Deficit from Trading Undertak,TRADING,Supplies & Services,DKA,04/03/2014,12-10001,961.2,Bunzl Cleaning & Hygiene Supplies,,,,,,,,,,,
Nottinghamshire County Council,1111/1001,Surplus or Deficit from Trading Undertak,TRADING,Supplies & Services,DKA,04/03/2014,12-10001,547.8,Bunzl Cleaning & Hygiene Supplies,,,,,,,,,,,
Nottinghamshire County Council,1111/1001,Surplus or Deficit from Trading Undertak,TRADING,Supplies & Services,DKA,06/03/2014,12-10001,752.44,Bunzl Cleaning & Hygiene Supplies,,,,,,,,,,,
Nottinghamshire County Council,1111/1001,Surplus or Deficit from Trading Undertak,TRADING,Supplies & Services,DKA,11/03/2014,12-10001,1075.5,Bunzl Cleaning & Hygiene Supplies,,,,,,,,,,,
Nottinghamshire County Council,1111/1001,Surplus or Deficit from Trading Undertak,TRADING,Supplies & Services,DKA,11/03/2014,12-10001,1024.36,Bunzl Cleaning & Hygiene Supplies,,,,,,,,,,,
Nottinghamshire County Council,1111/1001,Surplus or Deficit from Trading Undertak,TRADING,Supplies & Services,DKA,11/03/2014,12-10001,510.8,Bunzl Cleaning & Hygiene Supplies,,,,,,,,,,,
Nottinghamshire County Council,1111/1001,Surplus or Deficit from Trading Undertak,TRADING,Supplies & Services,DKA,20/03/2014,12-10001,1021.6,Bunzl Cleaning & Hygiene Supplies,,,,,,,,,,,
Nottinghamshire County Council,1111/1001,Surplus or Deficit from Trading Undertak,TRADING,Supplies & Services,DKA,20/03/2014,12-10001,510.8,Bunzl Cleaning & Hygiene Supplies,,,,,,,,,,,
Nottinghamshire County Council,1111/1001,Surplus or Deficit from Trading Undertak,TRADING,Supplies & Services,DKA,25/03/2014,12-10001,541.36,Bunzl Cleaning & Hygiene Supplies,,,,,,,,,,,
Nottinghamshire County Council,1111/1001,Surplus or Deficit from Trading Undertak,TRADING,Supplies & Services,DAA,04/03/2014,12-10001,876.65,R Scott & Sons Ltd,,,,,,,,,,,
Nottinghamshire County Council,1111/1001,Surplus or Deficit from Trading Undertak,TRADING,Supplies & Services,DAA,11/03/2014,12-10001,594.7,R Scott & Sons Ltd,,,,,,,,,,,
Nottinghamshire County Council,1111/1001,Surplus or Deficit from Trading Undertak,TRADING,Supplies & Services,DAA,19/03/2014,12-10001,989.36,R Scott & Sons Ltd,,,,,,,,,,,
Nottinghamshire County Council,1111/1001,Surplus or Deficit from Trading Undertak,TRADING,Supplies & Services,DAA,21/03/2014,12-10001,1954.5,R Scott & Sons Ltd,,,,,,,,,,,
Nottinghamshire County Council,1111/1001,Surplus or Deficit from Trading Undertak,TRADING,Supplies & Services,DAA,25/03/2014,12-10001,2005.1,R Scott & Sons Ltd,,,,,,,,,,,
Nottinghamshire County Council,1111/1001,Surplus or Deficit from Trading Undertak,TRADING,Supplies & Services,DAA,04/03/2014,12-10001,580,Office Innovations,,,,,,,,,,,
Nottinghamshire County Council,1111/1001,Surplus or Deficit from Trading Undertak,TRADING,Supplies & Services,DAA,20/03/2014,12-10001,628,Office Innovations,,,,,,,,,,,
Nottinghamshire County Council,1111/1001,Surplus or Deficit from Trading Undertak,TRADING,Supplies & Services,DAA,06/03/2014,12-10001,867,Principal Furniture,,,,,,,,,,,
Nottinghamshire County Council,1111/1001,Surplus or Deficit from Trading Undertak,TRADING,Supplies & Services,DAA,25/03/2014,12-10001,5168.8,Principal Furniture,,,,,,,,,,,
Nottinghamshire County Council,1111/1001,Surplus or Deficit from Trading Undertak,TRADING,Supplies & Services,DAA,04/03/2014,12-10001,4374.5,Insight,,,,,,,,,,,
Nottinghamshire County Council,1111/1001,Surplus or Deficit from Trading Undertak,TRADING,Supplies & Services,DAA,04/03/2014,12-10001,548.55,Addis Housewares Ltd,,,,,,,,,,,
Nottinghamshire County Council,1111/1001,Surplus or Deficit from Trading Undertak,TRADING,Supplies & Services,DAA,10/03/2014,12-10001,521.52,Addis Housewares Ltd,,,,,,,,,,,
Nottinghamshire County Council,1111/1001,Surplus or Deficit from Trading Undertak,TRADING,Supplies & Services,DAA,25/03/2014,12-10001,1827.42,Niels Larsen Ltd,,,,,,,,,,,
Nottinghamshire County Council,1111/1001,Surplus or Deficit from Trading Undertak,TRADING,Supplies & Services,DAA,04/03/2014,12-10001,1133.1,Combined Office Interiors Ltd,,,,,,,,,,,
Nottinghamshire County Council,1111/1001,Surplus or Deficit from Trading Undertak,TRADING,Supplies & Services,DAA,19/03/2014,12-10001,1080,Combined Office Interiors Ltd,,,,,,,,,,,
Nottinghamshire County Council,1111/1001,Surplus or Deficit from Trading Undertak,TRADING,Supplies & Services,DAA,11/03/2014,12-10001,580,Pineapple Contracts,,,,,,,,,,,
Nottinghamshire County Council,1111/1001,Surplus or Deficit from Trading Undertak,TRADING,Supplies & Services,DAA,11/03/2014,12-10001,864.9,Titan Furniture (Uk) Ltd,,,,,,,,,,,
Nottinghamshire County Council,1111/1001,Surplus or Deficit from Trading Undertak,TRADING,Supplies & Services,DAA,06/03/2014,12-10001,1050,Mardel Office Interiors,,,,,,,,,,,
Nottinghamshire County Council,1111/1001,Surplus or Deficit from Trading Undertak,TRADING,Supplies & Services,DAA,04/03/2014,12-10001,1195,Hille Education Products Ltd,,,,,,,,,,,
Nottinghamshire County Council,1111/1001,Surplus or Deficit from Trading Undertak,TRADING,Supplies & Services,DAA,04/03/2014,12-10001,650.46,Hille Education Products Ltd,,,,,,,,,,,
Nottinghamshire County Council,1111/1001,Surplus or Deficit from Trading Undertak,TRADING,Supplies & Services,DAA,18/03/2014,12-10001,717,Hille Education Products Ltd,,,,,,,,,,,
Nottinghamshire County Council,1111/1001,Surplus or Deficit from Trading Undertak,TRADING,Supplies & Services,DAA,11/03/2014,12-10001,572,R2 Solutions Ltd,,,,,,,,,,,
Nottinghamshire County Council,1111/1001,Surplus or Deficit from Trading Undertak,TRADING,Supplies & Services,DAA,10/03/2014,12-10001,1292.4,Dale Office Interiors,,,,,,,,,,,
Nottinghamshire County Council,1111/1001,Surplus or Deficit from Trading Undertak,TRADING,Supplies & Services,DAA,20/03/2014,12-10001,1033.92,Dale Office Interiors,,,,,,,,,,,
Nottinghamshire County Council,1111/1001,Surplus or Deficit from Trading Undertak,TRADING,Supplies & Services,DAA,11/03/2014,12-10001,684,Palatine Products,,,,,,,,,,,
Nottinghamshire County Council,1111/1001,Surplus or Deficit from Trading Undertak,TRADING,Supplies & Services,DAA,21/03/2014,12-10001,714,Denis Rawlins Ltd,,,,,,,,,,,
Nottinghamshire County Council,1111/1001,Surplus or Deficit from Trading Undertak,TRADING,Supplies & Services,DAA,21/03/2014,12-10001,530,Denis Rawlins Ltd,,,,,,,,,,,
Nottinghamshire County Council,1111/1001,Surplus or Deficit from Trading Undertak,TRADING,Supplies & Services,DAA,26/03/2014,12-10001,1633.6,Denis Rawlins Ltd,,,,,,,,,,,
Nottinghamshire County Council,1111/1001,Surplus or Deficit from Trading Undertak,TRADING,Supplies & Services,DAA,10/03/2014,12-10001,1140.82,Gopak Ltd,,,,,,,,,,,
Nottinghamshire County Council,1111/1001,Surplus or Deficit from Trading Undertak,TRADING,Supplies & Services,DAA,11/03/2014,12-10001,572.76,Gopak Ltd,,,,,,,,,,,
Nottinghamshire County Council,1111/1001,Surplus or Deficit from Trading Undertak,TRADING,Supplies & Services,DAA,06/03/2014,12-10001,704.44,Gratnells Ltd,,,,,,,,,,,
Nottinghamshire County Council,1111/1001,Surplus or Deficit from Trading Undertak,TRADING,Supplies & Services,DAA,10/03/2014,12-10001,660,Lockhart Catering Eqipment Ltd,,,,,,,,,,,
Nottinghamshire County Council,1111/1001,Surplus or Deficit from Trading Undertak,TRADING,Supplies & Services,DAA,11/03/2014,12-10001,715.09,Office Depot Uk,,,,,,,,,,,
Nottinghamshire County Council,1111/1001,Surplus or Deficit from Trading Undertak,TRADING,Supplies & Services,DAA,10/03/2014,12-10001,829.2,Victoria Grant Ltd,,,,,,,,,,,
Nottinghamshire County Council,1111/1001,Surplus or Deficit from Trading Undertak,TRADING,Supplies & Services,DAA,04/03/2014,12-10001,659.9,Grosvenor House Papers Ltd,,,,,,,,,,,
Nottinghamshire County Council,1111/1001,Surplus or Deficit from Trading Undertak,TRADING,Supplies & Services,DAA,10/03/2014,12-10001,1236.58,Grosvenor House Papers Ltd,,,,,,,,,,,
Nottinghamshire County Council,1111/1001,Surplus or Deficit from Trading Undertak,TRADING,Supplies & Services,DAA,04/03/2014,12-10001,2194.64,Newell Rubbermaid,,,,,,,,,,,
Nottinghamshire County Council,1111/1001,Surplus or Deficit from Trading Undertak,TRADING,Supplies & Services,DAA,06/03/2014,12-10001,653,Newell Rubbermaid,,,,,,,,,,,
Nottinghamshire County Council,1111/1001,Surplus or Deficit from Trading Undertak,TRADING,Supplies & Services,DAA,10/03/2014,12-10001,522.8,Newell Rubbermaid,,,,,,,,,,,
Nottinghamshire County Council,1111/1001,Surplus or Deficit from Trading Undertak,TRADING,Supplies & Services,DAA,11/03/2014,12-10001,1682.2,Newell Rubbermaid,,,,,,,,,,,
Nottinghamshire County Council,1111/1001,Surplus or Deficit from Trading Undertak,TRADING,Supplies & Services,DAA,11/03/2014,12-10001,565.05,Newell Rubbermaid,,,,,,,,,,,
Nottinghamshire County Council,1111/1001,Surplus or Deficit from Trading Undertak,TRADING,Supplies & Services,DAA,18/03/2014,12-10001,1201.6,Newell Rubbermaid,,,,,,,,,,,
Nottinghamshire County Council,1111/1001,Surplus or Deficit from Trading Undertak,TRADING,Supplies & Services,DAA,18/03/2014,12-10001,1934.3,Newell Rubbermaid,,,,,,,,,,,
Nottinghamshire County Council,1111/1001,Surplus or Deficit from Trading Undertak,TRADING,Supplies & Services,DAA,25/03/2014,12-10001,2124.98,Newell Rubbermaid,,,,,,,,,,,
Nottinghamshire County Council,1111/1001,Surplus or Deficit from Trading Undertak,TRADING,Supplies & Services,DAA,04/03/2014,12-10001,777.5,Acco-Rexel Ltd,,,,,,,,,,,
Nottinghamshire County Council,1111/1001,Surplus or Deficit from Trading Undertak,TRADING,Supplies & Services,DAA,19/03/2014,12-10001,578.85,Newclay Products Ltd,,,,,,,,,,,
Nottinghamshire County Council,1111/1001,Surplus or Deficit from Trading Undertak,TRADING,Supplies & Services,DAA,04/03/2014,12-10001,585.04,R.H.Ritchings Ltd,,,,,,,,,,,
Nottinghamshire County Council,1111/1001,Surplus or Deficit from Trading Undertak,TRADING,Supplies & Services,DAA,10/03/2014,12-10001,709.82,R.H.Ritchings Ltd,,,,,,,,,,,
Nottinghamshire County Council,1111/1001,Surplus or Deficit from Trading Undertak,TRADING,Supplies & Services,DAA,25/03/2014,12-10001,706.26,R.H.Ritchings Ltd,,,,,,,,,,,
Nottinghamshire County Council,1111/1001,Surplus or Deficit from Trading Undertak,TRADING,Supplies & Services,DAA,10/03/2014,12-10001,584.14,Staedtler (Uk) Ltd,,,,,,,,,,,
Nottinghamshire County Council,1111/1001,Surplus or Deficit from Trading Undertak,TRADING,Supplies & Services,DAA,11/03/2014,12-10001,861.3,Staedtler (Uk) Ltd,,,,,,,,,,,
Nottinghamshire County Council,1111/1001,Surplus or Deficit from Trading Undertak,TRADING,Supplies & Services,DAA,25/03/2014,12-10001,1051.66,Staedtler (Uk) Ltd,,,,,,,,,,,
Nottinghamshire County Council,1111/1001,Surplus or Deficit from Trading Undertak,TRADING,Supplies & Services,DAA,10/03/2014,12-10001,621.7,Bic U.K. Ltd,,,,,,,,,,,
Nottinghamshire County Council,1111/1001,Surplus or Deficit from Trading Undertak,TRADING,Supplies & Services,DAA,11/03/2014,12-10001,585.02,Bic U.K. Ltd,,,,,,,,,,,
Nottinghamshire County Council,1111/1001,Surplus or Deficit from Trading Undertak,TRADING,Supplies & Services,DAA,06/03/2014,12-10001,545.2,Edding Uk Ltd,,,,,,,,,,,
Nottinghamshire County Council,1111/1001,Surplus or Deficit from Trading Undertak,TRADING,Supplies & Services,DAA,10/03/2014,12-10001,756.1,Edding Uk Ltd,,,,,,,,,,,
Nottinghamshire County Council,1111/1001,Surplus or Deficit from Trading Undertak,TRADING,Supplies & Services,DAA,19/03/2014,12-10001,668.98,Rapesco Office Products Plc,,,,,,,,,,,
Nottinghamshire County Council,1111/1001,Surplus or Deficit from Trading Undertak,TRADING,Supplies & Services,DAA,10/03/2014,12-10001,1434.14,Allen Glenold Ltd,,,,,,,,,,,
Nottinghamshire County Council,1111/1001,Surplus or Deficit from Trading Undertak,TRADING,Supplies & Services,DAA,10/03/2014,12-10001,524.71,Allen Glenold Ltd,,,,,,,,,,,
Nottinghamshire County Council,1111/1001,Surplus or Deficit from Trading Undertak,TRADING,Supplies & Services,DAA,20/03/2014,12-10001,928.82,Allen Glenold Ltd,,,,,,,,,,,
Nottinghamshire County Council,1111/1001,Surplus or Deficit from Trading Undertak,TRADING,Supplies & Services,DAA,20/03/2014,12-10001,804.71,Allen Glenold Ltd,,,,,,,,,,,
Nottinghamshire County Council,1111/1001,Surplus or Deficit from Trading Undertak,TRADING,Supplies & Services,DAA,20/03/2014,12-10001,854.88,Allen Glenold Ltd,,,,,,,,,,,
Nottinghamshire County Council,1111/1001,Surplus or Deficit from Trading Undertak,TRADING,Supplies & Services,DAA,06/03/2014,12-10001,2126.2,Higher Kings Mill Ltd,,,,,,,,,,,
Nottinghamshire County Council,1111/1001,Surplus or Deficit from Trading Undertak,TRADING,Supplies & Services,DAA,06/03/2014,12-10001,591.52,Slater Harrison & Co Ltd,,,,,,,,,,,
Nottinghamshire County Council,1111/1001,Surplus or Deficit from Trading Undertak,TRADING,Supplies & Services,DAA,06/03/2014,12-10001,536.2,Slater Harrison & Co Ltd,,,,,,,,,,,
Nottinghamshire County Council,1111/1001,Surplus or Deficit from Trading Undertak,TRADING,Supplies & Services,DAA,10/03/2014,12-10001,693.2,Slater Harrison & Co Ltd,,,,,,,,,,,
Nottinghamshire County Council,1111/1001,Surplus or Deficit from Trading Undertak,TRADING,Supplies & Services,DAA,10/03/2014,12-10001,640.2,Slater Harrison & Co Ltd,,,,,,,,,,,
Nottinghamshire County Council,1111/1001,Surplus or Deficit from Trading Undertak,TRADING,Supplies & Services,DAA,19/03/2014,12-10001,658.88,Slater Harrison & Co Ltd,,,,,,,,,,,
Nottinghamshire County Council,1111/1001,Surplus or Deficit from Trading Undertak,TRADING,Supplies & Services,DAA,19/03/2014,12-10001,649.6,Slater Harrison & Co Ltd,,,,,,,,,,,
Nottinghamshire County Council,1111/1001,Surplus or Deficit from Trading Undertak,TRADING,Supplies & Services,DAA,25/03/2014,12-10001,747.44,Slater Harrison & Co Ltd,,,,,,,,,,,
Nottinghamshire County Council,1111/1001,Surplus or Deficit from Trading Undertak,TRADING,Supplies & Services,DAA,10/03/2014,12-10001,750.4,E V Naish Ltd,,,,,,,,,,,
Nottinghamshire County Council,1111/1001,Surplus or Deficit from Trading Undertak,TRADING,Supplies & Services,DAA,20/03/2014,12-10001,605.2,E V Naish Ltd,,,,,,,,,,,
Nottinghamshire County Council,1111/1001,Surplus or Deficit from Trading Undertak,TRADING,Supplies & Services,DAA,20/03/2014,12-10001,850,Lucy Friend Paper Co,,,,,,,,,,,
Nottinghamshire County Council,1111/1001,Surplus or Deficit from Trading Undertak,TRADING,Supplies & Services,DAA,06/03/2014,12-10001,589.54,Creativity International Ltd,,,,,,,,,,,
Nottinghamshire County Council,1111/1001,Surplus or Deficit from Trading Undertak,TRADING,Supplies & Services,DAA,06/03/2014,12-10001,1177.94,Creativity International Ltd,,,,,,,,,,,
Nottinghamshire County Council,1111/1001,Surplus or Deficit from Trading Undertak,TRADING,Supplies & Services,DAA,10/03/2014,12-10001,735.99,Creativity International Ltd,,,,,,,,,,,
Nottinghamshire County Council,1111/1001,Surplus or Deficit from Trading Undertak,TRADING,Supplies & Services,DAA,11/03/2014,12-10001,500.84,Bright Ideas Marketing Ltd,,,,,,,,,,,
Nottinghamshire County Council,1111/1001,Surplus or Deficit from Trading Undertak,TRADING,Supplies & Services,DAA,04/03/2014,12-10001,501.73,Primo Play Ltd,,,,,,,,,,,
Nottinghamshire County Council,1111/1001,Surplus or Deficit from Trading Undertak,TRADING,Supplies & Services,DAA,06/03/2014,12-10001,3327.42,Eastpoint,,,,,,,,,,,
Nottinghamshire County Council,1111/1001,Surplus or Deficit from Trading Undertak,TRADING,Supplies & Services,DAA,10/03/2014,12-10001,655,Eastpoint,,,,,,,,,,,
Nottinghamshire County Council,1111/1001,Surplus or Deficit from Trading Undertak,TRADING,Supplies & Services,DAA,11/03/2014,12-10001,544.65,Eastpoint,,,,,,,,,,,
Nottinghamshire County Council,1111/1001,Surplus or Deficit from Trading Undertak,TRADING,Supplies & Services,DAA,13/03/2014,12-10001,1797.35,Eastpoint,,,,,,,,,,,
Nottinghamshire County Council,1111/1001,Surplus or Deficit from Trading Undertak,TRADING,Supplies & Services,DAA,19/03/2014,12-10001,1559.69,Eastpoint,,,,,,,,,,,
Nottinghamshire County Council,1111/1001,Surplus or Deficit from Trading Undertak,TRADING,Supplies & Services,DAA,25/03/2014,12-10001,1775.41,Eastpoint,,,,,,,,,,,
Nottinghamshire County Council,1111/1001,Surplus or Deficit from Trading Undertak,TRADING,Supplies & Services,DAA,10/03/2014,12-10001,915.2,William Sinclair Horticulture Ltd,,,,,,,,,,,
Nottinghamshire County Council,1111/1001,Surplus or Deficit from Trading Undertak,TRADING,Supplies & Services,DAA,10/03/2014,12-10001,1031.38,Brian Clegg (Educational Products) Ltd,,,,,,,,,,,
Nottinghamshire County Council,1111/1001,Surplus or Deficit from Trading Undertak,TRADING,Supplies & Services,DAA,10/03/2014,12-10001,626.24,Brian Clegg (Educational Products) Ltd,,,,,,,,,,,
Nottinghamshire County Council,1111/1001,Surplus or Deficit from Trading Undertak,TRADING,Supplies & Services,DAA,11/03/2014,12-10001,742.95,Brian Clegg (Educational Products) Ltd,,,,,,,,,,,
Nottinghamshire County Council,1111/1001,Surplus or Deficit from Trading Undertak,TRADING,Supplies & Services,DAA,20/03/2014,12-10001,803.08,Brian Clegg (Educational Products) Ltd,,,,,,,,,,,
Nottinghamshire County Council,1111/1001,Surplus or Deficit from Trading Undertak,TRADING,Supplies & Services,DAA,20/03/2014,12-10001,603,Brian Clegg (Educational Products) Ltd,,,,,,,,,,,
Nottinghamshire County Council,1111/1001,Surplus or Deficit from Trading Undertak,TRADING,Supplies & Services,DAA,20/03/2014,12-10001,664.98,Brian Clegg (Educational Products) Ltd,,,,,,,,,,,
Nottinghamshire County Council,1111/1001,Surplus or Deficit from Trading Undertak,TRADING,Supplies & Services,DAA,10/03/2014,12-10001,535.62,Commotion Technology Supplies,,,,,,,,,,,
Nottinghamshire County Council,1111/1001,Surplus or Deficit from Trading Undertak,TRADING,Supplies & Services,DAA,25/03/2014,12-10001,575.75,Commotion Technology Supplies,,,,,,,,,,,
Nottinghamshire County Council,1111/1001,Surplus or Deficit from Trading Undertak,TRADING,Supplies & Services,DAA,18/03/2014,12-10001,619.68,Profile Education Ltd,,,,,,,,,,,
Nottinghamshire County Council,1111/1001,Surplus or Deficit from Trading Undertak,TRADING,Supplies & Services,DAA,04/03/2014,12-10001,991.03,Monarch Computer Furniture,,,,,,,,,,,
Nottinghamshire County Council,1111/1001,Surplus or Deficit from Trading Undertak,TRADING,Supplies & Services,DAA,04/03/2014,12-10001,1575.92,Monarch Computer Furniture,,,,,,,,,,,
Nottinghamshire County Council,1111/1001,Surplus or Deficit from Trading Undertak,TRADING,Supplies & Services,DAA,11/03/2014,12-10001,614.82,Monarch Computer Furniture,,,,,,,,,,,
Nottinghamshire County Council,1111/1001,Surplus or Deficit from Trading Undertak,TRADING,Employee Related,AAA,05/03/2014,12-10001,1136.7,Frontline Recruitment Ltd,,,,,,,,,,,
Nottinghamshire County Council,1111/1001,Surplus or Deficit from Trading Undertak,TRADING,Employee Related,AAA,11/03/2014,12-10001,1210.27,Frontline Recruitment Ltd,,,,,,,,,,,
Nottinghamshire County Council,1111/1001,Surplus or Deficit from Trading Undertak,TRADING,Employee Related,AAA,21/03/2014,12-10001,1085.07,Frontline Recruitment Ltd,,,,,,,,,,,
Nottinghamshire County Council,1111/1001,Surplus or Deficit from Trading Undertak,TRADING,Employee Related,AAA,21/03/2014,12-10001,1142.41,Frontline Recruitment Ltd,,,,,,,,,,,
Nottinghamshire County Council,1111/1001,Surplus or Deficit from Trading Undertak,TRADING,Supplies & Services,DAA,19/03/2014,12-10001,699.8,Certwood Ltd,,,,,,,,,,,
Nottinghamshire County Council,1111/1001,Children and Young People,CYP,Premises Related,BDA,04/03/2014,12-10002,852.95,K M Farrell,,,,,,,,,,,
Nottinghamshire County Council,1111/1001,Children and Young People,CYP,Premises Related,BDA,04/03/2014,12-10003,3069.44,K M Farrell,,,,,,,,,,,
Nottinghamshire County Council,1111/1001,Children and Young People,CYP,Premises Related,BDA,04/03/2014,12-10004,3069.44,K M Farrell,,,,,,,,,,,
Nottinghamshire County Council,1111/1001,Children and Young People,CYP,Premises Related,BDA,04/03/2014,12-10005,4250,K M Farrell,,,,,,,,,,,
Nottinghamshire County Council,1111/1001,Children and Young People,CYP,Transport Related,CCA,13/03/2014,12-10772,1277.48,Sharpes Of Nottingham,,,,,,,,,,,
Nottinghamshire County Council,1111/1001,Children and Young People,CYP,Transport Related,CCA,13/03/2014,12-10777,1473.6,Johnson Bros Tours Ltd,,,,,,,,,,,
Nottinghamshire County Council,1111/1001,Children and Young People,CYP,Transport Related,CCA,13/03/2014,12-10780,1875,Johnson Bros Tours Ltd,,,,,,,,,,,
Nottinghamshire County Council,1111/1001,Children and Young People,CYP,Transport Related,CCA,13/03/2014,12-10781,2080,Redfern Travel,,,,,,,,,,,
Nottinghamshire County Council,1111/1001,Children and Young People,CYP,Transport Related,CCA,13/03/2014,12-10796,1317.12,Arrow Specialised Transport Ltd,,,,,,,,,,,
Nottinghamshire County Council,1111/1001,Children and Young People,CYP,Transport Related,CCA,13/03/2014,12-10797,500,Arrow Specialised Transport Ltd,,,,,,,,,,,
Nottinghamshire County Council,1111/1001,Children and Young People,CYP,Transport Related,CCA,13/03/2014,12-10809,1440.14,Sprays Transport Ltd,,,,,,,,,,,
Nottinghamshire County Council,1111/1001,Children and Young People,CYP,Transport Related,CCA,13/03/2014,12-10810,1563.9,Sprays Transport Ltd,,,,,,,,,,,
Nottinghamshire County Council,1111/1001,Children and Young People,CYP,Transport Related,CCA,13/03/2014,12-10816,2112.24,BN Gibson Ltd,,,,,,,,,,,
Nottinghamshire County Council,1111/1001,Children and Young People,CYP,Transport Related,CCA,13/03/2014,12-10824,1394.5,Abacus Cars,,,,,,,,,,,
Nottinghamshire County Council,1111/1001,Children and Young People,CYP,Transport Related,CCA,13/03/2014,12-10825,1882.5,Abacus Cars,,,,,,,,,,,
Nottinghamshire County Council,1111/1001,Children and Young People,CYP,Transport Related,CCA,13/03/2014,12-10826,1650,Abacus Cars,,,,,,,,,,,
Nottinghamshire County Council,1111/1001,Children and Young People,CYP,Transport Related,CCA,13/03/2014,12-10865,584,P & P Taxis,,,,,,,,,,,
Nottinghamshire County Council,1111/1001,Children and Young People,CYP,Transport Related,CCA,13/03/2014,12-10883,615.9,Diamond Cars,,,,,,,,,,,
Nottinghamshire County Council,1111/1001,Children and Young People,CYP,Transport Related,CCA,18/03/2014,12-11059,3056.29,Marshalls Of Sutton On Trent Ltd,,,,,,,,,,,
Nottinghamshire County Council,1111/1001,Children and Young People,CYP,Transport Related,CCA,18/03/2014,12-11061,1192.5,Tiger European Uk Ltd,,,,,,,,,,,
Nottinghamshire County Council,1111/1001,Children and Young People,CYP,Transport Related,CCA,18/03/2014,12-11066,1520,Cabline Uk Ltd,,,,,,,,,,,
Nottinghamshire County Council,1111/1001,Children and Young People,CYP,Transport Related,CCA,18/03/2014,12-11067,707,Cabline Uk Ltd,,,,,,,,,,,
Nottinghamshire County Council,1111/1001,Children and Young People,CYP,Transport Related,CCA,18/03/2014,12-11068,909,Cabline Uk Ltd,,,,,,,,,,,
Nottinghamshire County Council,1111/1001,Children and Young People,CYP,Transport Related,CCA,18/03/2014,12-11070,1694.7,Martins Travel,,,,,,,,,,,
Nottinghamshire County Council,1111/1001,Children and Young People,CYP,Transport Related,CCA,18/03/2014,12-11071,2037.3,Martins Travel,,,,,,,,,,,
Nottinghamshire County Council,1111/1001,Children and Young People,CYP,Transport Related,CCA,18/03/2014,12-11072,1190.42,Ja Travel Ltd,,,,,,,,,,,
Nottinghamshire County Council,1111/1001,Children and Young People,CYP,Transport Related,CCA,18/03/2014,12-11074,1060.4,BN Gibson Ltd,,,,,,,,,,,
Nottinghamshire County Council,1111/1001,Children and Young People,CYP,Transport Related,CCA,18/03/2014,12-11075,1323,Abacus Cars,,,,,,,,,,,
Nottinghamshire County Council,1111/1001,Children and Young People,CYP,Transport Related,CCA,18/03/2014,12-11076,1120,Abacus Cars,,,,,,,,,,,
Nottinghamshire County Council,1111/1001,Children and Young People,CYP,Transport Related,CCA,21/03/2014,12-11184,1398.09,D G Private Hire Ltd,,,,,,,,,,,
Nottinghamshire County Council,1111/1001,Children and Young People,CYP,Transport Related,CCA,21/03/2014,12-11186,1524.57,I Can Charity,,,,,,,,,,,
Nottinghamshire County Council,1111/1001,Children and Young People,CYP,Transport Related,CCA,21/03/2014,12-11187,811.75,I Can Charity,,,,,,,,,,,
Nottinghamshire County Council,1111/1001,Children and Young People,CYP,Transport Related,CCA,21/03/2014,12-11189,1320,Hope House School Ltd,,,,,,,,,,,
Nottinghamshire County Council,1111/1001,Children and Young People,CYP,Transport Related,CDA,13/03/2014,12-10828,2706,AOT Coaches,,,,,,,,,,,
Nottinghamshire County Council,1111/1001,Children and Young People,CYP,Transport Related,CDA,13/03/2014,12-10829,1485,AOT Coaches,,,,,,,,,,,
Nottinghamshire County Council,1111/1001,Children and Young People,CYP,Transport Related,CDA,13/03/2014,12-10835,7524,Nottingham Minibuses & Coaches,,,,,,,,,,,
Nottinghamshire County Council,1111/1001,Children and Young People,CYP,Transport Related,CDA,13/03/2014,12-10836,6270,Nottingham Minibuses & Coaches,,,,,,,,,,,
Nottinghamshire County Council,1111/1001,Children and Young People,CYP,Transport Related,CDA,13/03/2014,12-10837,7942,Nottingham Minibuses & Coaches,,,,,,,,,,,
Nottinghamshire County Council,1111/1001,Children and Young People,CYP,Transport Related,CDA,13/03/2014,12-10838,3088.8,Nottingham Minibuses & Coaches,,,,,,,,,,,
Nottinghamshire County Council,1111/1001,Children and Young People,CYP,Transport Related,CDA,13/03/2014,12-10839,3088.8,Nottingham Minibuses & Coaches,,,,,,,,,,,
Nottinghamshire County Council,1111/1001,Children and Young People,CYP,Transport Related,CDA,13/03/2014,12-10840,3260.4,Nottingham Minibuses & Coaches,,,,,,,,,,,
Nottinghamshire County Council,1111/1001,Children and Young People,CYP,Transport Related,CDA,13/03/2014,12-10841,2574,Nottingham Minibuses & Coaches,,,,,,,,,,,
Nottinghamshire County Council,1111/1001,Children and Young People,CYP,Transport Related,CDA,13/03/2014,12-10842,3432,Nottingham Minibuses & Coaches,,,,,,,,,,,
Nottinghamshire County Council,1111/1001,Children and Young People,CYP,Transport Related,CDA,17/03/2014,12-11052,16302,Nottingham Minibuses & Coaches,,,,,,,,,,,
Nottinghamshire County Council,1111/1001,Children and Young People,CYP,Transport Related,CDA,18/03/2014,12-11057,9152.42,Marshalls Of Sutton On Trent Ltd,,,,,,,,,,,
Nottinghamshire County Council,1111/1001,Children and Young People,CYP,Transport Related,CDA,18/03/2014,12-11058,2209.19,Marshalls Of Sutton On Trent Ltd,,,,,,,,,,,
Nottinghamshire County Council,1111/1001,Children and Young People,CYP,Transport Related,CDA,18/03/2014,12-11060,4368,Paul S Winson Coaches,,,,,,,,,,,
Nottinghamshire County Council,1111/1001,Children and Young People,CYP,Supplies & Services,DAA,10/03/2014,12-10363,730,Riley & Company (Mansfield) Ltd,,,,,,,,,,,
Nottinghamshire County Council,1111/1001,Children and Young People,CYP,Supplies & Services,DAA,12/03/2014,12-10664,50000,Peafield Lane Academy,,,,,,,,,,,
Nottinghamshire County Council,1111/1001,Children and Young People,CYP,Supplies & Services,DBA,11/03/2014,12-10443,544.98,Brake Bros Ltd,,,,,,,,,,,
Nottinghamshire County Council,1111/1001,Children and Young People,CYP,Supplies & Services,DBA,11/03/2014,12-10446,542.57,Brake Bros Ltd,,,,,,,,,,,
Nottinghamshire County Council,1111/1001,Children and Young People,CYP,Supplies & Services,DBA,24/03/2014,12-11204,1092.32,Brake Bros Ltd,,,,,,,,,,,
Nottinghamshire County Council,1111/1001,Children and Young People,CYP,Supplies & Services,DBA,24/03/2014,12-11205,623.81,Brake Bros Ltd,,,,,,,,,,,
Nottinghamshire County Council,1111/1001,Children and Young People,CYP,Supplies & Services,DEA,25/03/2014,12-11506,540,J Lewis Music,,,,,,,,,,,
Nottinghamshire County Council,1111/1001,Children and Young People,CYP,Supplies & Services,DFA,10/03/2014,12-10357,585.23,Lantec Services Ltd,,,,,,,,,,,
Nottinghamshire County Council,1111/1001,Children and Young People,CYP,Supplies & Services,DFA,25/03/2014,12-11215,6000,Fp Teleset,,,,,,,,,,,
Nottinghamshire County Council,1111/1001,Children and Young People,CYP,Supplies & Services,DKA,05/03/2014,12-10149,900,St Mary'S Catholic High School,,,,,,,,,,,
Nottinghamshire County Council,1111/1001,Children and Young People,CYP,Supplies & Services,DKA,10/03/2014,12-10353,900,Bessacarr Primary School,,,,,,,,,,,
Nottinghamshire County Council,1111/1001,Children and Young People,CYP,Supplies & Services,DKA,10/03/2014,12-10354,1200,Scawthorpe Castle Hills Primary Sch,,,,,,,,,,,
Nottinghamshire County Council,1111/1001,Children and Young People,CYP,Supplies & Services,DKA,10/03/2014,12-10355,900,St Aidan's C of E High School,,,,,,,,,,,
Nottinghamshire County Council,1111/1001,Children and Young People,CYP,Supplies & Services,DKA,10/03/2014,12-10356,4500,Arnold Hill Academy,,,,,,,,,,,
Nottinghamshire County Council,1111/1001,Children and Young People,CYP,Supplies & Services,DKA,11/03/2014,12-10447,2867.2,Sir Edmund Hillary Primary School,,,,,,,,,,,
Nottinghamshire County Council,1111/1001,Children and Young People,CYP,Supplies & Services,DKA,13/03/2014,12-10684,1551.84,Commited Social Care Ltd,,,,,,,,,,,
Nottinghamshire County Council,1111/1001,Children and Young People,CYP,Supplies & Services,DKA,17/03/2014,12-10938,600,Rawmarsh Ashwood Primary School,,,,,,,,,,,
Nottinghamshire County Council,1111/1001,Children and Young People,CYP,Supplies & Services,DKA,17/03/2014,12-11054,2700,De Aston School,,,,,,,,,,,
Nottinghamshire County Council,1111/1001,Children and Young People,CYP,Supplies & Services,DKA,17/03/2014,12-11055,1800,The Carlton Academy,,,,,,,,,,,
Nottinghamshire County Council,1111/1001,Children and Young People,CYP,Supplies & Services,DKA,25/03/2014,12-11212,80000,Langold Dyscarr Community School,,,,,,,,,,,
Nottinghamshire County Council,1111/1001,Children and Young People,CYP,Supplies & Services,DKA,25/03/2014,12-11213,3300,The Manor Academy,,,,,,,,,,,
Nottinghamshire County Council,1111/1001,Children and Young People,CYP,Supplies & Services,DKA,25/03/2014,12-11214,1800,I Can Charity,,,,,,,,,,,
Nottinghamshire County Council,1111/1001,Children and Young People,CYP,Supplies & Services,DKA,27/03/2014,12-11255,5400,Toothill Academy,,,,,,,,,,,
Nottinghamshire County Council,1111/1001,Children and Young People,CYP,Supplies & Services,DKA,27/03/2014,12-11256,7500,The Brunts Academy,,,,,,,,,,,
Nottinghamshire County Council,1111/1001,Children and Young People,CYP,Supplies & Services,DKA,27/03/2014,12-11257,900,The Becket Catholic Voluntary Acade,,,,,,,,,,,
Nottinghamshire County Council,1111/1001,Children and Young People,CYP,Supplies & Services,DKA,27/03/2014,12-11258,2700,Redhill Academy,,,,,,,,,,,
Nottinghamshire County Council,1111/1001,Children and Young People,CYP,Supplies & Services,DKA,27/03/2014,12-11259,900,Oakhill Primary School,,,,,,,,,,,
Nottinghamshire County Council,1111/1001,Children and Young People,CYP,Supplies & Services,DKA,27/03/2014,12-11260,1800,George Spencer Academy,,,,,,,,,,,
Nottinghamshire County Council,1111/1001,Children and Young People,CYP,Supplies & Services,DKA,27/03/2014,12-11261,4500,Nottingham Academy,,,,,,,,,,,
Nottinghamshire County Council,1111/1001,Children and Young People,CYP,Supplies & Services,DKA,28/03/2014,12-11449,857.14,Blue Mountain Homes Ltd,,,,,,,,,,,
Nottinghamshire County Council,1111/1001,Children and Young People,CYP,Supplies & Services,DKA,28/03/2014,12-11522,1646.26,Care Today,,,,,,,,,,,
Nottinghamshire County Council,1111/1001,Children and Young People,CYP,Third Party Payments,EBA,27/03/2014,12-11406,22623.63,Home Group Limited,,,,,,,,,,,
Nottinghamshire County Council,1111/1001,Children and Young People,CYP,Third Party Payments,EBA,27/03/2014,12-11415,1621.78,Metropolitan Support Trust,,,,,,,,,,,
Nottinghamshire County Council,1111/1001,Children and Young People,CYP,Third Party Payments,EBA,27/03/2014,12-11420,20165.23,Newark Emmaus Trust,,,,,,,,,,,
Nottinghamshire County Council,1111/1001,Children and Young People,CYP,Third Party Payments,EBA,27/03/2014,12-11426,9514.43,Framework Housing Association,,,,,,,,,,,
Nottinghamshire County Council,1111/1001,Children and Young People,CYP,Third Party Payments,EBA,27/03/2014,12-11427,21606.51,Nottingham Community Housing,,,,,,,,,,,
Nottinghamshire County Council,1111/1001,Children and Young People,CYP,Third Party Payments,EBA,27/03/2014,12-11430,9730.65,ASRA Housing Association,,,,,,,,,,,
Nottinghamshire County Council,1111/1001,Children and Young People,CYP,Third Party Payments,EDA,17/03/2014,12-11463,604,National Church Of England Academy,,,,,,,,,,,
Nottinghamshire County Council,1111/1001,Children and Young People,CYP,Third Party Payments,EDA,17/03/2014,12-11464,1311,Tuxford Academy,,,,,,,,,,,
Nottinghamshire County Council,1111/1001,Children and Young People,CYP,Third Party Payments,EDA,17/03/2014,12-11465,8466,Kirkby College,,,,,,,,,,,
Nottinghamshire County Council,1111/1001,Children and Young People,CYP,Third Party Payments,EDA,17/03/2014,12-11466,553,The Manor Academy,,,,,,,,,,,
Nottinghamshire County Council,1111/1001,Children and Young People,CYP,Third Party Payments,EDA,17/03/2014,12-11467,1371,West Bridgford Academy,,,,,,,,,,,
Nottinghamshire County Council,1111/1001,Children and Young People,CYP,Third Party Payments,EDA,17/03/2014,12-11468,570,Queen Elizabeth's Academy,,,,,,,,,,,
Nottinghamshire County Council,1111/1001,Children and Young People,CYP,Third Party Payments,EDA,17/03/2014,12-11469,8166,The Carlton Academy,,,,,,,,,,,
Nottinghamshire County Council,1111/1001,Children and Young People,CYP,Third Party Payments,EDA,17/03/2014,12-11470,1418,South Nottinghamshire Academy,,,,,,,,,,,
Nottinghamshire County Council,1111/1001,Children and Young People,CYP,Third Party Payments,EDA,17/03/2014,12-11471,1444,Toothill Academy,,,,,,,,,,,
Nottinghamshire County Council,1111/1001,Children and Young People,CYP,Third Party Payments,EDA,17/03/2014,12-11472,1011,The Becket Catholic Voluntary Acade,,,,,,,,,,,
Nottinghamshire County Council,1111/1001,Children and Young People,CYP,Third Party Payments,EDA,17/03/2014,12-11473,6328,Serlby Park Academy,,,,,,,,,,,
Nottinghamshire County Council,1111/1001,Children and Young People,CYP,Third Party Payments,EDA,17/03/2014,12-11474,1430,Arnold Hill Academy,,,,,,,,,,,
Nottinghamshire County Council,1111/1001,Children and Young People,CYP,Third Party Payments,EDA,17/03/2014,12-11475,969,The Brunts Academy,,,,,,,,,,,
Nottinghamshire County Council,1111/1001,Children and Young People,CYP,Third Party Payments,EDA,17/03/2014,12-11476,994,Carlton Le Willows Academy,,,,,,,,,,,
Nottinghamshire County Council,1111/1001,Children and Young People,CYP,Third Party Payments,EDA,17/03/2014,12-11477,1046,Rushcliffe School Academy Trust,,,,,,,,,,,
Nottinghamshire County Council,1111/1001,Children and Young People,CYP,Third Party Payments,EDA,17/03/2014,12-11478,14883,Outwood Academy Portland,,,,,,,,,,,
Nottinghamshire County Council,1111/1001,Children and Young People,CYP,Third Party Payments,EDA,17/03/2014,12-11479,823,Outwood Academy Portland,,,,,,,,,,,
Nottinghamshire County Council,1111/1001,Children and Young People,CYP,Third Party Payments,EDA,17/03/2014,12-11480,1140,Ashfield Academy,,,,,,,,,,,
Nottinghamshire County Council,1111/1001,Children and Young People,CYP,Third Party Payments,EDA,17/03/2014,12-11481,2499,Ashfield Academy,,,,,,,,,,,
Nottinghamshire County Council,1111/1001,Children and Young People,CYP,Third Party Payments,EDA,17/03/2014,12-11482,9122,Retford Oaks Academy,,,,,,,,,,,
Nottinghamshire County Council,1111/1001,Children and Young People,CYP,Third Party Payments,EDA,17/03/2014,12-11483,26877,The Elizabethan Academy,,,,,,,,,,,
Nottinghamshire County Council,1111/1001,Children and Young People,CYP,Third Party Payments,EDA,17/03/2014,12-11484,694,The Elizabethan Academy,,,,,,,,,,,
Nottinghamshire County Council,1111/1001,Children and Young People,CYP,Third Party Payments,EDA,17/03/2014,12-11485,639,The South Wolds Academy & Sixth For,,,,,,,,,,,
Nottinghamshire County Council,1111/1001,Children and Young People,CYP,Third Party Payments,EDA,17/03/2014,12-11486,814,Outwood Academy - Valley,,,,,,,,,,,
Nottinghamshire County Council,1111/1001,Children and Young People,CYP,Third Party Payments,EDA,17/03/2014,12-11487,13709,Meden School - A Torch Academy,,,,,,,,,,,
Nottinghamshire County Council,1111/1001,Children and Young People,CYP,Third Party Payments,EDA,17/03/2014,12-11488,690,The Kimberley School (Academy),,,,,,,,,,,
Nottinghamshire County Council,1111/1001,Children and Young People,CYP,Third Party Payments,EDA,17/03/2014,12-11489,3413,Sherwood E-ACT Academy,,,,,,,,,,,
Nottinghamshire County Council,1111/1001,Children and Young People,CYP,Third Party Payments,EDA,17/03/2014,12-11490,69321,Foxwood Academy,,,,,,,,,,,
Nottinghamshire County Council,1111/1001,Children and Young People,CYP,Third Party Payments,EDA,17/03/2014,12-11491,18209,Sutton Community Academy,,,,,,,,,,,
Nottinghamshire County Council,1111/1001,Children and Young People,CYP,Third Party Payments,EDA,17/03/2014,12-11492,566,Sutton Community Academy,,,,,,,,,,,
Nottinghamshire County Council,1111/1001,Children and Young People,CYP,Third Party Payments,EDA,17/03/2014,12-11493,11584,The Newark Academy,,,,,,,,,,,
Nottinghamshire County Council,1111/1001,Children and Young People,CYP,Third Party Payments,EDA,17/03/2014,12-11494,1363,East Leake Academy,,,,,,,,,,,
Nottinghamshire County Council,1111/1001,Children and Young People,CYP,Third Party Payments,EDA,17/03/2014,12-11495,3522,The Bramcote School,,,,,,,,,,,
Nottinghamshire County Council,1111/1001,Children and Young People,CYP,Third Party Payments,EDA,17/03/2014,12-11496,887,George Spencer Academy,,,,,,,,,,,
Nottinghamshire County Council,1111/1001,Children and Young People,CYP,Third Party Payments,EDA,17/03/2014,12-11497,740,Redhill Academy,,,,,,,,,,,
Nottinghamshire County Council,1111/1001,Children and Young People,CYP,Third Party Payments,EDA,17/03/2014,12-11498,3147,Alderman White School,,,,,,,,,,,
Nottinghamshire County Council,1111/1001,Children and Young People,CYP,Third Party Payments,EDA,17/03/2014,12-11499,861,Alderman White School,,,,,,,,,,,
Nottinghamshire County Council,1111/1001,Children and Young People,CYP,Third Party Payments,EDA,17/03/2014,12-11500,611,Quarrydale Academy,,,,,,,,,,,
Nottinghamshire County Council,1111/1001,Children and Young People,CYP,Third Party Payments,EDA,17/03/2014,12-11501,544,Quarrydale Academy,,,,,,,,,,,
Nottinghamshire County Council,1111/1001,Children and Young People,CYP,Third Party Payments,EDA,24/03/2014,12-11211,2897,Arnold Hill Academy,,,,,,,,,,,
Nottinghamshire County Council,1111/1001,Children and Young People,CYP,Third Party Payments,EGA,03/03/2014,12-10133,9013.92,Allsorts Playgroup,,,,,,,,,,,
Nottinghamshire County Council,1111/1001,Children and Young People,CYP,Third Party Payments,EGA,03/03/2014,12-11448,1155074.33,Nottinghamshire Healthcare Nhs Trus,,,,,,,,,,,
Nottinghamshire County Council,1111/1001,Children and Young People,CYP,Third Party Payments,EGA,07/03/2014,12-10325,1241.6,Pre School Learning Alliance,,,,,,,,,,,
Nottinghamshire County Council,1111/1001,Children and Young People,CYP,Third Party Payments,EGA,07/03/2014,12-10326,7193.56,Pre School Learning Alliance,,,,,,,,,,,
Nottinghamshire County Council,1111/1001,Children and Young People,CYP,Third Party Payments,EGA,07/03/2014,12-10327,4536.62,Pre School Learning Alliance,,,,,,,,,,,
Nottinghamshire County Council,1111/1001,Children and Young People,CYP,Third Party Payments,EGA,07/03/2014,12-10328,1542.27,Pre School Learning Alliance,,,,,,,,,,,
Nottinghamshire County Council,1111/1001,Children and Young People,CYP,Third Party Payments,EGA,07/03/2014,12-10329,5944.73,Pippins Pre-School,,,,,,,,,,,
Nottinghamshire County Council,1111/1001,Children and Young People,CYP,Third Party Payments,EGA,07/03/2014,12-10330,2519.38,SPBC Day Care Ltd,,,,,,,,,,,
Nottinghamshire County Council,1111/1001,Children and Young People,CYP,Third Party Payments,EGA,07/03/2014,12-10331,1847.67,Keyworth Primary School,,,,,,,,,,,
Nottinghamshire County Council,1111/1001,Children and Young People,CYP,Third Party Payments,EGA,07/03/2014,12-10332,3992.1,Pelham Pre-School,,,,,,,,,,,
Nottinghamshire County Council,1111/1001,Children and Young People,CYP,Third Party Payments,EGA,07/03/2014,12-10333,30524.01,Papermoon Day Nursery,,,,,,,,,,,
Nottinghamshire County Council,1111/1001,Children and Young People,CYP,Third Party Payments,EGA,07/03/2014,12-10343,4350.59,Orchard School Nursery,,,,,,,,,,,
Nottinghamshire County Council,1111/1001,Children and Young People,CYP,Third Party Payments,EGA,07/03/2014,12-10345,6427.79,Old Cooperative Day Nursery,,,,,,,,,,,
Nottinghamshire County Council,1111/1001,Children and Young People,CYP,Third Party Payments,EGA,07/03/2014,12-10346,11658.52,Pre School Learning Alliance,,,,,,,,,,,
Nottinghamshire County Council,1111/1001,Children and Young People,CYP,Third Party Payments,EGA,07/03/2014,12-10347,684.25,A Marsden,,,,,,,,,,,
Nottinghamshire County Council,1111/1001,Children and Young People,CYP,Third Party Payments,EGA,07/03/2014,12-10348,10950.1,Little Bears Day Nursery,,,,,,,,,,,
Nottinghamshire County Council,1111/1001,Children and Young People,CYP,Third Party Payments,EGA,07/03/2014,12-10349,7007.45,Little Acorns Pre-School,,,,,,,,,,,
Nottinghamshire County Council,1111/1001,Children and Young People,CYP,Third Party Payments,EGA,13/03/2014,12-10886,1611.23,R Redmile (Childminder),,,,,,,,,,,
Nottinghamshire County Council,1111/1001,Children and Young People,CYP,Third Party Payments,EGA,13/03/2014,12-10887,4599.78,Alphabet House Day Nursery,,,,,,,,,,,
Nottinghamshire County Council,1111/1001,Children and Young People,CYP,Third Party Payments,EGA,13/03/2014,12-10888,2802.12,Attenborough Day Nursery & Pre-Sch,,,,,,,,,,,
Nottinghamshire County Council,1111/1001,Children and Young People,CYP,Third Party Payments,EGA,13/03/2014,12-10889,8933.62,Bircotes Pre-School,,,,,,,,,,,
Nottinghamshire County Council,1111/1001,Children and Young People,CYP,Third Party Payments,EGA,13/03/2014,12-10890,8875.11,Cherubs Childrens Centre Pleasley,,,,,,,,,,,
Nottinghamshire County Council,1111/1001,Children and Young People,CYP,Third Party Payments,EGA,13/03/2014,12-10891,3690.83,Children 1st @ Breedon House,,,,,,,,,,,
Nottinghamshire County Council,1111/1001,Children and Young People,CYP,Third Party Payments,EGA,13/03/2014,12-10892,10820.29,Little Oaks Nursery,,,,,,,,,,,
Nottinghamshire County Council,1111/1001,Children and Young People,CYP,Third Party Payments,EGA,13/03/2014,12-10893,3614.49,Longdale Nursery School,,,,,,,,,,,
Nottinghamshire County Council,1111/1001,Children and Young People,CYP,Third Party Payments,EGA,13/03/2014,12-10894,8310.22,Papermoon Day Nursery,,,,,,,,,,,
Nottinghamshire County Council,1111/1001,Children and Young People,CYP,Third Party Payments,EGA,13/03/2014,12-10895,11753.2,Wollaton Village Day Nurseries Ltd.,,,,,,,,,,,
Nottinghamshire County Council,1111/1001,Children and Young People,CYP,Third Party Payments,EGA,13/03/2014,12-10896,9592.76,Willow Pre-School Playgroup,,,,,,,,,,,
Nottinghamshire County Council,1111/1001,Children and Young People,CYP,Third Party Payments,EGA,13/03/2014,12-10897,7662.2,Village Day Nursery,,,,,,,,,,,
Nottinghamshire County Council,1111/1001,Children and Young People,CYP,Third Party Payments,EGA,13/03/2014,12-10898,1649.75,Tiny Talkers Day Nursery,,,,,,,,,,,
Nottinghamshire County Council,1111/1001,Children and Young People,CYP,Third Party Payments,EGA,13/03/2014,12-10899,3371.88,St Giles Pre-school,,,,,,,,,,,
Nottinghamshire County Council,1111/1001,Children and Young People,CYP,Third Party Payments,EGA,13/03/2014,12-10900,6074.47,Shaping Futures Day Nursery,,,,,,,,,,,
Nottinghamshire County Council,1111/1001,Children and Young People,CYP,Third Party Payments,EGA,13/03/2014,12-10901,9517.23,Serendipity's Day Nursery,,,,,,,,,,,
Nottinghamshire County Council,1111/1001,Children and Young People,CYP,Third Party Payments,EGA,13/03/2014,12-10902,6697.47,Pump Farm Day Nursery,,,,,,,,,,,
Nottinghamshire County Council,1111/1001,Children and Young People,CYP,Third Party Payments,EGA,13/03/2014,12-10903,20492.78,Papermoon Day Nursery Sutton In Ash,,,,,,,,,,,
Nottinghamshire County Council,1111/1001,Children and Young People,CYP,Third Party Payments,EGA,14/03/2014,12-10913,2954.75,Willoughby On The Wolds Playgroup,,,,,,,,,,,
Nottinghamshire County Council,1111/1001,Children and Young People,CYP,Third Party Payments,EGA,14/03/2014,12-10914,5598.45,West Bridgford Out Of School Care L,,,,,,,,,,,
Nottinghamshire County Council,1111/1001,Children and Young People,CYP,Third Party Payments,EGA,14/03/2014,12-10915,3030.63,Dagfa House School,,,,,,,,,,,
Nottinghamshire County Council,1111/1001,Children and Young People,CYP,Third Party Payments,EGA,14/03/2014,12-10916,10329.43,Cherubs Childrens Centre Wynndale,,,,,,,,,,,
Nottinghamshire County Council,1111/1001,Children and Young People,CYP,Third Party Payments,EGA,14/03/2014,12-10917,24067.2,Edwalton Day Nursery,,,,,,,,,,,
Nottinghamshire County Council,1111/1001,Children and Young People,CYP,Third Party Payments,EGA,14/03/2014,12-10918,7224.14,Farnsfield Pre-School,,,,,,,,,,,
Nottinghamshire County Council,1111/1001,Children and Young People,CYP,Third Party Payments,EGA,14/03/2014,12-10919,7206.86,Quinton Day Nurseries T/A Honey Bee,,,,,,,,,,,
Nottinghamshire County Council,1111/1001,Children and Young People,CYP,Third Party Payments,EGA,14/03/2014,12-10921,11199.45,Learning Ladder Childcare Ltd,,,,,,,,,,,
Nottinghamshire County Council,1111/1001,Children and Young People,CYP,Third Party Payments,EGA,14/03/2014,12-10922,3458.2,Railway Children Playgroup,,,,,,,,,,,
Nottinghamshire County Council,1111/1001,Children and Young People,CYP,Third Party Payments,EGA,14/03/2014,12-10923,539.11,Catherine Sansone,,,,,,,,,,,
Nottinghamshire County Council,1111/1001,Children and Young People,CYP,Third Party Payments,EGA,14/03/2014,12-10924,4252.56,Scottswood Pdn Ltd,,,,,,,,,,,
Nottinghamshire County Council,1111/1001,Children and Young People,CYP,Third Party Payments,EGA,14/03/2014,12-10925,3846.53,Scotts Wood Private Day Nursery,,,,,,,,,,,
Nottinghamshire County Council,1111/1001,Children and Young People,CYP,Third Party Payments,EGA,14/03/2014,12-10926,1716.38,Shaping Futures Day Nursery,,,,,,,,,,,
Nottinghamshire County Council,1111/1001,Children and Young People,CYP,Third Party Payments,EGA,14/03/2014,12-10927,6685.56,Southfields Pre-School,,,,,,,,,,,
Nottinghamshire County Council,1111/1001,Children and Young People,CYP,Third Party Payments,EGA,14/03/2014,12-10928,4349.57,St Johns Playgroup,,,,,,,,,,,
Nottinghamshire County Council,1111/1001,Children and Young People,CYP,Third Party Payments,EGA,14/03/2014,12-10930,6286,Stepping Stones II,,,,,,,,,,,
Nottinghamshire County Council,1111/1001,Children and Young People,CYP,Third Party Payments,EGA,14/03/2014,12-10934,2239.38,The Grange Nursery Ltd,,,,,,,,,,,
Nottinghamshire County Council,1111/1001,Children and Young People,CYP,Third Party Payments,EGA,18/03/2014,12-11090,5782.66,Fun Farm Day Nursery,,,,,,,,,,,
Nottinghamshire County Council,1111/1001,Children and Young People,CYP,Third Party Payments,EGA,18/03/2014,12-11091,4353,Pre School Learning Alliance,,,,,,,,,,,
Nottinghamshire County Council,1111/1001,Children and Young People,CYP,Third Party Payments,EGA,18/03/2014,12-11092,4260.33,Pre School Learning Alliance,,,,,,,,,,,
Nottinghamshire County Council,1111/1001,Children and Young People,CYP,Third Party Payments,EGA,18/03/2014,12-11093,2286.24,Pre School Learning Alliance,,,,,,,,,,,
Nottinghamshire County Council,1111/1001,Children and Young People,CYP,Third Party Payments,EGA,21/03/2014,12-11190,840,Serendipity Day Nursery,,,,,,,,,,,
Nottinghamshire County Council,1111/1001,Children and Young People,CYP,Third Party Payments,EGA,21/03/2014,12-11192,639,Alphabet House Day Nursery Worksop,,,,,,,,,,,
Nottinghamshire County Council,1111/1001,Children and Young People,CYP,Third Party Payments,EGA,21/03/2014,12-11193,1890,Alphabet House Nursery,,,,,,,,,,,
Nottinghamshire County Council,1111/1001,Children and Young People,CYP,Third Party Payments,EGA,21/03/2014,12-11196,735,Fernwood Day Nursery Ltd,,,,,,,,,,,
Nottinghamshire County Council,1111/1001,Children and Young People,CYP,Third Party Payments,EGA,21/03/2014,12-11198,504,Good Foundations Day Nursery,,,,,,,,,,,
Nottinghamshire County Council,1111/1001,Children and Young People,CYP,Third Party Payments,EGA,21/03/2014,12-11199,504,Village Day Nursery,,,,,,,,,,,
Nottinghamshire County Council,1111/1001,Children and Young People,CYP,Third Party Payments,EGA,21/03/2014,12-11200,577.5,Alphabet House Day Nursery Worksop,,,,,,,,,,,
Nottinghamshire County Council,1111/1001,Children and Young People,CYP,Third Party Payments,EGA,21/03/2014,12-11201,574,JPAC Ltd,,,,,,,,,,,
Nottinghamshire County Council,1111/1001,Children and Young People,CYP,Third Party Payments,EGA,21/03/2014,12-11202,840,Speckled Frogs Pre-School,,,,,,,,,,,
Nottinghamshire County Council,1111/1001,Children and Young People,CYP,Third Party Payments,EGA,25/03/2014,12-11218,2389.5,Treetops Nursery (Clipstone),,,,,,,,,,,
Nottinghamshire County Council,1111/1001,Children and Young People,CYP,Third Party Payments,EGA,25/03/2014,12-11219,1440.12,Tiny Tots Playgroup,,,,,,,,,,,
Nottinghamshire County Council,1111/1001,Children and Young People,CYP,Third Party Payments,EGA,25/03/2014,12-11220,1068.9,J Gledhill (childminder),,,,,,,,,,,
Nottinghamshire County Council,1111/1001,Children and Young People,CYP,Third Party Payments,EGA,25/03/2014,12-11221,839.85,J Gledhill (childminder),,,,,,,,,,,
Nottinghamshire County Council,1111/1001,Children and Young People,CYP,Third Party Payments,EGA,25/03/2014,12-11222,2519.55,Learning Ladder Childcare Ltd,,,,,,,,,,,
Nottinghamshire County Council,1111/1001,Children and Young People,CYP,Third Party Payments,EGA,25/03/2014,12-11223,684.6,Kiddy Winks Pre-School,,,,,,,,,,,
Nottinghamshire County Council,1111/1001,Children and Young People,CYP,Third Party Payments,EGA,25/03/2014,12-11224,558.18,Alphabet House Day Nursery Worksop,,,,,,,,,,,
Nottinghamshire County Council,1111/1001,Children and Young People,CYP,Third Party Payments,EGA,26/03/2014,12-11251,622.05,The Learning Tree Nursery,,,,,,,,,,,
Nottinghamshire County Council,1111/1001,Children and Young People,CYP,Third Party Payments,EGA,26/03/2014,12-11252,2137.8,Thrumpton Kids Clubs,,,,,,,,,,,
Nottinghamshire County Council,1111/1001,Children and Young People,CYP,Third Party Payments,EGA,28/03/2014,12-11503,12400.08,Bettercare Keys Ltd,,,,,,,,,,,
Nottinghamshire County Council,1111/1001,Children and Young People,CYP,Third Party Payments,EGA,28/03/2014,12-11504,13728.66,Bettercare Keys Ltd,,,,,,,,,,,
Nottinghamshire County Council,1111/1001,Children and Young People,CYP,Third Party Payments,EGA,28/03/2014,12-11509,14676.6,Capstone Foster Care Ltd,,,,,,,,,,,
Nottinghamshire County Council,1111/1001,Children and Young People,CYP,Support Services,HAA,13/03/2014,12-10771,2116.21,Sharpes Of Nottingham,,,,,,,,,,,
Nottinghamshire County Council,1111/1001,Children and Young People,CYP,Support Services,HAA,13/03/2014,12-10778,10154.55,Johnson Bros Tours Ltd,,,,,,,,,,,
Nottinghamshire County Council,1111/1001,Children and Young People,CYP,Support Services,HAA,13/03/2014,12-10779,1979.6,Johnson Bros Tours Ltd,,,,,,,,,,,
Nottinghamshire County Council,1111/1001,Children and Young People,CYP,Support Services,HAA,13/03/2014,12-10782,1275,SJW (Muskham) Ltd T/A Z Cars,,,,,,,,,,,
Nottinghamshire County Council,1111/1001,Children and Young People,CYP,Support Services,HAA,13/03/2014,12-10783,750,SJW (Muskham) Ltd T/A Z Cars,,,,,,,,,,,
Nottinghamshire County Council,1111/1001,Children and Young People,CYP,Support Services,HAA,13/03/2014,12-10830,1619.55,AOT Coaches,,,,,,,,,,,
Nottinghamshire County Council,1111/1001,Children and Young People,CYP,Support Services,HAA,13/03/2014,12-10831,1909.5,AOT Coaches,,,,,,,,,,,
Nottinghamshire County Council,1111/1001,Children and Young People,CYP,Support Services,HAA,13/03/2014,12-10832,2189.95,AOT Coaches,,,,,,,,,,,
Nottinghamshire County Council,1111/1001,Children and Young People,CYP,Support Services,HAA,13/03/2014,12-10833,1762.25,AOT Coaches,,,,,,,,,,,
Nottinghamshire County Council,1111/1001,Children and Young People,CYP,Support Services,HAA,13/03/2014,12-10834,2691.3,AOT Coaches,,,,,,,,,,,
Nottinghamshire County Council,1111/1001,Children and Young People,CYP,Support Services,HAA,13/03/2014,12-10857,2695.14,Stagecoach Services Ltd,,,,,,,,,,,
Nottinghamshire County Council,1111/1001,Children and Young People,CYP,Support Services,HAA,13/03/2014,12-10858,3927.88,Stagecoach Services Ltd,,,,,,,,,,,
Nottinghamshire County Council,1111/1001,Children and Young People,CYP,Support Services,HAA,13/03/2014,12-10861,902.67,Stagecoach Services Ltd,,,,,,,,,,,
Nottinghamshire County Council,1111/1001,Children and Young People,CYP,Support Services,HAA,13/03/2014,12-10862,3831.3,Stagecoach Services Ltd,,,,,,,,,,,
Nottinghamshire County Council,1111/1001,Children and Young People,CYP,Support Services,HAA,13/03/2014,12-10863,3759.3,Stagecoach Services Ltd,,,,,,,,,,,
Nottinghamshire County Council,1111/1001,Children and Young People,CYP,Support Services,HAA,13/03/2014,12-10871,2046.84,Paul S Winson Coaches,,,,,,,,,,,
Nottinghamshire County Council,1111/1001,Children and Young People,CYP,Support Services,HAA,13/03/2014,12-10873,3793.3,Paul S Winson Coaches,,,,,,,,,,,
Nottinghamshire County Council,1111/1001,Children and Young People,CYP,Support Services,HAA,13/03/2014,12-10874,2447.16,Paul S Winson Coaches,,,,,,,,,,,
Nottinghamshire County Council,1111/1001,Children and Young People,CYP,Support Services,HAA,13/03/2014,12-10876,3375,Isle Coaches,,,,,,,,,,,
Nottinghamshire County Council,1111/1001,Children and Young People,CYP,Support Services,HAA,13/03/2014,12-10882,2026.62,TM Travel,,,,,,,,,,,
Nottinghamshire County Council,1111/1001,Children and Young People,CYP,Support Services,HAA,18/03/2014,12-11077,2171,Tiger European Uk Ltd,,,,,,,,,,,
Nottinghamshire County Council,1111/1001,Children and Young People,CYP,Support Services,HAA,18/03/2014,12-11078,2474.8,Tiger European Uk Ltd,,,,,,,,,,,
Nottinghamshire County Council,1111/1001,Children and Young People,CYP,Support Services,HAA,18/03/2014,12-11079,4811.7,Tiger European Uk Ltd,,,,,,,,,,,
Nottinghamshire County Council,1111/1001,Children and Young People,CYP,Support Services,HAA,18/03/2014,12-11080,2279.85,Tiger European Uk Ltd,,,,,,,,,,,
Nottinghamshire County Council,1111/1001,Children and Young People,CYP,Support Services,HAA,18/03/2014,12-11081,2060.7,Tiger European Uk Ltd,,,,,,,,,,,
Nottinghamshire County Council,1111/1001,Children and Young People,CYP,Support Services,HAA,18/03/2014,12-11082,1841.36,Tiger European Uk Ltd,,,,,,,,,,,
Nottinghamshire County Council,1111/1001,Children and Young People,CYP,Support Services,HAA,18/03/2014,12-11083,604.5,Bassetlaw Action Centre,,,,,,,,,,,
Nottinghamshire County Council,1111/1001,Adult Social Care and Health,ASCH,Premises Related,BEA,14/03/2014,12-10929,2910.6,Broxtowe Borough Council,,,,,,,,,,,
Nottinghamshire County Council,1111/1001,Adult Social Care and Health,ASCH,Premises Related,BEA,14/03/2014,12-10931,2835,Broxtowe Borough Council,,,,,,,,,,,
Nottinghamshire County Council,1111/1001,Adult Social Care and Health,ASCH,Premises Related,BEA,14/03/2014,12-10932,2727.9,Broxtowe Borough Council,,,,,,,,,,,
Nottinghamshire County Council,1111/1001,Adult Social Care and Health,ASCH,Premises Related,BEA,14/03/2014,12-10933,2608.2,Broxtowe Borough Council,,,,,,,,,,,
Nottinghamshire County Council,1111/1001,Adult Social Care and Health,ASCH,Transport Related,CBA,13/03/2014,12-10819,560,Abacus Cars,,,,,,,,,,,
Nottinghamshire County Council,1111/1001,Adult Social Care and Health,ASCH,Transport Related,CBA,18/03/2014,12-11073,3246.2,Mct Uk Ltd,,,,,,,,,,,
Nottinghamshire County Council,1111/1001,Adult Social Care and Health,ASCH,Transport Related,CCA,13/03/2014,12-10768,1193,Winfield Plant,,,,,,,,,,,
Nottinghamshire County Council,1111/1001,Adult Social Care and Health,ASCH,Transport Related,CCA,13/03/2014,12-10817,840,Abacus Cars,,,,,,,,,,,
Nottinghamshire County Council,1111/1001,Adult Social Care and Health,ASCH,Transport Related,CCA,13/03/2014,12-10818,1416,Abacus Cars,,,,,,,,,,,
Nottinghamshire County Council,1111/1001,Adult Social Care and Health,ASCH,Transport Related,CCA,13/03/2014,12-10820,1504,Abacus Cars,,,,,,,,,,,
Nottinghamshire County Council,1111/1001,Adult Social Care and Health,ASCH,Transport Related,CCA,13/03/2014,12-10821,560,Abacus Cars,,,,,,,,,,,
Nottinghamshire County Council,1111/1001,Adult Social Care and Health,ASCH,Transport Related,CCA,13/03/2014,12-10827,792,Abacus Cars,,,,,,,,,,,
Nottinghamshire County Council,1111/1001,Adult Social Care and Health,ASCH,Transport Related,CCA,21/03/2014,12-11185,1800,Abacus Cars,,,,,,,,,,,
Nottinghamshire County Council,1111/1001,Adult Social Care and Health,ASCH,Supplies & Services,DAA,28/03/2014,12-11520,900,Nutri Pack Uk Ltd,,,,,,,,,,,
Nottinghamshire County Council,1111/1001,Adult Social Care and Health,ASCH,Supplies & Services,DBA,05/03/2014,12-10138,1124.6,Arnold Dairies Ltd,,,,,,,,,,,
Nottinghamshire County Council,1111/1001,Adult Social Care and Health,ASCH,Supplies & Services,DBA,05/03/2014,12-10140,893.43,Brake Bros Ltd,,,,,,,,,,,
Nottinghamshire County Council,1111/1001,Adult Social Care and Health,ASCH,Supplies & Services,DBA,05/03/2014,12-10141,1214.44,Brake Bros Ltd,,,,,,,,,,,
Nottinghamshire County Council,1111/1001,Adult Social Care and Health,ASCH,Supplies & Services,DBA,05/03/2014,12-10148,1013.3,Brake Bros Ltd,,,,,,,,,,,
Nottinghamshire County Council,1111/1001,Adult Social Care and Health,ASCH,Supplies & Services,DBA,06/03/2014,12-10158,3043.28,Brake Bros Ltd,,,,,,,,,,,
Nottinghamshire County Council,1111/1001,Adult Social Care and Health,ASCH,Supplies & Services,DBA,11/03/2014,12-10442,1512.15,Hallam Country Fresh Foods Ltd,,,,,,,,,,,
Nottinghamshire County Council,1111/1001,Adult Social Care and Health,ASCH,Supplies & Services,DBA,11/03/2014,12-10444,1155.19,Brake Bros Ltd,,,,,,,,,,,
Nottinghamshire County Council,1111/1001,Adult Social Care and Health,ASCH,Supplies & Services,DBA,11/03/2014,12-10445,1227.07,Brake Bros Ltd,,,,,,,,,,,
Nottinghamshire County Council,1111/1001,Adult Social Care and Health,ASCH,Supplies & Services,DBA,11/03/2014,12-10446,3135.57,Brake Bros Ltd,,,,,,,,,,,
Nottinghamshire County Council,1111/1001,Adult Social Care and Health,ASCH,Supplies & Services,DBA,12/03/2014,12-10663,1087.25,Arnold Dairies Ltd,,,,,,,,,,,
Nottinghamshire County Council,1111/1001,Adult Social Care and Health,ASCH,Supplies & Services,DBA,17/03/2014,12-11053,1535.11,Hallam Country Fresh Foods Ltd,,,,,,,,,,,
Nottinghamshire County Council,1111/1001,Adult Social Care and Health,ASCH,Supplies & Services,DBA,24/03/2014,12-11204,3786.31,Brake Bros Ltd,,,,,,,,,,,
Nottinghamshire County Council,1111/1001,Adult Social Care and Health,ASCH,Supplies & Services,DBA,25/03/2014,12-11228,1429.53,Hallam Country Fresh Foods Ltd,,,,,,,,,,,
Nottinghamshire County Council,1111/1001,Adult Social Care and Health,ASCH,Supplies & Services,DFA,05/03/2014,12-10147,634.35,Lantec Services Ltd,,,,,,,,,,,
Nottinghamshire County Council,1111/1001,Adult Social Care and Health,ASCH,Supplies & Services,DGA,13/03/2014,12-10869,1675,P & P Taxis,,,,,,,,,,,
Nottinghamshire County Council,1111/1001,Adult Social Care and Health,ASCH,Third Party Payments,EBA,27/03/2014,12-11400,28610.12,Ashfield District Council,,,,,,,,,,,
Nottinghamshire County Council,1111/1001,Adult Social Care and Health,ASCH,Third Party Payments,EBA,27/03/2014,12-11401,34352.27,Bassetlaw District Council,,,,,,,,,,,
Nottinghamshire County Council,1111/1001,Adult Social Care and Health,ASCH,Third Party Payments,EBA,27/03/2014,12-11402,23128.03,Newark & Sherwood District Council,,,,,,,,,,,
Nottinghamshire County Council,1111/1001,Adult Social Care and Health,ASCH,Third Party Payments,EBA,27/03/2014,12-11403,51948.65,Mansfield District Council,,,,,,,,,,,
Nottinghamshire County Council,1111/1001,Adult Social Care and Health,ASCH,Third Party Payments,EBA,27/03/2014,12-11404,28915.3,Broxtowe Borough Council,,,,,,,,,,,
Nottinghamshire County Council,1111/1001,Adult Social Care and Health,ASCH,Third Party Payments,EBA,27/03/2014,12-11405,1719.15,Nene Housing Society Limited,,,,,,,,,,,
Nottinghamshire County Council,1111/1001,Adult Social Care and Health,ASCH,Third Party Payments,EBA,27/03/2014,12-11406,11347.47,Home Group Limited,,,,,,,,,,,
Nottinghamshire County Council,1111/1001,Adult Social Care and Health,ASCH,Third Party Payments,EBA,27/03/2014,12-11407,890.45,East Midlands Housing,,,,,,,,,,,
Nottinghamshire County Council,1111/1001,Adult Social Care and Health,ASCH,Third Party Payments,EBA,27/03/2014,12-11408,10240,Aspirations (Midlands) Ltd,,,,,,,,,,,
Nottinghamshire County Council,1111/1001,Adult Social Care and Health,ASCH,Third Party Payments,EBA,27/03/2014,12-11409,37270.57,Nottinghamshire Womens Aid Ltd,,,,,,,,,,,
Nottinghamshire County Council,1111/1001,Adult Social Care and Health,ASCH,Third Party Payments,EBA,27/03/2014,12-11410,10440.57,Jigsaw Mansfield Floating Support S,,,,,,,,,,,
Nottinghamshire County Council,1111/1001,Adult Social Care and Health,ASCH,Third Party Payments,EBA,27/03/2014,12-11411,874.71,Longhurst Housing Ltd,,,,,,,,,,,
Nottinghamshire County Council,1111/1001,Adult Social Care and Health,ASCH,Third Party Payments,EBA,27/03/2014,12-11412,1280,Advance Housing & Support Ltd,,,,,,,,,,,
Nottinghamshire County Council,1111/1001,Adult Social Care and Health,ASCH,Third Party Payments,EBA,27/03/2014,12-11413,1586.09,De Montfort Housing Association,,,,,,,,,,,
Nottinghamshire County Council,1111/1001,Adult Social Care and Health,ASCH,Third Party Payments,EBA,27/03/2014,12-11414,1080,Reach Housing Gloria Miller,,,,,,,,,,,
Nottinghamshire County Council,1111/1001,Adult Social Care and Health,ASCH,Third Party Payments,EBA,27/03/2014,12-11415,4704,Metropolitan Support Trust,,,,,,,,,,,
Nottinghamshire County Council,1111/1001,Adult Social Care and Health,ASCH,Third Party Payments,EBA,27/03/2014,12-11416,45088.41,Royal Society Mencap,,,,,,,,,,,
Nottinghamshire County Council,1111/1001,Adult Social Care and Health,ASCH,Third Party Payments,EBA,27/03/2014,12-11417,729.13,Sanctuary Housing Association,,,,,,,,,,,
Nottinghamshire County Council,1111/1001,Adult Social Care and Health,ASCH,Third Party Payments,EBA,27/03/2014,12-11418,1165.45,Nottingham City Homes,,,,,,,,,,,
Nottinghamshire County Council,1111/1001,Adult Social Care and Health,ASCH,Third Party Payments,EBA,27/03/2014,12-11419,18789.48,Metropolitan Support Trust,,,,,,,,,,,
Nottinghamshire County Council,1111/1001,Adult Social Care and Health,ASCH,Third Party Payments,EBA,27/03/2014,12-11421,96488.28,Eden Supported Living Ltd,,,,,,,,,,,
Nottinghamshire County Council,1111/1001,Adult Social Care and Health,ASCH,Third Party Payments,EBA,27/03/2014,12-11422,1071.77,United Charities Of Abel Collin,,,,,,,,,,,
Nottinghamshire County Council,1111/1001,Adult Social Care and Health,ASCH,Third Party Payments,EBA,27/03/2014,12-11423,27228.5,Women's Aid Integrated Services,,,,,,,,,,,
Nottinghamshire County Council,1111/1001,Adult Social Care and Health,ASCH,Third Party Payments,EBA,27/03/2014,12-11424,2920,Care UK Learning Disabilities Servi,,,,,,,,,,,
Nottinghamshire County Council,1111/1001,Adult Social Care and Health,ASCH,Third Party Payments,EBA,27/03/2014,12-11425,2160,Oakdale Ozier Ltd,,,,,,,,,,,
Nottinghamshire County Council,1111/1001,Adult Social Care and Health,ASCH,Third Party Payments,EBA,27/03/2014,12-11426,364932.55,Framework Housing Association,,,,,,,,,,,
Nottinghamshire County Council,1111/1001,Adult Social Care and Health,ASCH,Third Party Payments,EBA,27/03/2014,12-11427,5114.79,Nottingham Community Housing,,,,,,,,,,,
Nottinghamshire County Council,1111/1001,Adult Social Care and Health,ASCH,Third Party Payments,EBA,27/03/2014,12-11428,4440,Fitzroy,,,,,,,,,,,
Nottinghamshire County Council,1111/1001,Adult Social Care and Health,ASCH,Third Party Payments,EBA,27/03/2014,12-11429,16247.92,Lifeways Community Care Ltd,,,,,,,,,,,
Nottinghamshire County Council,1111/1001,Adult Social Care and Health,ASCH,Third Party Payments,EBA,27/03/2014,12-11430,3517.13,ASRA Housing Association,,,,,,,,,,,
Nottinghamshire County Council,1111/1001,Adult Social Care and Health,ASCH,Third Party Payments,EBA,27/03/2014,12-11431,4800,Voyage Ltd,,,,,,,,,,,
Nottinghamshire County Council,1111/1001,Adult Social Care and Health,ASCH,Third Party Payments,EBA,27/03/2014,12-11432,1145.21,Housing 21,,,,,,,,,,,
Nottinghamshire County Council,1111/1001,Adult Social Care and Health,ASCH,Third Party Payments,EBA,27/03/2014,12-11433,19994.07,Thera East Midlands,,,,,,,,,,,
Nottinghamshire County Council,1111/1001,Adult Social Care and Health,ASCH,Third Party Payments,EBA,27/03/2014,12-11434,14800,Choice Support,,,,,,,,,,,
Nottinghamshire County Council,1111/1001,Adult Social Care and Health,ASCH,Third Party Payments,EBA,27/03/2014,12-11435,12040,United Response,,,,,,,,,,,
Nottinghamshire County Council,1111/1001,Adult Social Care and Health,ASCH,Third Party Payments,EBA,27/03/2014,12-11436,1840,Heritage Care,,,,,,,,,,,
Nottinghamshire County Council,1111/1001,Adult Social Care and Health,ASCH,Third Party Payments,EBA,27/03/2014,12-11437,2360,Real Life Options,,,,,,,,,,,
Nottinghamshire County Council,1111/1001,Adult Social Care and Health,ASCH,Third Party Payments,EBA,27/03/2014,12-11438,21701.37,Gedling Homes,,,,,,,,,,,
Nottinghamshire County Council,1111/1001,Adult Social Care and Health,ASCH,Third Party Payments,EBA,27/03/2014,12-11439,6641.2,NCHA Ltd,,,,,,,,,,,
Nottinghamshire County Council,1111/1001,Adult Social Care and Health,ASCH,Third Party Payments,ECA,03/03/2014,12-10031,862.63,Countrywide Care Homes Ltd T/A Clum,,,,,,,,,,,
Nottinghamshire County Council,1111/1001,Adult Social Care and Health,ASCH,Third Party Payments,ECA,03/03/2014,12-10035,721.48,Lawn Park Nursing Home,,,,,,,,,,,
Nottinghamshire County Council,1111/1001,Adult Social Care and Health,ASCH,Third Party Payments,ECA,03/03/2014,12-10048,878.32,Hollybank Nursing Home,,,,,,,,,,,
Nottinghamshire County Council,1111/1001,Adult Social Care and Health,ASCH,Third Party Payments,ECA,03/03/2014,12-10063,1097.9,Field House Nursing Home,,,,,,,,,,,
Nottinghamshire County Council,1111/1001,Adult Social Care and Health,ASCH,Third Party Payments,ECA,03/03/2014,12-10084,604.4,Broadgate Nursing Home,,,,,,,,,,,
Nottinghamshire County Council,1111/1001,Adult Social Care and Health,ASCH,Third Party Payments,ECA,03/03/2014,12-10087,548.95,Victoria Care Home,,,,,,,,,,,
Nottinghamshire County Council,1111/1001,Adult Social Care and Health,ASCH,Third Party Payments,ECA,03/03/2014,12-10117,2070.33,Beechdale Manor Care Home,,,,,,,,,,,
Nottinghamshire County Council,1111/1001,Adult Social Care and Health,ASCH,Third Party Payments,ECA,06/03/2014,12-10166,972.43,Highfields Nursing Home,,,,,,,,,,,
Nottinghamshire County Council,1111/1001,Adult Social Care and Health,ASCH,Third Party Payments,ECA,06/03/2014,12-10189,1521.38,Broadgate Nursing Home,,,,,,,,,,,
Nottinghamshire County Council,1111/1001,Adult Social Care and Health,ASCH,Third Party Payments,ECA,06/03/2014,12-10205,3340.75,St Andrews Lodge,,,,,,,,,,,
Nottinghamshire County Council,1111/1001,Adult Social Care and Health,ASCH,Third Party Payments,ECA,06/03/2014,12-10224,1317.48,Ridgeway Nursing Home,,,,,,,,,,,
Nottinghamshire County Council,1111/1001,Adult Social Care and Health,ASCH,Third Party Payments,ECA,10/03/2014,12-10390,598.4,Hazel Grove Nursing Home,,,,,,,,,,,
Nottinghamshire County Council,1111/1001,Adult Social Care and Health,ASCH,Third Party Payments,ECA,17/03/2014,12-10971,533.27,Alexandra House Nursing Home,,,,,,,,,,,
Nottinghamshire County Council,1111/1001,Adult Social Care and Health,ASCH,Third Party Payments,ECA,17/03/2014,12-10991,548.95,Hawthorne Nursing Home,,,,,,,,,,,
Nottinghamshire County Council,1111/1001,Adult Social Care and Health,ASCH,Third Party Payments,ECA,17/03/2014,12-11051,2791.8,Morton Grange Care Home,,,,,,,,,,,
Nottinghamshire County Council,1111/1001,Adult Social Care and Health,ASCH,Third Party Payments,EFA,06/03/2014,12-10188,1309.4,K Redman,,,,,,,,,,,
Nottinghamshire County Council,1111/1001,Adult Social Care and Health,ASCH,Third Party Payments,EGA,03/03/2014,12-10014,672,Thera East Midlands,,,,,,,,,,,
Nottinghamshire County Council,1111/1001,Adult Social Care and Health,ASCH,Third Party Payments,EGA,03/03/2014,12-10016,2399.43,Bramcote Hills Care Home,,,,,,,,,,,
Nottinghamshire County Council,1111/1001,Adult Social Care and Health,ASCH,Third Party Payments,EGA,03/03/2014,12-10017,1641.72,Parkland,,,,,,,,,,,
Nottinghamshire County Council,1111/1001,Adult Social Care and Health,ASCH,Third Party Payments,EGA,03/03/2014,12-10018,1389.14,Parkland,,,,,,,,,,,
Nottinghamshire County Council,1111/1001,Adult Social Care and Health,ASCH,Third Party Payments,EGA,03/03/2014,12-10019,884,Four Seasons (Evedale) Ltd/Tudor Gr,,,,,,,,,,,
Nottinghamshire County Council,1111/1001,Adult Social Care and Health,ASCH,Third Party Payments,EGA,03/03/2014,12-10020,2611.14,Oaks Care Centre,,,,,,,,,,,
Nottinghamshire County Council,1111/1001,Adult Social Care and Health,ASCH,Third Party Payments,EGA,03/03/2014,12-10021,798,Charnwood House,,,,,,,,,,,
Nottinghamshire County Council,1111/1001,Adult Social Care and Health,ASCH,Third Party Payments,EGA,03/03/2014,12-10022,2223,Charnwood House,,,,,,,,,,,
Nottinghamshire County Council,1111/1001,Adult Social Care and Health,ASCH,Third Party Payments,EGA,03/03/2014,12-10023,1326,Churchfield Drive Care Home,,,,,,,,,,,
Nottinghamshire County Council,1111/1001,Adult Social Care and Health,ASCH,Third Party Payments,EGA,03/03/2014,12-10024,802.29,Four Seasons (Bamford) Ltd - Old Vi,,,,,,,,,,,
Nottinghamshire County Council,1111/1001,Adult Social Care and Health,ASCH,Third Party Payments,EGA,03/03/2014,12-10025,6953.71,The Cedars Care Home,,,,,,,,,,,
Nottinghamshire County Council,1111/1001,Adult Social Care and Health,ASCH,Third Party Payments,EGA,03/03/2014,12-10026,3450,The Cedars Care Home,,,,,,,,,,,
Nottinghamshire County Council,1111/1001,Adult Social Care and Health,ASCH,Third Party Payments,EGA,03/03/2014,12-10027,1522.92,Butterley House Residential Home,,,,,,,,,,,
Nottinghamshire County Council,1111/1001,Adult Social Care and Health,ASCH,Third Party Payments,EGA,03/03/2014,12-10028,2160,Edward House Care Home,,,,,,,,,,,
Nottinghamshire County Council,1111/1001,Adult Social Care and Health,ASCH,Third Party Payments,EGA,03/03/2014,12-10029,2275.84,Benarty View Nursing Home,,,,,,,,,,,
Nottinghamshire County Council,1111/1001,Adult Social Care and Health,ASCH,Third Party Payments,EGA,03/03/2014,12-10030,2139.43,Ashlands Residential Care Home,,,,,,,,,,,
Nottinghamshire County Council,1111/1001,Adult Social Care and Health,ASCH,Third Party Payments,EGA,03/03/2014,12-10031,4132.85,Countrywide Care Homes Ltd T/A Clum,,,,,,,,,,,
Nottinghamshire County Council,1111/1001,Adult Social Care and Health,ASCH,Third Party Payments,EGA,03/03/2014,12-10032,5084.72,Danybryn Cheshire Home,,,,,,,,,,,
Nottinghamshire County Council,1111/1001,Adult Social Care and Health,ASCH,Third Party Payments,EGA,03/03/2014,12-10033,2964,Alexandra House Nursing Home,,,,,,,,,,,
Nottinghamshire County Council,1111/1001,Adult Social Care and Health,ASCH,Third Party Payments,EGA,03/03/2014,12-10034,15941.71,Alfred Minto House Residential Home,,,,,,,,,,,
Nottinghamshire County Council,1111/1001,Adult Social Care and Health,ASCH,Third Party Payments,EGA,03/03/2014,12-10035,3765.43,Lawn Park Nursing Home,,,,,,,,,,,
Nottinghamshire County Council,1111/1001,Adult Social Care and Health,ASCH,Third Party Payments,EGA,03/03/2014,12-10036,990.86,Ashley House Nursing Home,,,,,,,,,,,
Nottinghamshire County Council,1111/1001,Adult Social Care and Health,ASCH,Third Party Payments,EGA,03/03/2014,12-10037,5650,Aslockton Hall Nursing Home,,,,,,,,,,,
Nottinghamshire County Council,1111/1001,Adult Social Care and Health,ASCH,Third Party Payments,EGA,03/03/2014,12-10038,8678.57,Forest Hill Nursing Home,,,,,,,,,,,
Nottinghamshire County Council,1111/1001,Adult Social Care and Health,ASCH,Third Party Payments,EGA,03/03/2014,12-10040,1326,Red Rose Nursing Home,,,,,,,,,,,
Nottinghamshire County Council,1111/1001,Adult Social Care and Health,ASCH,Third Party Payments,EGA,03/03/2014,12-10041,992,Red Rose Nursing Home,,,,,,,,,,,
Nottinghamshire County Council,1111/1001,Adult Social Care and Health,ASCH,Third Party Payments,EGA,03/03/2014,12-10042,2258.29,Beech House Care Home Worksop Ltd,,,,,,,,,,,
Nottinghamshire County Council,1111/1001,Adult Social Care and Health,ASCH,Third Party Payments,EGA,03/03/2014,12-10043,1596,Old Vicarage-Doncaster,,,,,,,,,,,
Nottinghamshire County Council,1111/1001,Adult Social Care and Health,ASCH,Third Party Payments,EGA,03/03/2014,12-10044,586,Fbc Care Homes Ltd,,,,,,,,,,,
Nottinghamshire County Council,1111/1001,Adult Social Care and Health,ASCH,Third Party Payments,EGA,03/03/2014,12-10045,5549.15,Rose Court Lodge Care Home,,,,,,,,,,,
Nottinghamshire County Council,1111/1001,Adult Social Care and Health,ASCH,Third Party Payments,EGA,03/03/2014,12-10046,828,Hazelford Residential Home,,,,,,,,,,,
Nottinghamshire County Council,1111/1001,Adult Social Care and Health,ASCH,Third Party Payments,EGA,03/03/2014,12-10047,3072.57,Newgate Lodge Care Home,,,,,,,,,,,
Nottinghamshire County Council,1111/1001,Adult Social Care and Health,ASCH,Third Party Payments,EGA,03/03/2014,12-10048,2974.72,Hollybank Nursing Home,,,,,,,,,,,
Nottinghamshire County Council,1111/1001,Adult Social Care and Health,ASCH,Third Party Payments,EGA,03/03/2014,12-10049,1872,The Hollies,,,,,,,,,,,
Nottinghamshire County Council,1111/1001,Adult Social Care and Health,ASCH,Third Party Payments,EGA,03/03/2014,12-10050,1872,The Hollies,,,,,,,,,,,
Nottinghamshire County Council,1111/1001,Adult Social Care and Health,ASCH,Third Party Payments,EGA,03/03/2014,12-10051,936,The Hollies,,,,,,,,,,,
Nottinghamshire County Council,1111/1001,Adult Social Care and Health,ASCH,Third Party Payments,EGA,03/03/2014,12-10052,1872,The Hollies,,,,,,,,,,,
Nottinghamshire County Council,1111/1001,Adult Social Care and Health,ASCH,Third Party Payments,EGA,03/03/2014,12-10053,1872,The Hollies,,,,,,,,,,,
Nottinghamshire County Council,1111/1001,Adult Social Care and Health,ASCH,Third Party Payments,EGA,03/03/2014,12-10054,1872,The Hollies,,,,,,,,,,,
Nottinghamshire County Council,1111/1001,Adult Social Care and Health,ASCH,Third Party Payments,EGA,03/03/2014,12-10055,1872,The Hollies,,,,,,,,,,,
Nottinghamshire County Council,1111/1001,Adult Social Care and Health,ASCH,Third Party Payments,EGA,03/03/2014,12-10056,1872,The Hollies,,,,,,,,,,,
Nottinghamshire County Council,1111/1001,Adult Social Care and Health,ASCH,Third Party Payments,EGA,03/03/2014,12-10057,1872,The Hollies,,,,,,,,,,,
Nottinghamshire County Council,1111/1001,Adult Social Care and Health,ASCH,Third Party Payments,EGA,03/03/2014,12-10058,1872,The Hollies,,,,,,,,,,,
Nottinghamshire County Council,1111/1001,Adult Social Care and Health,ASCH,Third Party Payments,EGA,03/03/2014,12-10059,1872,The Hollies,,,,,,,,,,,
Nottinghamshire County Council,1111/1001,Adult Social Care and Health,ASCH,Third Party Payments,EGA,03/03/2014,12-10060,978,The Troc Residential Home,,,,,,,,,,,
Nottinghamshire County Council,1111/1001,Adult Social Care and Health,ASCH,Third Party Payments,EGA,03/03/2014,12-10061,1250,Balmore Country House,,,,,,,,,,,
Nottinghamshire County Council,1111/1001,Adult Social Care and Health,ASCH,Third Party Payments,EGA,03/03/2014,12-10062,1832,Balmore Country House,,,,,,,,,,,
Nottinghamshire County Council,1111/1001,Adult Social Care and Health,ASCH,Third Party Payments,EGA,03/03/2014,12-10063,5910,Field House Nursing Home,,,,,,,,,,,
Nottinghamshire County Council,1111/1001,Adult Social Care and Health,ASCH,Third Party Payments,EGA,03/03/2014,12-10064,4416,Autism Plus Ltd,,,,,,,,,,,
Nottinghamshire County Council,1111/1001,Adult Social Care and Health,ASCH,Third Party Payments,EGA,03/03/2014,12-10065,1404,Bramcote House Nursing Home,,,,,,,,,,,
Nottinghamshire County Council,1111/1001,Adult Social Care and Health,ASCH,Third Party Payments,EGA,03/03/2014,12-10066,1596,Rose Lodge,,,,,,,,,,,
Nottinghamshire County Council,1111/1001,Adult Social Care and Health,ASCH,Third Party Payments,EGA,03/03/2014,12-10067,1692,Rose Lodge,,,,,,,,,,,
Nottinghamshire County Council,1111/1001,Adult Social Care and Health,ASCH,Third Party Payments,EGA,03/03/2014,12-10068,1908,Rose Lodge,,,,,,,,,,,
Nottinghamshire County Council,1111/1001,Adult Social Care and Health,ASCH,Third Party Payments,EGA,03/03/2014,12-10069,2060,Rose Lodge,,,,,,,,,,,
Nottinghamshire County Council,1111/1001,Adult Social Care and Health,ASCH,Third Party Payments,EGA,03/03/2014,12-10070,1596,Rose Lodge,,,,,,,,,,,
Nottinghamshire County Council,1111/1001,Adult Social Care and Health,ASCH,Third Party Payments,EGA,03/03/2014,12-10071,6240,Broadlands Care Home,,,,,,,,,,,
Nottinghamshire County Council,1111/1001,Adult Social Care and Health,ASCH,Third Party Payments,EGA,03/03/2014,12-10072,3392.86,The Farthings Care Home,,,,,,,,,,,
Nottinghamshire County Council,1111/1001,Adult Social Care and Health,ASCH,Third Party Payments,EGA,03/03/2014,12-10073,1768,Broadgate Nursing Home,,,,,,,,,,,
Nottinghamshire County Council,1111/1001,Adult Social Care and Health,ASCH,Third Party Payments,EGA,03/03/2014,12-10074,1984,Broadgate Nursing Home,,,,,,,,,,,
Nottinghamshire County Council,1111/1001,Adult Social Care and Health,ASCH,Third Party Payments,EGA,03/03/2014,12-10075,2525.71,Broadgate Nursing Home,,,,,,,,,,,
Nottinghamshire County Council,1111/1001,Adult Social Care and Health,ASCH,Third Party Payments,EGA,03/03/2014,12-10076,1984,Broadgate Nursing Home,,,,,,,,,,,
Nottinghamshire County Council,1111/1001,Adult Social Care and Health,ASCH,Third Party Payments,EGA,03/03/2014,12-10077,1984,Broadgate Nursing Home,,,,,,,,,,,
Nottinghamshire County Council,1111/1001,Adult Social Care and Health,ASCH,Third Party Payments,EGA,03/03/2014,12-10078,1984,Broadgate Nursing Home,,,,,,,,,,,
Nottinghamshire County Council,1111/1001,Adult Social Care and Health,ASCH,Third Party Payments,EGA,03/03/2014,12-10079,1984,Broadgate Nursing Home,,,,,,,,,,,
Nottinghamshire County Council,1111/1001,Adult Social Care and Health,ASCH,Third Party Payments,EGA,03/03/2014,12-10080,1984,Broadgate Nursing Home,,,,,,,,,,,
Nottinghamshire County Council,1111/1001,Adult Social Care and Health,ASCH,Third Party Payments,EGA,03/03/2014,12-10081,1968,Broadgate Nursing Home,,,,,,,,,,,
Nottinghamshire County Council,1111/1001,Adult Social Care and Health,ASCH,Third Party Payments,EGA,03/03/2014,12-10082,1984,Broadgate Nursing Home,,,,,,,,,,,
Nottinghamshire County Council,1111/1001,Adult Social Care and Health,ASCH,Third Party Payments,EGA,03/03/2014,12-10083,1136.57,Broadgate Nursing Home,,,,,,,,,,,
Nottinghamshire County Council,1111/1001,Adult Social Care and Health,ASCH,Third Party Payments,EGA,03/03/2014,12-10084,1984,Broadgate Nursing Home,,,,,,,,,,,
Nottinghamshire County Council,1111/1001,Adult Social Care and Health,ASCH,Third Party Payments,EGA,03/03/2014,12-10085,1984,Broadgate Nursing Home,,,,,,,,,,,
Nottinghamshire County Council,1111/1001,Adult Social Care and Health,ASCH,Third Party Payments,EGA,03/03/2014,12-10086,1984,Broadgate Nursing Home,,,,,,,,,,,
Nottinghamshire County Council,1111/1001,Adult Social Care and Health,ASCH,Third Party Payments,EGA,03/03/2014,12-10087,2610,Victoria Care Home,,,,,,,,,,,
Nottinghamshire County Council,1111/1001,Adult Social Care and Health,ASCH,Third Party Payments,EGA,03/03/2014,12-10088,3535.71,Bramble Lodge Residential Home,,,,,,,,,,,
Nottinghamshire County Council,1111/1001,Adult Social Care and Health,ASCH,Third Party Payments,EGA,03/03/2014,12-10089,2120,Bramble Lodge Residential Home,,,,,,,,,,,
Nottinghamshire County Council,1111/1001,Adult Social Care and Health,ASCH,Third Party Payments,EGA,03/03/2014,12-10090,921.14,Lound Hall Nursing Home,,,,,,,,,,,
Nottinghamshire County Council,1111/1001,Adult Social Care and Health,ASCH,Third Party Payments,EGA,03/03/2014,12-10091,2154.29,St Saviours Care Home,,,,,,,,,,,
Nottinghamshire County Council,1111/1001,Adult Social Care and Health,ASCH,Third Party Payments,EGA,03/03/2014,12-10092,1146,Cherry Holt Care Home,,,,,,,,,,,
Nottinghamshire County Council,1111/1001,Adult Social Care and Health,ASCH,Third Party Payments,EGA,03/03/2014,12-10093,7652,Lodge Farm,,,,,,,,,,,
Nottinghamshire County Council,1111/1001,Adult Social Care and Health,ASCH,Third Party Payments,EGA,03/03/2014,12-10094,3148.52,Whitwell Park Nursing Home,,,,,,,,,,,
Nottinghamshire County Council,1111/1001,Adult Social Care and Health,ASCH,Third Party Payments,EGA,03/03/2014,12-10095,3654,Whitwell Park Nursing Home,,,,,,,,,,,
Nottinghamshire County Council,1111/1001,Adult Social Care and Health,ASCH,Third Party Payments,EGA,03/03/2014,12-10096,846.86,Sherwood House Res. Home,,,,,,,,,,,
Nottinghamshire County Council,1111/1001,Adult Social Care and Health,ASCH,Third Party Payments,EGA,03/03/2014,12-10097,2211.43,Willow Brook Nursing Home,,,,,,,,,,,
Nottinghamshire County Council,1111/1001,Adult Social Care and Health,ASCH,Third Party Payments,EGA,03/03/2014,12-10098,2550,Pathfinders Neurological Care Centr,,,,,,,,,,,
Nottinghamshire County Council,1111/1001,Adult Social Care and Health,ASCH,Third Party Payments,EGA,03/03/2014,12-10099,3764.29,Pathfinders Neurological Care Centr,,,,,,,,,,,
Nottinghamshire County Council,1111/1001,Adult Social Care and Health,ASCH,Third Party Payments,EGA,03/03/2014,12-10100,3268.57,Rylands Residential Care Home,,,,,,,,,,,
Nottinghamshire County Council,1111/1001,Adult Social Care and Health,ASCH,Third Party Payments,EGA,03/03/2014,12-10101,2160.92,Bystock Court,,,,,,,,,,,
Nottinghamshire County Council,1111/1001,Adult Social Care and Health,ASCH,Third Party Payments,EGA,03/03/2014,12-10102,1617,Beechdale House Nursing Home,,,,,,,,,,,
Nottinghamshire County Council,1111/1001,Adult Social Care and Health,ASCH,Third Party Payments,EGA,03/03/2014,12-10103,2399.43,Southwell Court Care Home,,,,,,,,,,,
Nottinghamshire County Council,1111/1001,Adult Social Care and Health,ASCH,Third Party Payments,EGA,03/03/2014,12-10104,1617,Alexandra Lodge,,,,,,,,,,,
Nottinghamshire County Council,1111/1001,Adult Social Care and Health,ASCH,Third Party Payments,EGA,03/03/2014,12-10105,1617,Alexandra Lodge,,,,,,,,,,,
Nottinghamshire County Council,1111/1001,Adult Social Care and Health,ASCH,Third Party Payments,EGA,03/03/2014,12-10106,1439.14,Clipstone Hall Care Home,,,,,,,,,,,
Nottinghamshire County Council,1111/1001,Adult Social Care and Health,ASCH,Third Party Payments,EGA,03/03/2014,12-10107,13714.29,Innova House,,,,,,,,,,,
Nottinghamshire County Council,1111/1001,Adult Social Care and Health,ASCH,Third Party Payments,EGA,03/03/2014,12-10108,1203.43,Kestrel Lodge House,,,,,,,,,,,
Nottinghamshire County Council,1111/1001,Adult Social Care and Health,ASCH,Third Party Payments,EGA,03/03/2014,12-10109,667,Oakdene Care Centre,,,,,,,,,,,
Nottinghamshire County Council,1111/1001,Adult Social Care and Health,ASCH,Third Party Payments,EGA,03/03/2014,12-10110,1644,Westvilla Nursing Home,,,,,,,,,,,
Nottinghamshire County Council,1111/1001,Adult Social Care and Health,ASCH,Third Party Payments,EGA,03/03/2014,12-10111,1565.71,Westvilla Nursing Home,,,,,,,,,,,
Nottinghamshire County Council,1111/1001,Adult Social Care and Health,ASCH,Third Party Payments,EGA,03/03/2014,12-10112,5304,Bywater Hall,,,,,,,,,,,
Nottinghamshire County Council,1111/1001,Adult Social Care and Health,ASCH,Third Party Payments,EGA,03/03/2014,12-10113,5304,Bywater Hall,,,,,,,,,,,
Nottinghamshire County Council,1111/1001,Adult Social Care and Health,ASCH,Third Party Payments,EGA,03/03/2014,12-10114,5092.2,Bywater Hall,,,,,,,,,,,
Nottinghamshire County Council,1111/1001,Adult Social Care and Health,ASCH,Third Party Payments,EGA,03/03/2014,12-10115,1326,Forest Manor Care Home,,,,,,,,,,,
Nottinghamshire County Council,1111/1001,Adult Social Care and Health,ASCH,Third Party Payments,EGA,03/03/2014,12-10116,4862,Forest Manor Care Home,,,,,,,,,,,
Nottinghamshire County Council,1111/1001,Adult Social Care and Health,ASCH,Third Party Payments,EGA,03/03/2014,12-10117,8060.49,Beechdale Manor Care Home,,,,,,,,,,,
Nottinghamshire County Council,1111/1001,Adult Social Care and Health,ASCH,Third Party Payments,EGA,03/03/2014,12-10118,1212.75,Beechdale Manor Care Home,,,,,,,,,,,
Nottinghamshire County Council,1111/1001,Adult Social Care and Health,ASCH,Third Party Payments,EGA,03/03/2014,12-10119,808.5,Beechdale Manor Care Home,,,,,,,,,,,
Nottinghamshire County Council,1111/1001,Adult Social Care and Health,ASCH,Third Party Payments,EGA,03/03/2014,12-10120,1340.86,Braywood Gardens,,,,,,,,,,,
Nottinghamshire County Council,1111/1001,Adult Social Care and Health,ASCH,Third Party Payments,EGA,03/03/2014,12-10121,1482,Jubilee Court,,,,,,,,,,,
Nottinghamshire County Council,1111/1001,Adult Social Care and Health,ASCH,Third Party Payments,EGA,03/03/2014,12-10122,5151.72,Jubilee Court,,,,,,,,,,,
Nottinghamshire County Council,1111/1001,Adult Social Care and Health,ASCH,Third Party Payments,EGA,03/03/2014,12-10123,3175.71,Jubilee Court,,,,,,,,,,,
Nottinghamshire County Council,1111/1001,Adult Social Care and Health,ASCH,Third Party Payments,EGA,03/03/2014,12-10124,891.43,Westwood,,,,,,,,,,,
Nottinghamshire County Council,1111/1001,Adult Social Care and Health,ASCH,Third Party Payments,EGA,03/03/2014,12-10125,1976,Leawood Manor,,,,,,,,,,,
Nottinghamshire County Council,1111/1001,Adult Social Care and Health,ASCH,Third Party Payments,EGA,03/03/2014,12-10126,5139.6,Rowan Garth Nursing Home,,,,,,,,,,,
Nottinghamshire County Council,1111/1001,Adult Social Care and Health,ASCH,Third Party Payments,EGA,03/03/2014,12-10128,1000,The Manor Residential Home (Arnold),,,,,,,,,,,
Nottinghamshire County Council,1111/1001,Adult Social Care and Health,ASCH,Third Party Payments,EGA,03/03/2014,12-10129,522,Sherwood Grange Care Ltd,,,,,,,,,,,
Nottinghamshire County Council,1111/1001,Adult Social Care and Health,ASCH,Third Party Payments,EGA,03/03/2014,12-10130,5200,Iden Manor Nursing Home,,,,,,,,,,,
Nottinghamshire County Council,1111/1001,Adult Social Care and Health,ASCH,Third Party Payments,EGA,03/03/2014,12-10131,1971.52,Westbury Court Care Home,,,,,,,,,,,
Nottinghamshire County Council,1111/1001,Adult Social Care and Health,ASCH,Third Party Payments,EGA,03/03/2014,12-10132,2498.57,Ashley House Nursing Home,,,,,,,,,,,
Nottinghamshire County Council,1111/1001,Adult Social Care and Health,ASCH,Third Party Payments,EGA,04/03/2014,12-10135,6499.17,Aspirations (Midlands) Ltd,,,,,,,,,,,
Nottinghamshire County Council,1111/1001,Adult Social Care and Health,ASCH,Third Party Payments,EGA,06/03/2014,12-10159,1558.86,Bramcote Hills Care Home,,,,,,,,,,,
Nottinghamshire County Council,1111/1001,Adult Social Care and Health,ASCH,Third Party Payments,EGA,06/03/2014,12-10160,884,Avalon Nursing Home,,,,,,,,,,,
Nottinghamshire County Council,1111/1001,Adult Social Care and Health,ASCH,Third Party Payments,EGA,06/03/2014,12-10161,1771.43,Silverwood Care Home,,,,,,,,,,,
Nottinghamshire County Council,1111/1001,Adult Social Care and Health,ASCH,Third Party Payments,EGA,06/03/2014,12-10162,1881,Charnwood House,,,,,,,,,,,
Nottinghamshire County Council,1111/1001,Adult Social Care and Health,ASCH,Third Party Payments,EGA,06/03/2014,12-10163,2340,Four Seasons (Bamford) Ltd - Old Vi,,,,,,,,,,,
Nottinghamshire County Council,1111/1001,Adult Social Care and Health,ASCH,Third Party Payments,EGA,06/03/2014,12-10164,1340.86,Edward House Care Home,,,,,,,,,,,
Nottinghamshire County Council,1111/1001,Adult Social Care and Health,ASCH,Third Party Payments,EGA,06/03/2014,12-10165,1397.14,Tuxford Manor Care Home,,,,,,,,,,,
Nottinghamshire County Council,1111/1001,Adult Social Care and Health,ASCH,Third Party Payments,EGA,06/03/2014,12-10166,5075.14,Highfields Nursing Home,,,,,,,,,,,
Nottinghamshire County Council,1111/1001,Adult Social Care and Health,ASCH,Third Party Payments,EGA,06/03/2014,12-10167,18965.14,Alfred Minto House Residential Home,,,,,,,,,,,
Nottinghamshire County Council,1111/1001,Adult Social Care and Health,ASCH,Third Party Payments,EGA,06/03/2014,12-10168,578,Ashley House Nursing Home,,,,,,,,,,,
Nottinghamshire County Council,1111/1001,Adult Social Care and Health,ASCH,Third Party Payments,EGA,06/03/2014,12-10169,522,Forest Hill Nursing Home,,,,,,,,,,,
Nottinghamshire County Council,1111/1001,Adult Social Care and Health,ASCH,Third Party Payments,EGA,06/03/2014,12-10170,1545,Ashton Court,,,,,,,,,,,
Nottinghamshire County Council,1111/1001,Adult Social Care and Health,ASCH,Third Party Payments,EGA,06/03/2014,12-10171,978,Red Rose Nursing Home,,,,,,,,,,,
Nottinghamshire County Council,1111/1001,Adult Social Care and Health,ASCH,Third Party Payments,EGA,06/03/2014,12-10172,537,Red Rose Nursing Home,,,,,,,,,,,
Nottinghamshire County Council,1111/1001,Adult Social Care and Health,ASCH,Third Party Payments,EGA,06/03/2014,12-10173,586,Fbc Care Homes Ltd,,,,,,,,,,,
Nottinghamshire County Council,1111/1001,Adult Social Care and Health,ASCH,Third Party Payments,EGA,06/03/2014,12-10174,601.71,Rose Farm Care Home,,,,,,,,,,,
Nottinghamshire County Council,1111/1001,Adult Social Care and Health,ASCH,Third Party Payments,EGA,06/03/2014,12-10175,540,Newton House,,,,,,,,,,,
Nottinghamshire County Council,1111/1001,Adult Social Care and Health,ASCH,Third Party Payments,EGA,06/03/2014,12-10176,800,Four Seasons Homes (Ilkeston) Limit,,,,,,,,,,,
Nottinghamshire County Council,1111/1001,Adult Social Care and Health,ASCH,Third Party Payments,EGA,06/03/2014,12-10177,3543.43,Southmoor Lodge,,,,,,,,,,,
Nottinghamshire County Council,1111/1001,Adult Social Care and Health,ASCH,Third Party Payments,EGA,06/03/2014,12-10178,520,Sutton Manor,,,,,,,,,,,
Nottinghamshire County Council,1111/1001,Adult Social Care and Health,ASCH,Third Party Payments,EGA,06/03/2014,12-10179,666.29,Balmore Country House,,,,,,,,,,,
Nottinghamshire County Council,1111/1001,Adult Social Care and Health,ASCH,Third Party Payments,EGA,06/03/2014,12-10180,1872,Langwith Lodge,,,,,,,,,,,
Nottinghamshire County Council,1111/1001,Adult Social Care and Health,ASCH,Third Party Payments,EGA,06/03/2014,12-10181,1872,Langwith Lodge,,,,,,,,,,,
Nottinghamshire County Council,1111/1001,Adult Social Care and Health,ASCH,Third Party Payments,EGA,06/03/2014,12-10182,1872,Langwith Lodge,,,,,,,,,,,
Nottinghamshire County Council,1111/1001,Adult Social Care and Health,ASCH,Third Party Payments,EGA,06/03/2014,12-10183,1872,Langwith Lodge,,,,,,,,,,,
Nottinghamshire County Council,1111/1001,Adult Social Care and Health,ASCH,Third Party Payments,EGA,06/03/2014,12-10184,1872,Langwith Lodge,,,,,,,,,,,
Nottinghamshire County Council,1111/1001,Adult Social Care and Health,ASCH,Third Party Payments,EGA,06/03/2014,12-10185,1872,Langwith Lodge,,,,,,,,,,,
Nottinghamshire County Council,1111/1001,Adult Social Care and Health,ASCH,Third Party Payments,EGA,06/03/2014,12-10186,1872,Langwith Lodge,,,,,,,,,,,
Nottinghamshire County Council,1111/1001,Adult Social Care and Health,ASCH,Third Party Payments,EGA,06/03/2014,12-10187,617.14,Radcliffe Manor House,,,,,,,,,,,
Nottinghamshire County Council,1111/1001,Adult Social Care and Health,ASCH,Third Party Payments,EGA,06/03/2014,12-10189,6873.14,Broadgate Nursing Home,,,,,,,,,,,
Nottinghamshire County Council,1111/1001,Adult Social Care and Health,ASCH,Third Party Payments,EGA,06/03/2014,12-10190,1136.57,Broadgate Nursing Home,,,,,,,,,,,
Nottinghamshire County Council,1111/1001,Adult Social Care and Health,ASCH,Third Party Payments,EGA,06/03/2014,12-10191,2148,Shortwood House Rest Home,,,,,,,,,,,
Nottinghamshire County Council,1111/1001,Adult Social Care and Health,ASCH,Third Party Payments,EGA,06/03/2014,12-10192,1976,Shortwood House Rest Home,,,,,,,,,,,
Nottinghamshire County Council,1111/1001,Adult Social Care and Health,ASCH,Third Party Payments,EGA,06/03/2014,12-10193,2144,Shortwood House Rest Home,,,,,,,,,,,
Nottinghamshire County Council,1111/1001,Adult Social Care and Health,ASCH,Third Party Payments,EGA,06/03/2014,12-10194,1976,Shortwood House Rest Home,,,,,,,,,,,
Nottinghamshire County Council,1111/1001,Adult Social Care and Health,ASCH,Third Party Payments,EGA,06/03/2014,12-10195,1976,Shortwood House Rest Home,,,,,,,,,,,
Nottinghamshire County Council,1111/1001,Adult Social Care and Health,ASCH,Third Party Payments,EGA,06/03/2014,12-10196,1976,Shortwood House Rest Home,,,,,,,,,,,
Nottinghamshire County Council,1111/1001,Adult Social Care and Health,ASCH,Third Party Payments,EGA,06/03/2014,12-10197,2144,Shortwood House Rest Home,,,,,,,,,,,
Nottinghamshire County Council,1111/1001,Adult Social Care and Health,ASCH,Third Party Payments,EGA,06/03/2014,12-10198,573,Cherry Holt Care Home,,,,,,,,,,,
Nottinghamshire County Council,1111/1001,Adult Social Care and Health,ASCH,Third Party Payments,EGA,06/03/2014,12-10199,1976,Woodthorpe View Rest Home,,,,,,,,,,,
Nottinghamshire County Council,1111/1001,Adult Social Care and Health,ASCH,Third Party Payments,EGA,06/03/2014,12-10200,1976,Sherwood House Res. Home,,,,,,,,,,,
Nottinghamshire County Council,1111/1001,Adult Social Care and Health,ASCH,Third Party Payments,EGA,06/03/2014,12-10201,1976,Sherwood House Res. Home,,,,,,,,,,,
Nottinghamshire County Council,1111/1001,Adult Social Care and Health,ASCH,Third Party Payments,EGA,06/03/2014,12-10202,1976,Sherwood House Res. Home,,,,,,,,,,,
Nottinghamshire County Council,1111/1001,Adult Social Care and Health,ASCH,Third Party Payments,EGA,06/03/2014,12-10203,2452,Sherwood House Res. Home,,,,,,,,,,,
Nottinghamshire County Council,1111/1001,Adult Social Care and Health,ASCH,Third Party Payments,EGA,06/03/2014,12-10204,850,Pathfinders Neurological Care Centr,,,,,,,,,,,
Nottinghamshire County Council,1111/1001,Adult Social Care and Health,ASCH,Third Party Payments,EGA,06/03/2014,12-10206,1199.71,Southwell Court Care Home,,,,,,,,,,,
Nottinghamshire County Council,1111/1001,Adult Social Care and Health,ASCH,Third Party Payments,EGA,06/03/2014,12-10207,936,Clipstone Hall Care Home,,,,,,,,,,,
Nottinghamshire County Council,1111/1001,Adult Social Care and Health,ASCH,Third Party Payments,EGA,06/03/2014,12-10208,2427.86,Clipstone Hall Care Home,,,,,,,,,,,
Nottinghamshire County Council,1111/1001,Adult Social Care and Health,ASCH,Third Party Payments,EGA,06/03/2014,12-10209,548,Westvilla Nursing Home,,,,,,,,,,,
Nottinghamshire County Council,1111/1001,Adult Social Care and Health,ASCH,Third Party Payments,EGA,06/03/2014,12-10210,976,Heritage Care,,,,,,,,,,,
Nottinghamshire County Council,1111/1001,Adult Social Care and Health,ASCH,Third Party Payments,EGA,06/03/2014,12-10211,4862,Forest Manor Care Home,,,,,,,,,,,
Nottinghamshire County Council,1111/1001,Adult Social Care and Health,ASCH,Third Party Payments,EGA,06/03/2014,12-10212,1210,Portland Residential College,,,,,,,,,,,
Nottinghamshire County Council,1111/1001,Adult Social Care and Health,ASCH,Third Party Payments,EGA,06/03/2014,12-10213,776.29,Jubilee Court,,,,,,,,,,,
Nottinghamshire County Council,1111/1001,Adult Social Care and Health,ASCH,Third Party Payments,EGA,06/03/2014,12-10214,988,Jubilee Court,,,,,,,,,,,
Nottinghamshire County Council,1111/1001,Adult Social Care and Health,ASCH,Third Party Payments,EGA,06/03/2014,12-10215,635.14,Jubilee Court,,,,,,,,,,,
Nottinghamshire County Council,1111/1001,Adult Social Care and Health,ASCH,Third Party Payments,EGA,06/03/2014,12-10216,1485.71,Westwood,,,,,,,,,,,
Nottinghamshire County Council,1111/1001,Adult Social Care and Health,ASCH,Third Party Payments,EGA,06/03/2014,12-10217,2210,Coppice Lodge,,,,,,,,,,,
Nottinghamshire County Council,1111/1001,Adult Social Care and Health,ASCH,Third Party Payments,EGA,06/03/2014,12-10218,8424,Bowbridge Court,,,,,,,,,,,
Nottinghamshire County Council,1111/1001,Adult Social Care and Health,ASCH,Third Party Payments,EGA,06/03/2014,12-10219,2300.01,The Vines,,,,,,,,,,,
Nottinghamshire County Council,1111/1001,Adult Social Care and Health,ASCH,Third Party Payments,EGA,06/03/2014,12-10220,3206.08,Hall Park Care Home,,,,,,,,,,,
Nottinghamshire County Council,1111/1001,Adult Social Care and Health,ASCH,Third Party Payments,EGA,06/03/2014,12-10221,1756,Greenacres Care Home,,,,,,,,,,,
Nottinghamshire County Council,1111/1001,Adult Social Care and Health,ASCH,Third Party Payments,EGA,06/03/2014,12-10222,2428.57,Lancaster Grange Newark,,,,,,,,,,,
Nottinghamshire County Council,1111/1001,Adult Social Care and Health,ASCH,Third Party Payments,EGA,06/03/2014,12-10223,7254.45,Evelyn May House,,,,,,,,,,,
Nottinghamshire County Council,1111/1001,Adult Social Care and Health,ASCH,Third Party Payments,EGA,06/03/2014,12-10224,5057.64,Ridgeway Nursing Home,,,,,,,,,,,
Nottinghamshire County Council,1111/1001,Adult Social Care and Health,ASCH,Third Party Payments,EGA,06/03/2014,12-10226,5199.13,Workwise Healthcare Ltd,,,,,,,,,,,
Nottinghamshire County Council,1111/1001,Adult Social Care and Health,ASCH,Third Party Payments,EGA,06/03/2014,12-10227,1102.56,Always There Homecare Ltd,,,,,,,,,,,
Nottinghamshire County Council,1111/1001,Adult Social Care and Health,ASCH,Third Party Payments,EGA,06/03/2014,12-10228,2017.3,Always There Homecare Ltd,,,,,,,,,,,
Nottinghamshire County Council,1111/1001,Adult Social Care and Health,ASCH,Third Party Payments,EGA,06/03/2014,12-10229,4846.98,Medico Nursing & Homecare,,,,,,,,,,,
Nottinghamshire County Council,1111/1001,Adult Social Care and Health,ASCH,Third Party Payments,EGA,06/03/2014,12-10230,2194.35,Westminster Homecare Ltd,,,,,,,,,,,
Nottinghamshire County Council,1111/1001,Adult Social Care and Health,ASCH,Third Party Payments,EGA,06/03/2014,12-10231,3297.06,Direct Health (uk) Ltd,,,,,,,,,,,
Nottinghamshire County Council,1111/1001,Adult Social Care and Health,ASCH,Third Party Payments,EGA,06/03/2014,12-10232,10740.39,Leda Homecare Ltd,,,,,,,,,,,
Nottinghamshire County Council,1111/1001,Adult Social Care and Health,ASCH,Third Party Payments,EGA,06/03/2014,12-10233,2699.48,Housing 21,,,,,,,,,,,
Nottinghamshire County Council,1111/1001,Adult Social Care and Health,ASCH,Third Party Payments,EGA,06/03/2014,12-10234,5290.4,Home Care Solution Ltd,,,,,,,,,,,
Nottinghamshire County Council,1111/1001,Adult Social Care and Health,ASCH,Third Party Payments,EGA,06/03/2014,12-10235,1592.12,Crossroads Care East Midlands,,,,,,,,,,,
Nottinghamshire County Council,1111/1001,Adult Social Care and Health,ASCH,Third Party Payments,EGA,06/03/2014,12-10236,1303.54,North Notts Crossroads Care,,,,,,,,,,,
Nottinghamshire County Council,1111/1001,Adult Social Care and Health,ASCH,Third Party Payments,EGA,06/03/2014,12-10237,2694.06,The Human Support Group,,,,,,,,,,,
Nottinghamshire County Council,1111/1001,Adult Social Care and Health,ASCH,Third Party Payments,EGA,06/03/2014,12-10238,4584.98,Mears Care Ltd,,,,,,,,,,,
Nottinghamshire County Council,1111/1001,Adult Social Care and Health,ASCH,Third Party Payments,EGA,06/03/2014,12-10239,7532.9,Priority Homecare Ltd,,,,,,,,,,,
Nottinghamshire County Council,1111/1001,Adult Social Care and Health,ASCH,Third Party Payments,EGA,06/03/2014,12-10240,8881.33,Sterling Homecare Ltd,,,,,,,,,,,
Nottinghamshire County Council,1111/1001,Adult Social Care and Health,ASCH,Third Party Payments,EGA,06/03/2014,12-10241,10376.7,Sterling Homecare Ltd,,,,,,,,,,,
Nottinghamshire County Council,1111/1001,Adult Social Care and Health,ASCH,Third Party Payments,EGA,06/03/2014,12-10242,4409.09,North Notts Crossroads Care,,,,,,,,,,,
Nottinghamshire County Council,1111/1001,Adult Social Care and Health,ASCH,Third Party Payments,EGA,06/03/2014,12-10243,2278.17,Priority Homecare Ltd,,,,,,,,,,,
Nottinghamshire County Council,1111/1001,Adult Social Care and Health,ASCH,Third Party Payments,EGA,06/03/2014,12-10244,1714.36,Mediline Nurses & Carers Ltd,,,,,,,,,,,
Nottinghamshire County Council,1111/1001,Adult Social Care and Health,ASCH,Third Party Payments,EGA,06/03/2014,12-10245,4691.59,Westminster Homecare Ltd,,,,,,,,,,,
Nottinghamshire County Council,1111/1001,Adult Social Care and Health,ASCH,Third Party Payments,EGA,06/03/2014,12-10246,1821.68,Housing 21,,,,,,,,,,,
Nottinghamshire County Council,1111/1001,Adult Social Care and Health,ASCH,Third Party Payments,EGA,06/03/2014,12-10247,1190.48,Direct Health (uk) Ltd,,,,,,,,,,,
Nottinghamshire County Council,1111/1001,Adult Social Care and Health,ASCH,Third Party Payments,EGA,06/03/2014,12-10248,7401.75,Sterling Homecare Ltd,,,,,,,,,,,
Nottinghamshire County Council,1111/1001,Adult Social Care and Health,ASCH,Third Party Payments,EGA,06/03/2014,12-10249,5864.19,Calverton Supreme Home Care Ltd,,,,,,,,,,,
Nottinghamshire County Council,1111/1001,Adult Social Care and Health,ASCH,Third Party Payments,EGA,06/03/2014,12-10250,2677.86,Mears Care Ltd,,,,,,,,,,,
Nottinghamshire County Council,1111/1001,Adult Social Care and Health,ASCH,Third Party Payments,EGA,06/03/2014,12-10251,632.27,Priority Homecare Ltd,,,,,,,,,,,
Nottinghamshire County Council,1111/1001,Adult Social Care and Health,ASCH,Third Party Payments,EGA,06/03/2014,12-10252,8976.34,Care Uk Homecare Ltd,,,,,,,,,,,
Nottinghamshire County Council,1111/1001,Adult Social Care and Health,ASCH,Third Party Payments,EGA,06/03/2014,12-10253,3147.08,Rainbow Care Services Ltd,,,,,,,,,,,
Nottinghamshire County Council,1111/1001,Adult Social Care and Health,ASCH,Third Party Payments,EGA,06/03/2014,12-10254,6868.7,Hatzfeld Care Ltd,,,,,,,,,,,
Nottinghamshire County Council,1111/1001,Adult Social Care and Health,ASCH,Third Party Payments,EGA,06/03/2014,12-10255,9723.46,Crossroads Care East Midlands,,,,,,,,,,,
Nottinghamshire County Council,1111/1001,Adult Social Care and Health,ASCH,Third Party Payments,EGA,06/03/2014,12-10256,6070.47,Priority Homecare Ltd,,,,,,,,,,,
Nottinghamshire County Council,1111/1001,Adult Social Care and Health,ASCH,Third Party Payments,EGA,06/03/2014,12-10257,1194.33,Premier Nursing Agency Ltd,,,,,,,,,,,
Nottinghamshire County Council,1111/1001,Adult Social Care and Health,ASCH,Third Party Payments,EGA,06/03/2014,12-10258,1237.28,Notts Homecare Ltd,,,,,,,,,,,
Nottinghamshire County Council,1111/1001,Adult Social Care and Health,ASCH,Third Party Payments,EGA,06/03/2014,12-10259,1918.45,Hatzfeld Care Ltd,,,,,,,,,,,
Nottinghamshire County Council,1111/1001,Adult Social Care and Health,ASCH,Third Party Payments,EGA,06/03/2014,12-10260,677.73,Leda Homecare Ltd,,,,,,,,,,,
Nottinghamshire County Council,1111/1001,Adult Social Care and Health,ASCH,Third Party Payments,EGA,06/03/2014,12-10261,2490.49,Care Uk Homecare Ltd,,,,,,,,,,,
Nottinghamshire County Council,1111/1001,Adult Social Care and Health,ASCH,Third Party Payments,EGA,06/03/2014,12-10262,825.72,Premier Nursing Agency Ltd,,,,,,,,,,,
Nottinghamshire County Council,1111/1001,Adult Social Care and Health,ASCH,Third Party Payments,EGA,06/03/2014,12-10263,895.41,Home Care Solution Ltd,,,,,,,,,,,
Nottinghamshire County Council,1111/1001,Adult Social Care and Health,ASCH,Third Party Payments,EGA,06/03/2014,12-10264,12863.97,Care Uk Homecare Ltd,,,,,,,,,,,
Nottinghamshire County Council,1111/1001,Adult Social Care and Health,ASCH,Third Party Payments,EGA,06/03/2014,12-10265,6872.51,North Notts Crossroads Care,,,,,,,,,,,
Nottinghamshire County Council,1111/1001,Adult Social Care and Health,ASCH,Third Party Payments,EGA,06/03/2014,12-10266,1386.71,North Notts Crossroads Care,,,,,,,,,,,
Nottinghamshire County Council,1111/1001,Adult Social Care and Health,ASCH,Third Party Payments,EGA,06/03/2014,12-10267,6099.08,Sterling Homecare Ltd,,,,,,,,,,,
Nottinghamshire County Council,1111/1001,Adult Social Care and Health,ASCH,Third Party Payments,EGA,06/03/2014,12-10268,1449.8,Sterling Homecare Ltd,,,,,,,,,,,
Nottinghamshire County Council,1111/1001,Adult Social Care and Health,ASCH,Third Party Payments,EGA,06/03/2014,12-10269,3145.43,Priority Homecare Ltd,,,,,,,,,,,
Nottinghamshire County Council,1111/1001,Adult Social Care and Health,ASCH,Third Party Payments,EGA,06/03/2014,12-10270,10728.96,Mears Care Ltd,,,,,,,,,,,
Nottinghamshire County Council,1111/1001,Adult Social Care and Health,ASCH,Third Party Payments,EGA,06/03/2014,12-10271,849.74,Medico Nursing & Homecare,,,,,,,,,,,
Nottinghamshire County Council,1111/1001,Adult Social Care and Health,ASCH,Third Party Payments,EGA,06/03/2014,12-10272,4092.1,Notts Homecare Ltd,,,,,,,,,,,
Nottinghamshire County Council,1111/1001,Adult Social Care and Health,ASCH,Third Party Payments,EGA,06/03/2014,12-10273,3721.22,Hatzfeld Care Ltd,,,,,,,,,,,
Nottinghamshire County Council,1111/1001,Adult Social Care and Health,ASCH,Third Party Payments,EGA,06/03/2014,12-10274,696.67,Medico Nursing & Homecare,,,,,,,,,,,
Nottinghamshire County Council,1111/1001,Adult Social Care and Health,ASCH,Third Party Payments,EGA,06/03/2014,12-10275,1064.93,Crossroads Care East Midlands,,,,,,,,,,,
Nottinghamshire County Council,1111/1001,Adult Social Care and Health,ASCH,Third Party Payments,EGA,06/03/2014,12-10276,663.46,Housing 21,,,,,,,,,,,
Nottinghamshire County Council,1111/1001,Adult Social Care and Health,ASCH,Third Party Payments,EGA,06/03/2014,12-10277,649,Always There Homecare Ltd,,,,,,,,,,,
Nottinghamshire County Council,1111/1001,Adult Social Care and Health,ASCH,Third Party Payments,EGA,06/03/2014,12-10278,5997.65,Westminster Homecare Ltd,,,,,,,,,,,
Nottinghamshire County Council,1111/1001,Adult Social Care and Health,ASCH,Third Party Payments,EGA,06/03/2014,12-10279,13301.77,Direct Health (uk) Ltd,,,,,,,,,,,
Nottinghamshire County Council,1111/1001,Adult Social Care and Health,ASCH,Third Party Payments,EGA,06/03/2014,12-10280,573.28,Housing 21,,,,,,,,,,,
Nottinghamshire County Council,1111/1001,Adult Social Care and Health,ASCH,Third Party Payments,EGA,06/03/2014,12-10281,6572.2,Care Uk Homecare Ltd,,,,,,,,,,,
Nottinghamshire County Council,1111/1001,Adult Social Care and Health,ASCH,Third Party Payments,EGA,06/03/2014,12-10282,9029.22,Sterling Homecare Ltd,,,,,,,,,,,
Nottinghamshire County Council,1111/1001,Adult Social Care and Health,ASCH,Third Party Payments,EGA,06/03/2014,12-10283,3713.85,Medico Nursing & Homecare,,,,,,,,,,,
Nottinghamshire County Council,1111/1001,Adult Social Care and Health,ASCH,Third Party Payments,EGA,06/03/2014,12-10284,1354.27,Housing 21,,,,,,,,,,,
Nottinghamshire County Council,1111/1001,Adult Social Care and Health,ASCH,Third Party Payments,EGA,06/03/2014,12-10285,874.03,Premier Nursing Agency Ltd,,,,,,,,,,,
Nottinghamshire County Council,1111/1001,Adult Social Care and Health,ASCH,Third Party Payments,EGA,06/03/2014,12-10286,929.15,Amg Nursing & Care Services Ltd,,,,,,,,,,,
Nottinghamshire County Council,1111/1001,Adult Social Care and Health,ASCH,Third Party Payments,EGA,06/03/2014,12-10287,7530.49,Leda Homecare Ltd,,,,,,,,,,,
Nottinghamshire County Council,1111/1001,Adult Social Care and Health,ASCH,Third Party Payments,EGA,06/03/2014,12-10288,2113.48,Hatzfeld Care Ltd,,,,,,,,,,,
Nottinghamshire County Council,1111/1001,Adult Social Care and Health,ASCH,Third Party Payments,EGA,06/03/2014,12-10289,804.49,Mediline Nurses & Carers Ltd,,,,,,,,,,,
Nottinghamshire County Council,1111/1001,Adult Social Care and Health,ASCH,Third Party Payments,EGA,06/03/2014,12-10290,8159.63,Direct Health (uk) Ltd,,,,,,,,,,,
Nottinghamshire County Council,1111/1001,Adult Social Care and Health,ASCH,Third Party Payments,EGA,06/03/2014,12-10291,5572.11,Workwise Healthcare Ltd,,,,,,,,,,,
Nottinghamshire County Council,1111/1001,Adult Social Care and Health,ASCH,Third Party Payments,EGA,06/03/2014,12-10292,4187.69,Direct Health (uk) Ltd,,,,,,,,,,,
Nottinghamshire County Council,1111/1001,Adult Social Care and Health,ASCH,Third Party Payments,EGA,06/03/2014,12-10293,20382.2,Direct Health (uk) Ltd,,,,,,,,,,,
Nottinghamshire County Council,1111/1001,Adult Social Care and Health,ASCH,Third Party Payments,EGA,06/03/2014,12-10294,933.26,The Human Support Group,,,,,,,,,,,
Nottinghamshire County Council,1111/1001,Adult Social Care and Health,ASCH,Third Party Payments,EGA,06/03/2014,12-10295,1576.14,Medico Nursing & Homecare,,,,,,,,,,,
Nottinghamshire County Council,1111/1001,Adult Social Care and Health,ASCH,Third Party Payments,EGA,06/03/2014,12-10296,763.28,Care UK Learning Disabilities Servi,,,,,,,,,,,
Nottinghamshire County Council,1111/1001,Adult Social Care and Health,ASCH,Third Party Payments,EGA,10/03/2014,12-10371,1768,Barnby Court Care Home,,,,,,,,,,,
Nottinghamshire County Council,1111/1001,Adult Social Care and Health,ASCH,Third Party Payments,EGA,10/03/2014,12-10372,3819,Charnwood House,,,,,,,,,,,
Nottinghamshire County Council,1111/1001,Adult Social Care and Health,ASCH,Third Party Payments,EGA,10/03/2014,12-10373,3021,Charnwood House,,,,,,,,,,,
Nottinghamshire County Council,1111/1001,Adult Social Care and Health,ASCH,Third Party Payments,EGA,10/03/2014,12-10374,884,Poplars Nursing Home,,,,,,,,,,,
Nottinghamshire County Council,1111/1001,Adult Social Care and Health,ASCH,Third Party Payments,EGA,10/03/2014,12-10375,884,Churchfield Drive Care Home,,,,,,,,,,,
Nottinghamshire County Council,1111/1001,Adult Social Care and Health,ASCH,Third Party Payments,EGA,10/03/2014,12-10376,884,Stoneyford Christian Nursing Home,,,,,,,,,,,
Nottinghamshire County Council,1111/1001,Adult Social Care and Health,ASCH,Third Party Payments,EGA,10/03/2014,12-10377,3346.57,Berry Hill Park,,,,,,,,,,,
Nottinghamshire County Council,1111/1001,Adult Social Care and Health,ASCH,Third Party Payments,EGA,10/03/2014,12-10378,2210,Berry Hill Park,,,,,,,,,,,
Nottinghamshire County Council,1111/1001,Adult Social Care and Health,ASCH,Third Party Payments,EGA,10/03/2014,12-10379,3346.57,Tuxford Manor Care Home,,,,,,,,,,,
Nottinghamshire County Council,1111/1001,Adult Social Care and Health,ASCH,Third Party Payments,EGA,10/03/2014,12-10380,515,Ashton Court,,,,,,,,,,,
Nottinghamshire County Council,1111/1001,Adult Social Care and Health,ASCH,Third Party Payments,EGA,10/03/2014,12-10381,1044,Countrywide Care Homes Ltd T/A Gate,,,,,,,,,,,
Nottinghamshire County Council,1111/1001,Adult Social Care and Health,ASCH,Third Party Payments,EGA,10/03/2014,12-10382,2632.29,Countrywide Care Homes Ltd T/A Gate,,,,,,,,,,,
Nottinghamshire County Council,1111/1001,Adult Social Care and Health,ASCH,Third Party Payments,EGA,10/03/2014,12-10383,1872,Countrywide Care Homes Ltd T/A Gate,,,,,,,,,,,
Nottinghamshire County Council,1111/1001,Adult Social Care and Health,ASCH,Third Party Payments,EGA,10/03/2014,12-10384,5180.8,Chartwell Care Services Ltd,,,,,,,,,,,
Nottinghamshire County Council,1111/1001,Adult Social Care and Health,ASCH,Third Party Payments,EGA,10/03/2014,12-10385,1976,Hazel Grove Nursing Home,,,,,,,,,,,
Nottinghamshire County Council,1111/1001,Adult Social Care and Health,ASCH,Third Party Payments,EGA,10/03/2014,12-10386,1976,Hazel Grove Nursing Home,,,,,,,,,,,
Nottinghamshire County Council,1111/1001,Adult Social Care and Health,ASCH,Third Party Payments,EGA,10/03/2014,12-10387,2192,Hazel Grove Nursing Home,,,,,,,,,,,
Nottinghamshire County Council,1111/1001,Adult Social Care and Health,ASCH,Third Party Payments,EGA,10/03/2014,12-10388,1976,Hazel Grove Nursing Home,,,,,,,,,,,
Nottinghamshire County Council,1111/1001,Adult Social Care and Health,ASCH,Third Party Payments,EGA,10/03/2014,12-10389,2192,Hazel Grove Nursing Home,,,,,,,,,,,
Nottinghamshire County Council,1111/1001,Adult Social Care and Health,ASCH,Third Party Payments,EGA,10/03/2014,12-10391,2136,Hazel Grove Nursing Home,,,,,,,,,,,
Nottinghamshire County Council,1111/1001,Adult Social Care and Health,ASCH,Third Party Payments,EGA,10/03/2014,12-10392,1976,Hazel Grove Nursing Home,,,,,,,,,,,
Nottinghamshire County Council,1111/1001,Adult Social Care and Health,ASCH,Third Party Payments,EGA,10/03/2014,12-10393,1976,Hazel Grove Nursing Home,,,,,,,,,,,
Nottinghamshire County Council,1111/1001,Adult Social Care and Health,ASCH,Third Party Payments,EGA,10/03/2014,12-10394,2192,Hazel Grove Nursing Home,,,,,,,,,,,
Nottinghamshire County Council,1111/1001,Adult Social Care and Health,ASCH,Third Party Payments,EGA,10/03/2014,12-10395,2256,Hazel Grove Nursing Home,,,,,,,,,,,
Nottinghamshire County Council,1111/1001,Adult Social Care and Health,ASCH,Third Party Payments,EGA,10/03/2014,12-10396,1976,Hazel Grove Nursing Home,,,,,,,,,,,
Nottinghamshire County Council,1111/1001,Adult Social Care and Health,ASCH,Third Party Payments,EGA,10/03/2014,12-10397,2192,Hazel Grove Nursing Home,,,,,,,,,,,
Nottinghamshire County Council,1111/1001,Adult Social Care and Health,ASCH,Third Party Payments,EGA,10/03/2014,12-10398,1976,Hazel Grove Nursing Home,,,,,,,,,,,
Nottinghamshire County Council,1111/1001,Adult Social Care and Health,ASCH,Third Party Payments,EGA,10/03/2014,12-10399,2192,Hazel Grove Nursing Home,,,,,,,,,,,
Nottinghamshire County Council,1111/1001,Adult Social Care and Health,ASCH,Third Party Payments,EGA,10/03/2014,12-10400,2244,Hazel Grove Nursing Home,,,,,,,,,,,
Nottinghamshire County Council,1111/1001,Adult Social Care and Health,ASCH,Third Party Payments,EGA,10/03/2014,12-10401,1976,Hazel Grove Nursing Home,,,,,,,,,,,
Nottinghamshire County Council,1111/1001,Adult Social Care and Health,ASCH,Third Party Payments,EGA,10/03/2014,12-10402,1976,Hazel Grove Nursing Home,,,,,,,,,,,
Nottinghamshire County Council,1111/1001,Adult Social Care and Health,ASCH,Third Party Payments,EGA,10/03/2014,12-10403,2674.29,Southmoor Lodge,,,,,,,,,,,
Nottinghamshire County Council,1111/1001,Adult Social Care and Health,ASCH,Third Party Payments,EGA,10/03/2014,12-10404,3405.36,St Catherines,,,,,,,,,,,
Nottinghamshire County Council,1111/1001,Adult Social Care and Health,ASCH,Third Party Payments,EGA,10/03/2014,12-10405,1048,Foxby Court Residential Home,,,,,,,,,,,
Nottinghamshire County Council,1111/1001,Adult Social Care and Health,ASCH,Third Party Payments,EGA,10/03/2014,12-10406,1708.57,Broadlands Care Home,,,,,,,,,,,
Nottinghamshire County Council,1111/1001,Adult Social Care and Health,ASCH,Third Party Payments,EGA,10/03/2014,12-10407,2435.71,Seely Hirst House,,,,,,,,,,,
Nottinghamshire County Council,1111/1001,Adult Social Care and Health,ASCH,Third Party Payments,EGA,10/03/2014,12-10408,1485.71,Cherry Holt Care Home,,,,,,,,,,,
Nottinghamshire County Council,1111/1001,Adult Social Care and Health,ASCH,Third Party Payments,EGA,10/03/2014,12-10409,884,Nightingale Care Home,,,,,,,,,,,
Nottinghamshire County Council,1111/1001,Adult Social Care and Health,ASCH,Third Party Payments,EGA,10/03/2014,12-10410,2248,Ernhale Lodge Nursing Home,,,,,,,,,,,
Nottinghamshire County Council,1111/1001,Adult Social Care and Health,ASCH,Third Party Payments,EGA,10/03/2014,12-10411,2088,Ernhale Lodge Nursing Home,,,,,,,,,,,
Nottinghamshire County Council,1111/1001,Adult Social Care and Health,ASCH,Third Party Payments,EGA,10/03/2014,12-10412,1872,Ernhale Lodge Nursing Home,,,,,,,,,,,
Nottinghamshire County Council,1111/1001,Adult Social Care and Health,ASCH,Third Party Payments,EGA,10/03/2014,12-10413,1872,Ernhale Lodge Nursing Home,,,,,,,,,,,
Nottinghamshire County Council,1111/1001,Adult Social Care and Health,ASCH,Third Party Payments,EGA,10/03/2014,12-10414,2128,Ernhale Lodge Nursing Home,,,,,,,,,,,
Nottinghamshire County Council,1111/1001,Adult Social Care and Health,ASCH,Third Party Payments,EGA,10/03/2014,12-10415,2128,Ernhale Lodge Nursing Home,,,,,,,,,,,
Nottinghamshire County Council,1111/1001,Adult Social Care and Health,ASCH,Third Party Payments,EGA,10/03/2014,12-10416,1952,Ernhale Lodge Nursing Home,,,,,,,,,,,
Nottinghamshire County Council,1111/1001,Adult Social Care and Health,ASCH,Third Party Payments,EGA,10/03/2014,12-10417,2088,Ernhale Lodge Nursing Home,,,,,,,,,,,
Nottinghamshire County Council,1111/1001,Adult Social Care and Health,ASCH,Third Party Payments,EGA,10/03/2014,12-10418,1872,Ernhale Lodge Nursing Home,,,,,,,,,,,
Nottinghamshire County Council,1111/1001,Adult Social Care and Health,ASCH,Third Party Payments,EGA,10/03/2014,12-10419,1931.43,Carlton House Nursing Home,,,,,,,,,,,
Nottinghamshire County Council,1111/1001,Adult Social Care and Health,ASCH,Third Party Payments,EGA,10/03/2014,12-10421,2258.29,Maun View,,,,,,,,,,,
Nottinghamshire County Council,1111/1001,Adult Social Care and Health,ASCH,Third Party Payments,EGA,10/03/2014,12-10422,2258.29,Maun View,,,,,,,,,,,
Nottinghamshire County Council,1111/1001,Adult Social Care and Health,ASCH,Third Party Payments,EGA,10/03/2014,12-10423,1411.43,Westwood,,,,,,,,,,,
Nottinghamshire County Council,1111/1001,Adult Social Care and Health,ASCH,Third Party Payments,EGA,10/03/2014,12-10424,1931.43,Westwood,,,,,,,,,,,
Nottinghamshire County Council,1111/1001,Adult Social Care and Health,ASCH,Third Party Payments,EGA,10/03/2014,12-10425,1782.86,Westwood,,,,,,,,,,,
Nottinghamshire County Council,1111/1001,Adult Social Care and Health,ASCH,Third Party Payments,EGA,10/03/2014,12-10426,884,Coppice Lodge,,,,,,,,,,,
Nottinghamshire County Council,1111/1001,Adult Social Care and Health,ASCH,Third Party Payments,EGA,10/03/2014,12-10427,4145.15,Bowbridge Court,,,,,,,,,,,
Nottinghamshire County Council,1111/1001,Adult Social Care and Health,ASCH,Third Party Payments,EGA,10/03/2014,12-10428,2012,Langholme Care Home,,,,,,,,,,,
Nottinghamshire County Council,1111/1001,Adult Social Care and Health,ASCH,Third Party Payments,EGA,10/03/2014,12-10429,4770.03,Hall Park Care Home,,,,,,,,,,,
Nottinghamshire County Council,1111/1001,Adult Social Care and Health,ASCH,Third Party Payments,EGA,10/03/2014,12-10430,5078.72,Trust Care Ltd T/A Wrawby Hall Care,,,,,,,,,,,
Nottinghamshire County Council,1111/1001,Adult Social Care and Health,ASCH,Third Party Payments,EGA,10/03/2014,12-10440,977.76,Advance Housing & Support Ltd,,,,,,,,,,,
Nottinghamshire County Council,1111/1001,Adult Social Care and Health,ASCH,Third Party Payments,EGA,11/03/2014,12-10449,5743.88,Perthyn,,,,,,,,,,,
Nottinghamshire County Council,1111/1001,Adult Social Care and Health,ASCH,Third Party Payments,EGA,11/03/2014,12-10450,6882.36,Perthyn,,,,,,,,,,,
Nottinghamshire County Council,1111/1001,Adult Social Care and Health,ASCH,Third Party Payments,EGA,11/03/2014,12-10451,6882.36,Perthyn,,,,,,,,,,,
Nottinghamshire County Council,1111/1001,Adult Social Care and Health,ASCH,Third Party Payments,EGA,11/03/2014,12-10452,24975.72,Perthyn,,,,,,,,,,,
Nottinghamshire County Council,1111/1001,Adult Social Care and Health,ASCH,Third Party Payments,EGA,11/03/2014,12-10453,2008.8,Perthyn,,,,,,,,,,,
Nottinghamshire County Council,1111/1001,Adult Social Care and Health,ASCH,Third Party Payments,EGA,11/03/2014,12-10454,2409.18,Perthyn,,,,,,,,,,,
Nottinghamshire County Council,1111/1001,Adult Social Care and Health,ASCH,Third Party Payments,EGA,11/03/2014,12-10455,2409.18,Perthyn,,,,,,,,,,,
Nottinghamshire County Council,1111/1001,Adult Social Care and Health,ASCH,Third Party Payments,EGA,11/03/2014,12-10456,20597.64,Perthyn,,,,,,,,,,,
Nottinghamshire County Council,1111/1001,Adult Social Care and Health,ASCH,Third Party Payments,EGA,11/03/2014,12-10457,17420.76,Perthyn,,,,,,,,,,,
Nottinghamshire County Council,1111/1001,Adult Social Care and Health,ASCH,Third Party Payments,EGA,11/03/2014,12-10458,6925.8,Perthyn,,,,,,,,,,,
Nottinghamshire County Council,1111/1001,Adult Social Care and Health,ASCH,Third Party Payments,EGA,11/03/2014,12-10459,8794.8,Perthyn,,,,,,,,,,,
Nottinghamshire County Council,1111/1001,Adult Social Care and Health,ASCH,Third Party Payments,EGA,11/03/2014,12-10460,26089.56,Perthyn,,,,,,,,,,,
Nottinghamshire County Council,1111/1001,Adult Social Care and Health,ASCH,Third Party Payments,EGA,11/03/2014,12-10461,24975.72,Perthyn,,,,,,,,,,,
Nottinghamshire County Council,1111/1001,Adult Social Care and Health,ASCH,Third Party Payments,EGA,11/03/2014,12-10462,27454.56,Perthyn,,,,,,,,,,,
Nottinghamshire County Council,1111/1001,Adult Social Care and Health,ASCH,Third Party Payments,EGA,12/03/2014,12-10498,665.04,Nottinghamshire Healthcare Nhs Trus,,,,,,,,,,,
Nottinghamshire County Council,1111/1001,Adult Social Care and Health,ASCH,Third Party Payments,EGA,12/03/2014,12-10499,522.24,Nottinghamshire Healthcare Nhs Trus,,,,,,,,,,,
Nottinghamshire County Council,1111/1001,Adult Social Care and Health,ASCH,Third Party Payments,EGA,12/03/2014,12-10500,652.8,Nottinghamshire Healthcare Nhs Trus,,,,,,,,,,,
Nottinghamshire County Council,1111/1001,Adult Social Care and Health,ASCH,Third Party Payments,EGA,12/03/2014,12-10501,652.8,Nottinghamshire Healthcare Nhs Trus,,,,,,,,,,,
Nottinghamshire County Council,1111/1001,Adult Social Care and Health,ASCH,Third Party Payments,EGA,12/03/2014,12-10502,581.9,Nottinghamshire Healthcare Nhs Trus,,,,,,,,,,,
Nottinghamshire County Council,1111/1001,Adult Social Care and Health,ASCH,Third Party Payments,EGA,12/03/2014,12-10503,665.04,Nottinghamshire Healthcare Nhs Trus,,,,,,,,,,,
Nottinghamshire County Council,1111/1001,Adult Social Care and Health,ASCH,Third Party Payments,EGA,12/03/2014,12-10504,522.24,Nottinghamshire Healthcare Nhs Trus,,,,,,,,,,,
Nottinghamshire County Council,1111/1001,Adult Social Care and Health,ASCH,Third Party Payments,EGA,12/03/2014,12-10505,652.8,Nottinghamshire Healthcare Nhs Trus,,,,,,,,,,,
Nottinghamshire County Council,1111/1001,Adult Social Care and Health,ASCH,Third Party Payments,EGA,12/03/2014,12-10506,652.8,Nottinghamshire Healthcare Nhs Trus,,,,,,,,,,,
Nottinghamshire County Council,1111/1001,Adult Social Care and Health,ASCH,Third Party Payments,EGA,12/03/2014,12-10507,581.9,Nottinghamshire Healthcare Nhs Trus,,,,,,,,,,,
Nottinghamshire County Council,1111/1001,Adult Social Care and Health,ASCH,Third Party Payments,EGA,12/03/2014,12-10508,665.04,Nottinghamshire Healthcare Nhs Trus,,,,,,,,,,,
Nottinghamshire County Council,1111/1001,Adult Social Care and Health,ASCH,Third Party Payments,EGA,12/03/2014,12-10509,522.24,Nottinghamshire Healthcare Nhs Trus,,,,,,,,,,,
Nottinghamshire County Council,1111/1001,Adult Social Care and Health,ASCH,Third Party Payments,EGA,12/03/2014,12-10510,652.8,Nottinghamshire Healthcare Nhs Trus,,,,,,,,,,,
Nottinghamshire County Council,1111/1001,Adult Social Care and Health,ASCH,Third Party Payments,EGA,12/03/2014,12-10511,652.8,Nottinghamshire Healthcare Nhs Trus,,,,,,,,,,,
Nottinghamshire County Council,1111/1001,Adult Social Care and Health,ASCH,Third Party Payments,EGA,12/03/2014,12-10512,581.9,Nottinghamshire Healthcare Nhs Trus,,,,,,,,,,,
Nottinghamshire County Council,1111/1001,Adult Social Care and Health,ASCH,Third Party Payments,EGA,12/03/2014,12-10513,665.04,Nottinghamshire Healthcare Nhs Trus,,,,,,,,,,,
Nottinghamshire County Council,1111/1001,Adult Social Care and Health,ASCH,Third Party Payments,EGA,12/03/2014,12-10514,522.24,Nottinghamshire Healthcare Nhs Trus,,,,,,,,,,,
Nottinghamshire County Council,1111/1001,Adult Social Care and Health,ASCH,Third Party Payments,EGA,12/03/2014,12-10515,652.8,Nottinghamshire Healthcare Nhs Trus,,,,,,,,,,,
Nottinghamshire County Council,1111/1001,Adult Social Care and Health,ASCH,Third Party Payments,EGA,12/03/2014,12-10516,652.8,Nottinghamshire Healthcare Nhs Trus,,,,,,,,,,,
Nottinghamshire County Council,1111/1001,Adult Social Care and Health,ASCH,Third Party Payments,EGA,12/03/2014,12-10517,581.9,Nottinghamshire Healthcare Nhs Trus,,,,,,,,,,,
Nottinghamshire County Council,1111/1001,Adult Social Care and Health,ASCH,Third Party Payments,EGA,12/03/2014,12-10518,652.8,Nottinghamshire Healthcare Nhs Trus,,,,,,,,,,,
Nottinghamshire County Council,1111/1001,Adult Social Care and Health,ASCH,Third Party Payments,EGA,12/03/2014,12-10519,581.9,Nottinghamshire Healthcare Nhs Trus,,,,,,,,,,,
Nottinghamshire County Council,1111/1001,Adult Social Care and Health,ASCH,Third Party Payments,EGA,12/03/2014,12-10520,581.9,Nottinghamshire Healthcare Nhs Trus,,,,,,,,,,,
Nottinghamshire County Council,1111/1001,Adult Social Care and Health,ASCH,Third Party Payments,EGA,12/03/2014,12-10521,587.52,Nottinghamshire Healthcare Nhs Trus,,,,,,,,,,,
Nottinghamshire County Council,1111/1001,Adult Social Care and Health,ASCH,Third Party Payments,EGA,12/03/2014,12-10522,652.8,Nottinghamshire Healthcare Nhs Trus,,,,,,,,,,,
Nottinghamshire County Council,1111/1001,Adult Social Care and Health,ASCH,Third Party Payments,EGA,12/03/2014,12-10523,581.9,Nottinghamshire Healthcare Nhs Trus,,,,,,,,,,,
Nottinghamshire County Council,1111/1001,Adult Social Care and Health,ASCH,Third Party Payments,EGA,12/03/2014,12-10524,587.52,Nottinghamshire Healthcare Nhs Trus,,,,,,,,,,,
Nottinghamshire County Council,1111/1001,Adult Social Care and Health,ASCH,Third Party Payments,EGA,12/03/2014,12-10525,652.8,Nottinghamshire Healthcare Nhs Trus,,,,,,,,,,,
Nottinghamshire County Council,1111/1001,Adult Social Care and Health,ASCH,Third Party Payments,EGA,12/03/2014,12-10526,581.9,Nottinghamshire Healthcare Nhs Trus,,,,,,,,,,,
Nottinghamshire County Council,1111/1001,Adult Social Care and Health,ASCH,Third Party Payments,EGA,12/03/2014,12-10527,587.52,Nottinghamshire Healthcare Nhs Trus,,,,,,,,,,,
Nottinghamshire County Council,1111/1001,Adult Social Care and Health,ASCH,Third Party Payments,EGA,12/03/2014,12-10528,652.8,Nottinghamshire Healthcare Nhs Trus,,,,,,,,,,,
Nottinghamshire County Council,1111/1001,Adult Social Care and Health,ASCH,Third Party Payments,EGA,12/03/2014,12-10529,581.9,Nottinghamshire Healthcare Nhs Trus,,,,,,,,,,,
Nottinghamshire County Council,1111/1001,Adult Social Care and Health,ASCH,Third Party Payments,EGA,12/03/2014,12-10530,587.52,Nottinghamshire Healthcare Nhs Trus,,,,,,,,,,,
Nottinghamshire County Council,1111/1001,Adult Social Care and Health,ASCH,Third Party Payments,EGA,12/03/2014,12-10531,652.8,Nottinghamshire Healthcare Nhs Trus,,,,,,,,,,,
Nottinghamshire County Council,1111/1001,Adult Social Care and Health,ASCH,Third Party Payments,EGA,12/03/2014,12-10532,581.9,Nottinghamshire Healthcare Nhs Trus,,,,,,,,,,,
Nottinghamshire County Council,1111/1001,Adult Social Care and Health,ASCH,Third Party Payments,EGA,12/03/2014,12-10533,587.52,Nottinghamshire Healthcare Nhs Trus,,,,,,,,,,,
Nottinghamshire County Council,1111/1001,Adult Social Care and Health,ASCH,Third Party Payments,EGA,12/03/2014,12-10534,1264.5,Norsaca,,,,,,,,,,,
Nottinghamshire County Council,1111/1001,Adult Social Care and Health,ASCH,Third Party Payments,EGA,12/03/2014,12-10535,832,Norsaca,,,,,,,,,,,
Nottinghamshire County Council,1111/1001,Adult Social Care and Health,ASCH,Third Party Payments,EGA,12/03/2014,12-10536,838.6,Norsaca,,,,,,,,,,,
Nottinghamshire County Council,1111/1001,Adult Social Care and Health,ASCH,Third Party Payments,EGA,12/03/2014,12-10537,810,Norsaca,,,,,,,,,,,
Nottinghamshire County Council,1111/1001,Adult Social Care and Health,ASCH,Third Party Payments,EGA,12/03/2014,12-10538,1264.5,Norsaca,,,,,,,,,,,
Nottinghamshire County Council,1111/1001,Adult Social Care and Health,ASCH,Third Party Payments,EGA,12/03/2014,12-10539,832,Norsaca,,,,,,,,,,,
Nottinghamshire County Council,1111/1001,Adult Social Care and Health,ASCH,Third Party Payments,EGA,12/03/2014,12-10540,838.6,Norsaca,,,,,,,,,,,
Nottinghamshire County Council,1111/1001,Adult Social Care and Health,ASCH,Third Party Payments,EGA,12/03/2014,12-10541,810,Norsaca,,,,,,,,,,,
Nottinghamshire County Council,1111/1001,Adult Social Care and Health,ASCH,Third Party Payments,EGA,12/03/2014,12-10542,758.7,Norsaca,,,,,,,,,,,
Nottinghamshire County Council,1111/1001,Adult Social Care and Health,ASCH,Third Party Payments,EGA,12/03/2014,12-10543,1264.5,Norsaca,,,,,,,,,,,
Nottinghamshire County Council,1111/1001,Adult Social Care and Health,ASCH,Third Party Payments,EGA,12/03/2014,12-10544,810,Norsaca,,,,,,,,,,,
Nottinghamshire County Council,1111/1001,Adult Social Care and Health,ASCH,Third Party Payments,EGA,12/03/2014,12-10545,810,Norsaca,,,,,,,,,,,
Nottinghamshire County Council,1111/1001,Adult Social Care and Health,ASCH,Third Party Payments,EGA,12/03/2014,12-10546,810,Norsaca,,,,,,,,,,,
Nottinghamshire County Council,1111/1001,Adult Social Care and Health,ASCH,Third Party Payments,EGA,12/03/2014,12-10547,1264.5,Norsaca,,,,,,,,,,,
Nottinghamshire County Council,1111/1001,Adult Social Care and Health,ASCH,Third Party Payments,EGA,12/03/2014,12-10548,810,Norsaca,,,,,,,,,,,
Nottinghamshire County Council,1111/1001,Adult Social Care and Health,ASCH,Third Party Payments,EGA,12/03/2014,12-10549,810,Norsaca,,,,,,,,,,,
Nottinghamshire County Council,1111/1001,Adult Social Care and Health,ASCH,Third Party Payments,EGA,12/03/2014,12-10550,810,Norsaca,,,,,,,,,,,
Nottinghamshire County Council,1111/1001,Adult Social Care and Health,ASCH,Third Party Payments,EGA,12/03/2014,12-10551,758.7,Norsaca,,,,,,,,,,,
Nottinghamshire County Council,1111/1001,Adult Social Care and Health,ASCH,Third Party Payments,EGA,12/03/2014,12-10552,1264.5,Norsaca,,,,,,,,,,,
Nottinghamshire County Council,1111/1001,Adult Social Care and Health,ASCH,Third Party Payments,EGA,12/03/2014,12-10553,810,Norsaca,,,,,,,,,,,
Nottinghamshire County Council,1111/1001,Adult Social Care and Health,ASCH,Third Party Payments,EGA,12/03/2014,12-10554,810,Norsaca,,,,,,,,,,,
Nottinghamshire County Council,1111/1001,Adult Social Care and Health,ASCH,Third Party Payments,EGA,12/03/2014,12-10555,810,Norsaca,,,,,,,,,,,
Nottinghamshire County Council,1111/1001,Adult Social Care and Health,ASCH,Third Party Payments,EGA,12/03/2014,12-10556,1264.5,Norsaca,,,,,,,,,,,
Nottinghamshire County Council,1111/1001,Adult Social Care and Health,ASCH,Third Party Payments,EGA,12/03/2014,12-10557,810,Norsaca,,,,,,,,,,,
Nottinghamshire County Council,1111/1001,Adult Social Care and Health,ASCH,Third Party Payments,EGA,12/03/2014,12-10558,810,Norsaca,,,,,,,,,,,
Nottinghamshire County Council,1111/1001,Adult Social Care and Health,ASCH,Third Party Payments,EGA,12/03/2014,12-10559,810,Norsaca,,,,,,,,,,,
Nottinghamshire County Council,1111/1001,Adult Social Care and Health,ASCH,Third Party Payments,EGA,12/03/2014,12-10560,648,Norsaca,,,,,,,,,,,
Nottinghamshire County Council,1111/1001,Adult Social Care and Health,ASCH,Third Party Payments,EGA,12/03/2014,12-10561,810,Norsaca,,,,,,,,,,,
Nottinghamshire County Council,1111/1001,Adult Social Care and Health,ASCH,Third Party Payments,EGA,12/03/2014,12-10562,810,Norsaca,,,,,,,,,,,
Nottinghamshire County Council,1111/1001,Adult Social Care and Health,ASCH,Third Party Payments,EGA,12/03/2014,12-10563,810,Norsaca,,,,,,,,,,,
Nottinghamshire County Council,1111/1001,Adult Social Care and Health,ASCH,Third Party Payments,EGA,12/03/2014,12-10564,810,Norsaca,,,,,,,,,,,
Nottinghamshire County Council,1111/1001,Adult Social Care and Health,ASCH,Third Party Payments,EGA,12/03/2014,12-10565,1117.2,Norsaca,,,,,,,,,,,
Nottinghamshire County Council,1111/1001,Adult Social Care and Health,ASCH,Third Party Payments,EGA,12/03/2014,12-10566,648,Norsaca,,,,,,,,,,,
Nottinghamshire County Council,1111/1001,Adult Social Care and Health,ASCH,Third Party Payments,EGA,12/03/2014,12-10567,810,Norsaca,,,,,,,,,,,
Nottinghamshire County Council,1111/1001,Adult Social Care and Health,ASCH,Third Party Payments,EGA,12/03/2014,12-10568,810,Norsaca,,,,,,,,,,,
Nottinghamshire County Council,1111/1001,Adult Social Care and Health,ASCH,Third Party Payments,EGA,12/03/2014,12-10569,810,Norsaca,,,,,,,,,,,
Nottinghamshire County Council,1111/1001,Adult Social Care and Health,ASCH,Third Party Payments,EGA,12/03/2014,12-10570,810,Norsaca,,,,,,,,,,,
Nottinghamshire County Council,1111/1001,Adult Social Care and Health,ASCH,Third Party Payments,EGA,12/03/2014,12-10571,1117.2,Norsaca,,,,,,,,,,,
Nottinghamshire County Council,1111/1001,Adult Social Care and Health,ASCH,Third Party Payments,EGA,12/03/2014,12-10572,1011.6,Norsaca,,,,,,,,,,,
Nottinghamshire County Council,1111/1001,Adult Social Care and Health,ASCH,Third Party Payments,EGA,12/03/2014,12-10573,829.8,Norsaca,,,,,,,,,,,
Nottinghamshire County Council,1111/1001,Adult Social Care and Health,ASCH,Third Party Payments,EGA,12/03/2014,12-10574,1082.7,Norsaca,,,,,,,,,,,
Nottinghamshire County Council,1111/1001,Adult Social Care and Health,ASCH,Third Party Payments,EGA,12/03/2014,12-10575,810,Norsaca,,,,,,,,,,,
Nottinghamshire County Council,1111/1001,Adult Social Care and Health,ASCH,Third Party Payments,EGA,12/03/2014,12-10576,1082.7,Norsaca,,,,,,,,,,,
Nottinghamshire County Council,1111/1001,Adult Social Care and Health,ASCH,Third Party Payments,EGA,12/03/2014,12-10577,1200.5,Norsaca,,,,,,,,,,,
Nottinghamshire County Council,1111/1001,Adult Social Care and Health,ASCH,Third Party Payments,EGA,12/03/2014,12-10578,810,Norsaca,,,,,,,,,,,
Nottinghamshire County Council,1111/1001,Adult Social Care and Health,ASCH,Third Party Payments,EGA,12/03/2014,12-10579,1011.6,Norsaca,,,,,,,,,,,
Nottinghamshire County Council,1111/1001,Adult Social Care and Health,ASCH,Third Party Payments,EGA,12/03/2014,12-10580,829.8,Norsaca,,,,,,,,,,,
Nottinghamshire County Council,1111/1001,Adult Social Care and Health,ASCH,Third Party Payments,EGA,12/03/2014,12-10581,1082.7,Norsaca,,,,,,,,,,,
Nottinghamshire County Council,1111/1001,Adult Social Care and Health,ASCH,Third Party Payments,EGA,12/03/2014,12-10582,810,Norsaca,,,,,,,,,,,
Nottinghamshire County Council,1111/1001,Adult Social Care and Health,ASCH,Third Party Payments,EGA,12/03/2014,12-10583,1082.7,Norsaca,,,,,,,,,,,
Nottinghamshire County Council,1111/1001,Adult Social Care and Health,ASCH,Third Party Payments,EGA,12/03/2014,12-10584,1200.5,Norsaca,,,,,,,,,,,
Nottinghamshire County Council,1111/1001,Adult Social Care and Health,ASCH,Third Party Payments,EGA,12/03/2014,12-10585,810,Norsaca,,,,,,,,,,,
Nottinghamshire County Council,1111/1001,Adult Social Care and Health,ASCH,Third Party Payments,EGA,12/03/2014,12-10586,1264.5,Norsaca,,,,,,,,,,,
Nottinghamshire County Council,1111/1001,Adult Social Care and Health,ASCH,Third Party Payments,EGA,12/03/2014,12-10587,810,Norsaca,,,,,,,,,,,
Nottinghamshire County Council,1111/1001,Adult Social Care and Health,ASCH,Third Party Payments,EGA,12/03/2014,12-10588,1264.5,Norsaca,,,,,,,,,,,
Nottinghamshire County Council,1111/1001,Adult Social Care and Health,ASCH,Third Party Payments,EGA,12/03/2014,12-10589,810,Norsaca,,,,,,,,,,,
Nottinghamshire County Council,1111/1001,Adult Social Care and Health,ASCH,Third Party Payments,EGA,12/03/2014,12-10590,1264.5,Norsaca,,,,,,,,,,,
Nottinghamshire County Council,1111/1001,Adult Social Care and Health,ASCH,Third Party Payments,EGA,12/03/2014,12-10591,810,Norsaca,,,,,,,,,,,
Nottinghamshire County Council,1111/1001,Adult Social Care and Health,ASCH,Third Party Payments,EGA,12/03/2014,12-10592,810,Norsaca,,,,,,,,,,,
Nottinghamshire County Council,1111/1001,Adult Social Care and Health,ASCH,Third Party Payments,EGA,12/03/2014,12-10593,810,Norsaca,,,,,,,,,,,
Nottinghamshire County Council,1111/1001,Adult Social Care and Health,ASCH,Third Party Payments,EGA,12/03/2014,12-10594,1264.5,Norsaca,,,,,,,,,,,
Nottinghamshire County Council,1111/1001,Adult Social Care and Health,ASCH,Third Party Payments,EGA,12/03/2014,12-10595,810,Norsaca,,,,,,,,,,,
Nottinghamshire County Council,1111/1001,Adult Social Care and Health,ASCH,Third Party Payments,EGA,12/03/2014,12-10596,1677.2,Norsaca,,,,,,,,,,,
Nottinghamshire County Council,1111/1001,Adult Social Care and Health,ASCH,Third Party Payments,EGA,12/03/2014,12-10597,1264.5,Norsaca,,,,,,,,,,,
Nottinghamshire County Council,1111/1001,Adult Social Care and Health,ASCH,Third Party Payments,EGA,12/03/2014,12-10598,1328.5,Norsaca,,,,,,,,,,,
Nottinghamshire County Council,1111/1001,Adult Social Care and Health,ASCH,Third Party Payments,EGA,12/03/2014,12-10599,1328.5,Norsaca,,,,,,,,,,,
Nottinghamshire County Council,1111/1001,Adult Social Care and Health,ASCH,Third Party Payments,EGA,12/03/2014,12-10600,810,Norsaca,,,,,,,,,,,
Nottinghamshire County Council,1111/1001,Adult Social Care and Health,ASCH,Third Party Payments,EGA,12/03/2014,12-10601,810,Norsaca,,,,,,,,,,,
Nottinghamshire County Council,1111/1001,Adult Social Care and Health,ASCH,Third Party Payments,EGA,12/03/2014,12-10602,810,Norsaca,,,,,,,,,,,
Nottinghamshire County Council,1111/1001,Adult Social Care and Health,ASCH,Third Party Payments,EGA,12/03/2014,12-10603,1264.5,Norsaca,,,,,,,,,,,
Nottinghamshire County Council,1111/1001,Adult Social Care and Health,ASCH,Third Party Payments,EGA,12/03/2014,12-10604,1264.5,Norsaca,,,,,,,,,,,
Nottinghamshire County Council,1111/1001,Adult Social Care and Health,ASCH,Third Party Payments,EGA,12/03/2014,12-10605,810,Norsaca,,,,,,,,,,,
Nottinghamshire County Council,1111/1001,Adult Social Care and Health,ASCH,Third Party Payments,EGA,12/03/2014,12-10606,1011.6,Norsaca,,,,,,,,,,,
Nottinghamshire County Council,1111/1001,Adult Social Care and Health,ASCH,Third Party Payments,EGA,12/03/2014,12-10607,810,Norsaca,,,,,,,,,,,
Nottinghamshire County Council,1111/1001,Adult Social Care and Health,ASCH,Third Party Payments,EGA,12/03/2014,12-10608,648,Norsaca,,,,,,,,,,,
Nottinghamshire County Council,1111/1001,Adult Social Care and Health,ASCH,Third Party Payments,EGA,12/03/2014,12-10609,1264.5,Norsaca,,,,,,,,,,,
Nottinghamshire County Council,1111/1001,Adult Social Care and Health,ASCH,Third Party Payments,EGA,12/03/2014,12-10610,810,Norsaca,,,,,,,,,,,
Nottinghamshire County Council,1111/1001,Adult Social Care and Health,ASCH,Third Party Payments,EGA,12/03/2014,12-10611,810,Norsaca,,,,,,,,,,,
Nottinghamshire County Council,1111/1001,Adult Social Care and Health,ASCH,Third Party Payments,EGA,12/03/2014,12-10612,810,Norsaca,,,,,,,,,,,
Nottinghamshire County Council,1111/1001,Adult Social Care and Health,ASCH,Third Party Payments,EGA,12/03/2014,12-10613,1264.5,Norsaca,,,,,,,,,,,
Nottinghamshire County Council,1111/1001,Adult Social Care and Health,ASCH,Third Party Payments,EGA,12/03/2014,12-10614,810,Norsaca,,,,,,,,,,,
Nottinghamshire County Council,1111/1001,Adult Social Care and Health,ASCH,Third Party Payments,EGA,12/03/2014,12-10615,1677.2,Norsaca,,,,,,,,,,,
Nottinghamshire County Council,1111/1001,Adult Social Care and Health,ASCH,Third Party Payments,EGA,12/03/2014,12-10616,1264.5,Norsaca,,,,,,,,,,,
Nottinghamshire County Council,1111/1001,Adult Social Care and Health,ASCH,Third Party Payments,EGA,12/03/2014,12-10617,1328.5,Norsaca,,,,,,,,,,,
Nottinghamshire County Council,1111/1001,Adult Social Care and Health,ASCH,Third Party Payments,EGA,12/03/2014,12-10618,1328.5,Norsaca,,,,,,,,,,,
Nottinghamshire County Council,1111/1001,Adult Social Care and Health,ASCH,Third Party Payments,EGA,12/03/2014,12-10619,810,Norsaca,,,,,,,,,,,
Nottinghamshire County Council,1111/1001,Adult Social Care and Health,ASCH,Third Party Payments,EGA,12/03/2014,12-10620,810,Norsaca,,,,,,,,,,,
Nottinghamshire County Council,1111/1001,Adult Social Care and Health,ASCH,Third Party Payments,EGA,12/03/2014,12-10621,810,Norsaca,,,,,,,,,,,
Nottinghamshire County Council,1111/1001,Adult Social Care and Health,ASCH,Third Party Payments,EGA,12/03/2014,12-10622,1264.5,Norsaca,,,,,,,,,,,
Nottinghamshire County Council,1111/1001,Adult Social Care and Health,ASCH,Third Party Payments,EGA,12/03/2014,12-10623,1264.5,Norsaca,,,,,,,,,,,
Nottinghamshire County Council,1111/1001,Adult Social Care and Health,ASCH,Third Party Payments,EGA,12/03/2014,12-10624,810,Norsaca,,,,,,,,,,,
Nottinghamshire County Council,1111/1001,Adult Social Care and Health,ASCH,Third Party Payments,EGA,12/03/2014,12-10625,1011.6,Norsaca,,,,,,,,,,,
Nottinghamshire County Council,1111/1001,Adult Social Care and Health,ASCH,Third Party Payments,EGA,12/03/2014,12-10626,810,Norsaca,,,,,,,,,,,
Nottinghamshire County Council,1111/1001,Adult Social Care and Health,ASCH,Third Party Payments,EGA,12/03/2014,12-10627,648,Norsaca,,,,,,,,,,,
Nottinghamshire County Council,1111/1001,Adult Social Care and Health,ASCH,Third Party Payments,EGA,12/03/2014,12-10628,810,Norsaca,,,,,,,,,,,
Nottinghamshire County Council,1111/1001,Adult Social Care and Health,ASCH,Third Party Payments,EGA,12/03/2014,12-10629,810,Norsaca,,,,,,,,,,,
Nottinghamshire County Council,1111/1001,Adult Social Care and Health,ASCH,Third Party Payments,EGA,12/03/2014,12-10630,810,Norsaca,,,,,,,,,,,
Nottinghamshire County Council,1111/1001,Adult Social Care and Health,ASCH,Third Party Payments,EGA,12/03/2014,12-10631,1017.4,Norsaca,,,,,,,,,,,
Nottinghamshire County Council,1111/1001,Adult Social Care and Health,ASCH,Third Party Payments,EGA,12/03/2014,12-10632,1264.5,Norsaca,,,,,,,,,,,
Nottinghamshire County Council,1111/1001,Adult Social Care and Health,ASCH,Third Party Payments,EGA,12/03/2014,12-10633,1264.5,Norsaca,,,,,,,,,,,
Nottinghamshire County Council,1111/1001,Adult Social Care and Health,ASCH,Third Party Payments,EGA,12/03/2014,12-10634,1264.5,Norsaca,,,,,,,,,,,
Nottinghamshire County Council,1111/1001,Adult Social Care and Health,ASCH,Third Party Payments,EGA,12/03/2014,12-10635,1017.4,Norsaca,,,,,,,,,,,
Nottinghamshire County Council,1111/1001,Adult Social Care and Health,ASCH,Third Party Payments,EGA,12/03/2014,12-10636,1264.5,Norsaca,,,,,,,,,,,
Nottinghamshire County Council,1111/1001,Adult Social Care and Health,ASCH,Third Party Payments,EGA,12/03/2014,12-10637,1264.5,Norsaca,,,,,,,,,,,
Nottinghamshire County Council,1111/1001,Adult Social Care and Health,ASCH,Third Party Payments,EGA,12/03/2014,12-10638,1264.5,Norsaca,,,,,,,,,,,
Nottinghamshire County Council,1111/1001,Adult Social Care and Health,ASCH,Third Party Payments,EGA,12/03/2014,12-10639,918,Landmarks Ltd,,,,,,,,,,,
Nottinghamshire County Council,1111/1001,Adult Social Care and Health,ASCH,Third Party Payments,EGA,12/03/2014,12-10640,550.8,Landmarks Ltd,,,,,,,,,,,
Nottinghamshire County Council,1111/1001,Adult Social Care and Health,ASCH,Third Party Payments,EGA,12/03/2014,12-10641,805.8,Thera East Midlands,,,,,,,,,,,
Nottinghamshire County Council,1111/1001,Adult Social Care and Health,ASCH,Third Party Payments,EGA,12/03/2014,12-10642,652.8,Thera East Midlands,,,,,,,,,,,
Nottinghamshire County Council,1111/1001,Adult Social Care and Health,ASCH,Third Party Payments,EGA,12/03/2014,12-10643,902.7,Thera East Midlands,,,,,,,,,,,
Nottinghamshire County Council,1111/1001,Adult Social Care and Health,ASCH,Third Party Payments,EGA,12/03/2014,12-10644,652.8,Thera East Midlands,,,,,,,,,,,
Nottinghamshire County Council,1111/1001,Adult Social Care and Health,ASCH,Third Party Payments,EGA,12/03/2014,12-10645,902.7,Thera East Midlands,,,,,,,,,,,
Nottinghamshire County Council,1111/1001,Adult Social Care and Health,ASCH,Third Party Payments,EGA,12/03/2014,12-10646,718.08,Thera East Midlands,,,,,,,,,,,
Nottinghamshire County Council,1111/1001,Adult Social Care and Health,ASCH,Third Party Payments,EGA,12/03/2014,12-10647,652.8,Thera East Midlands,,,,,,,,,,,
Nottinghamshire County Council,1111/1001,Adult Social Care and Health,ASCH,Third Party Payments,EGA,12/03/2014,12-10648,652.8,Thera East Midlands,,,,,,,,,,,
Nottinghamshire County Council,1111/1001,Adult Social Care and Health,ASCH,Third Party Payments,EGA,12/03/2014,12-10649,652.8,Thera East Midlands,,,,,,,,,,,
Nottinghamshire County Council,1111/1001,Adult Social Care and Health,ASCH,Third Party Payments,EGA,12/03/2014,12-10650,999.6,Thera East Midlands,,,,,,,,,,,
Nottinghamshire County Council,1111/1001,Adult Social Care and Health,ASCH,Third Party Payments,EGA,12/03/2014,12-10651,522.24,Thera East Midlands,,,,,,,,,,,
Nottinghamshire County Council,1111/1001,Adult Social Care and Health,ASCH,Third Party Payments,EGA,12/03/2014,12-10652,522.24,Thera East Midlands,,,,,,,,,,,
Nottinghamshire County Council,1111/1001,Adult Social Care and Health,ASCH,Third Party Payments,EGA,12/03/2014,12-10653,522.24,Enable Housing Assoc Ltd,,,,,,,,,,,
Nottinghamshire County Council,1111/1001,Adult Social Care and Health,ASCH,Third Party Payments,EGA,12/03/2014,12-10682,5460.68,Fitzroy,,,,,,,,,,,
Nottinghamshire County Council,1111/1001,Adult Social Care and Health,ASCH,Third Party Payments,EGA,12/03/2014,12-10683,6012.96,Fitzroy,,,,,,,,,,,
Nottinghamshire County Council,1111/1001,Adult Social Care and Health,ASCH,Third Party Payments,EGA,13/03/2014,12-10685,9889.4,Perthyn,,,,,,,,,,,
Nottinghamshire County Council,1111/1001,Adult Social Care and Health,ASCH,Third Party Payments,EGA,13/03/2014,12-10686,6949.4,Perthyn,,,,,,,,,,,
Nottinghamshire County Council,1111/1001,Adult Social Care and Health,ASCH,Third Party Payments,EGA,13/03/2014,12-10687,7789.4,Perthyn,,,,,,,,,,,
Nottinghamshire County Council,1111/1001,Adult Social Care and Health,ASCH,Third Party Payments,EGA,13/03/2014,12-10688,8014.25,Hatzfeld Care Ltd,,,,,,,,,,,
Nottinghamshire County Council,1111/1001,Adult Social Care and Health,ASCH,Third Party Payments,EGA,13/03/2014,12-10689,2393.33,Westminster Homecare Ltd,,,,,,,,,,,
Nottinghamshire County Council,1111/1001,Adult Social Care and Health,ASCH,Third Party Payments,EGA,13/03/2014,12-10690,7191.55,Sterling Homecare Ltd,,,,,,,,,,,
Nottinghamshire County Council,1111/1001,Adult Social Care and Health,ASCH,Third Party Payments,EGA,13/03/2014,12-10691,1722.47,Housing 21,,,,,,,,,,,
Nottinghamshire County Council,1111/1001,Adult Social Care and Health,ASCH,Third Party Payments,EGA,13/03/2014,12-10692,1296.7,Premier Nursing Agency Ltd,,,,,,,,,,,
Nottinghamshire County Council,1111/1001,Adult Social Care and Health,ASCH,Third Party Payments,EGA,13/03/2014,12-10693,5659.24,Calverton Supreme Home Care Ltd,,,,,,,,,,,
Nottinghamshire County Council,1111/1001,Adult Social Care and Health,ASCH,Third Party Payments,EGA,13/03/2014,12-10694,1247.85,Notts Homecare Ltd,,,,,,,,,,,
Nottinghamshire County Council,1111/1001,Adult Social Care and Health,ASCH,Third Party Payments,EGA,13/03/2014,12-10695,9366.5,Care Uk Homecare Ltd,,,,,,,,,,,
Nottinghamshire County Council,1111/1001,Adult Social Care and Health,ASCH,Third Party Payments,EGA,13/03/2014,12-10696,2950.21,Rainbow Care Services Ltd,,,,,,,,,,,
Nottinghamshire County Council,1111/1001,Adult Social Care and Health,ASCH,Third Party Payments,EGA,13/03/2014,12-10697,8009.11,Crossroads Care East Midlands,,,,,,,,,,,
Nottinghamshire County Council,1111/1001,Adult Social Care and Health,ASCH,Third Party Payments,EGA,13/03/2014,12-10698,6522.62,Priority Homecare Ltd,,,,,,,,,,,
Nottinghamshire County Council,1111/1001,Adult Social Care and Health,ASCH,Third Party Payments,EGA,13/03/2014,12-10699,644.28,Leda Homecare Ltd,,,,,,,,,,,
Nottinghamshire County Council,1111/1001,Adult Social Care and Health,ASCH,Third Party Payments,EGA,13/03/2014,12-10700,3603.66,Hatzfeld Care Ltd,,,,,,,,,,,
Nottinghamshire County Council,1111/1001,Adult Social Care and Health,ASCH,Third Party Payments,EGA,13/03/2014,12-10701,1225.81,Direct Health (uk) Ltd,,,,,,,,,,,
Nottinghamshire County Council,1111/1001,Adult Social Care and Health,ASCH,Third Party Payments,EGA,13/03/2014,12-10702,1916.11,Hatzfeld Care Ltd,,,,,,,,,,,
Nottinghamshire County Council,1111/1001,Adult Social Care and Health,ASCH,Third Party Payments,EGA,13/03/2014,12-10703,12613.72,Care Uk Homecare Ltd,,,,,,,,,,,
Nottinghamshire County Council,1111/1001,Adult Social Care and Health,ASCH,Third Party Payments,EGA,13/03/2014,12-10704,12780.64,Direct Health (uk) Ltd,,,,,,,,,,,
Nottinghamshire County Council,1111/1001,Adult Social Care and Health,ASCH,Third Party Payments,EGA,13/03/2014,12-10705,6323.56,Westminster Homecare Ltd,,,,,,,,,,,
Nottinghamshire County Council,1111/1001,Adult Social Care and Health,ASCH,Third Party Payments,EGA,13/03/2014,12-10706,793.14,Premier Nursing Agency Ltd,,,,,,,,,,,
Nottinghamshire County Council,1111/1001,Adult Social Care and Health,ASCH,Third Party Payments,EGA,13/03/2014,12-10707,1302.12,North Notts Crossroads Care,,,,,,,,,,,
Nottinghamshire County Council,1111/1001,Adult Social Care and Health,ASCH,Third Party Payments,EGA,13/03/2014,12-10708,646.5,Always There Homecare Ltd,,,,,,,,,,,
Nottinghamshire County Council,1111/1001,Adult Social Care and Health,ASCH,Third Party Payments,EGA,13/03/2014,12-10709,580.1,Housing 21,,,,,,,,,,,
Nottinghamshire County Council,1111/1001,Adult Social Care and Health,ASCH,Third Party Payments,EGA,13/03/2014,12-10710,956.77,Sterling Homecare Ltd,,,,,,,,,,,
Nottinghamshire County Council,1111/1001,Adult Social Care and Health,ASCH,Third Party Payments,EGA,13/03/2014,12-10711,10706.61,Mears Care Ltd,,,,,,,,,,,
Nottinghamshire County Council,1111/1001,Adult Social Care and Health,ASCH,Third Party Payments,EGA,13/03/2014,12-10712,6107.56,Sterling Homecare Ltd,,,,,,,,,,,
Nottinghamshire County Council,1111/1001,Adult Social Care and Health,ASCH,Third Party Payments,EGA,13/03/2014,12-10713,2475.07,Care Uk Homecare Ltd,,,,,,,,,,,
Nottinghamshire County Council,1111/1001,Adult Social Care and Health,ASCH,Third Party Payments,EGA,13/03/2014,12-10714,8776.18,Sterling Homecare Ltd,,,,,,,,,,,
Nottinghamshire County Council,1111/1001,Adult Social Care and Health,ASCH,Third Party Payments,EGA,13/03/2014,12-10715,1131.85,Crossroads Care East Midlands,,,,,,,,,,,
Nottinghamshire County Council,1111/1001,Adult Social Care and Health,ASCH,Third Party Payments,EGA,13/03/2014,12-10716,2836.69,Priority Homecare Ltd,,,,,,,,,,,
Nottinghamshire County Council,1111/1001,Adult Social Care and Health,ASCH,Third Party Payments,EGA,13/03/2014,12-10717,743.01,Medico Nursing & Homecare,,,,,,,,,,,
Nottinghamshire County Council,1111/1001,Adult Social Care and Health,ASCH,Third Party Payments,EGA,13/03/2014,12-10718,6635.51,North Notts Crossroads Care,,,,,,,,,,,
Nottinghamshire County Council,1111/1001,Adult Social Care and Health,ASCH,Third Party Payments,EGA,13/03/2014,12-10719,1117.69,Home Care Solution Ltd,,,,,,,,,,,
Nottinghamshire County Council,1111/1001,Adult Social Care and Health,ASCH,Third Party Payments,EGA,13/03/2014,12-10720,6984.39,Care Uk Homecare Ltd,,,,,,,,,,,
Nottinghamshire County Council,1111/1001,Adult Social Care and Health,ASCH,Third Party Payments,EGA,13/03/2014,12-10721,4078.78,Notts Homecare Ltd,,,,,,,,,,,
Nottinghamshire County Council,1111/1001,Adult Social Care and Health,ASCH,Third Party Payments,EGA,13/03/2014,12-10722,549.17,Housing 21,,,,,,,,,,,
Nottinghamshire County Council,1111/1001,Adult Social Care and Health,ASCH,Third Party Payments,EGA,13/03/2014,12-10723,1338.1,Always There Homecare Ltd,,,,,,,,,,,
Nottinghamshire County Council,1111/1001,Adult Social Care and Health,ASCH,Third Party Payments,EGA,13/03/2014,12-10724,3406.04,Medico Nursing & Homecare,,,,,,,,,,,
Nottinghamshire County Council,1111/1001,Adult Social Care and Health,ASCH,Third Party Payments,EGA,13/03/2014,12-10725,1019.84,Premier Nursing Agency Ltd,,,,,,,,,,,
Nottinghamshire County Council,1111/1001,Adult Social Care and Health,ASCH,Third Party Payments,EGA,13/03/2014,12-10726,1181.46,Housing 21,,,,,,,,,,,
Nottinghamshire County Council,1111/1001,Adult Social Care and Health,ASCH,Third Party Payments,EGA,13/03/2014,12-10727,8024.41,Direct Health (uk) Ltd,,,,,,,,,,,
Nottinghamshire County Council,1111/1001,Adult Social Care and Health,ASCH,Third Party Payments,EGA,13/03/2014,12-10728,5469.93,Workwise Healthcare Ltd,,,,,,,,,,,
Nottinghamshire County Council,1111/1001,Adult Social Care and Health,ASCH,Third Party Payments,EGA,13/03/2014,12-10729,20694.63,Direct Health (uk) Ltd,,,,,,,,,,,
Nottinghamshire County Council,1111/1001,Adult Social Care and Health,ASCH,Third Party Payments,EGA,13/03/2014,12-10730,934.85,Mediline Nurses & Carers Ltd,,,,,,,,,,,
Nottinghamshire County Council,1111/1001,Adult Social Care and Health,ASCH,Third Party Payments,EGA,13/03/2014,12-10731,745.94,The Human Support Group,,,,,,,,,,,
Nottinghamshire County Council,1111/1001,Adult Social Care and Health,ASCH,Third Party Payments,EGA,13/03/2014,12-10732,2078.11,Hatzfeld Care Ltd,,,,,,,,,,,
Nottinghamshire County Council,1111/1001,Adult Social Care and Health,ASCH,Third Party Payments,EGA,13/03/2014,12-10733,749.05,Mears Care Ltd,,,,,,,,,,,
Nottinghamshire County Council,1111/1001,Adult Social Care and Health,ASCH,Third Party Payments,EGA,13/03/2014,12-10734,981.27,Amg Nursing & Care Services Ltd,,,,,,,,,,,
Nottinghamshire County Council,1111/1001,Adult Social Care and Health,ASCH,Third Party Payments,EGA,13/03/2014,12-10735,7926.41,Leda Homecare Ltd,,,,,,,,,,,
Nottinghamshire County Council,1111/1001,Adult Social Care and Health,ASCH,Third Party Payments,EGA,13/03/2014,12-10736,4109.65,Direct Health (uk) Ltd,,,,,,,,,,,
Nottinghamshire County Council,1111/1001,Adult Social Care and Health,ASCH,Third Party Payments,EGA,13/03/2014,12-10737,1590.94,Medico Nursing & Homecare,,,,,,,,,,,
Nottinghamshire County Council,1111/1001,Adult Social Care and Health,ASCH,Third Party Payments,EGA,13/03/2014,12-10738,5590.01,Medico Nursing & Homecare,,,,,,,,,,,
Nottinghamshire County Council,1111/1001,Adult Social Care and Health,ASCH,Third Party Payments,EGA,13/03/2014,12-10739,1154.5,North Notts Crossroads Care,,,,,,,,,,,
Nottinghamshire County Council,1111/1001,Adult Social Care and Health,ASCH,Third Party Payments,EGA,13/03/2014,12-10740,637.2,Priority Homecare Ltd,,,,,,,,,,,
Nottinghamshire County Council,1111/1001,Adult Social Care and Health,ASCH,Third Party Payments,EGA,13/03/2014,12-10741,1412.13,Always There Homecare Ltd,,,,,,,,,,,
Nottinghamshire County Council,1111/1001,Adult Social Care and Health,ASCH,Third Party Payments,EGA,13/03/2014,12-10742,10045.32,Sterling Homecare Ltd,,,,,,,,,,,
Nottinghamshire County Council,1111/1001,Adult Social Care and Health,ASCH,Third Party Payments,EGA,13/03/2014,12-10743,2539.28,Westminster Homecare Ltd,,,,,,,,,,,
Nottinghamshire County Council,1111/1001,Adult Social Care and Health,ASCH,Third Party Payments,EGA,13/03/2014,12-10744,5351.47,Workwise Healthcare Ltd,,,,,,,,,,,
Nottinghamshire County Council,1111/1001,Adult Social Care and Health,ASCH,Third Party Payments,EGA,13/03/2014,12-10745,5492.49,Home Care Solution Ltd,,,,,,,,,,,
Nottinghamshire County Council,1111/1001,Adult Social Care and Health,ASCH,Third Party Payments,EGA,13/03/2014,12-10746,2839.56,Mears Care Ltd,,,,,,,,,,,
Nottinghamshire County Council,1111/1001,Adult Social Care and Health,ASCH,Third Party Payments,EGA,13/03/2014,12-10747,2380.88,Always There Homecare Ltd,,,,,,,,,,,
Nottinghamshire County Council,1111/1001,Adult Social Care and Health,ASCH,Third Party Payments,EGA,13/03/2014,12-10748,10510.55,Leda Homecare Ltd,,,,,,,,,,,
Nottinghamshire County Council,1111/1001,Adult Social Care and Health,ASCH,Third Party Payments,EGA,13/03/2014,12-10749,3191.64,Direct Health (uk) Ltd,,,,,,,,,,,
Nottinghamshire County Council,1111/1001,Adult Social Care and Health,ASCH,Third Party Payments,EGA,13/03/2014,12-10750,2583.56,Housing 21,,,,,,,,,,,
Nottinghamshire County Council,1111/1001,Adult Social Care and Health,ASCH,Third Party Payments,EGA,13/03/2014,12-10751,1567.82,Crossroads Care East Midlands,,,,,,,,,,,
Nottinghamshire County Council,1111/1001,Adult Social Care and Health,ASCH,Third Party Payments,EGA,13/03/2014,12-10752,4438.32,Mears Care Ltd,,,,,,,,,,,
Nottinghamshire County Council,1111/1001,Adult Social Care and Health,ASCH,Third Party Payments,EGA,13/03/2014,12-10753,2841.02,The Human Support Group,,,,,,,,,,,
Nottinghamshire County Council,1111/1001,Adult Social Care and Health,ASCH,Third Party Payments,EGA,13/03/2014,12-10754,7676.3,Priority Homecare Ltd,,,,,,,,,,,
Nottinghamshire County Council,1111/1001,Adult Social Care and Health,ASCH,Third Party Payments,EGA,13/03/2014,12-10755,9481.09,Sterling Homecare Ltd,,,,,,,,,,,
Nottinghamshire County Council,1111/1001,Adult Social Care and Health,ASCH,Third Party Payments,EGA,13/03/2014,12-10756,4711.29,North Notts Crossroads Care,,,,,,,,,,,
Nottinghamshire County Council,1111/1001,Adult Social Care and Health,ASCH,Third Party Payments,EGA,13/03/2014,12-10757,2016.77,Priority Homecare Ltd,,,,,,,,,,,
Nottinghamshire County Council,1111/1001,Adult Social Care and Health,ASCH,Third Party Payments,EGA,13/03/2014,12-10758,2442.45,Mediline Nurses & Carers Ltd,,,,,,,,,,,
Nottinghamshire County Council,1111/1001,Adult Social Care and Health,ASCH,Third Party Payments,EGA,13/03/2014,12-10763,1339,Blue Sky Care Ltd,,,,,,,,,,,
Nottinghamshire County Council,1111/1001,Adult Social Care and Health,ASCH,Third Party Payments,EGA,14/03/2014,12-10904,512.33,Blue Sky Care Ltd,,,,,,,,,,,
Nottinghamshire County Council,1111/1001,Adult Social Care and Health,ASCH,Third Party Payments,EGA,14/03/2014,12-10905,853.88,Blue Sky Care Ltd,,,,,,,,,,,
Nottinghamshire County Council,1111/1001,Adult Social Care and Health,ASCH,Third Party Payments,EGA,14/03/2014,12-10906,1764,Blue Sky Care Ltd,,,,,,,,,,,
Nottinghamshire County Council,1111/1001,Adult Social Care and Health,ASCH,Third Party Payments,EGA,14/03/2014,12-10907,505.2,Blue Sky Care Ltd,,,,,,,,,,,
Nottinghamshire County Council,1111/1001,Adult Social Care and Health,ASCH,Third Party Payments,EGA,14/03/2014,12-10908,708.24,Reach Housing & Enablement Serv Ltd,,,,,,,,,,,
Nottinghamshire County Council,1111/1001,Adult Social Care and Health,ASCH,Third Party Payments,EGA,14/03/2014,12-10909,1588.8,Lifeways Community Care Ltd,,,,,,,,,,,
Nottinghamshire County Council,1111/1001,Adult Social Care and Health,ASCH,Third Party Payments,EGA,14/03/2014,12-10910,7759.52,Fitzroy,,,,,,,,,,,
Nottinghamshire County Council,1111/1001,Adult Social Care and Health,ASCH,Third Party Payments,EGA,14/03/2014,12-10911,27454.56,Perthyn,,,,,,,,,,,
Nottinghamshire County Council,1111/1001,Adult Social Care and Health,ASCH,Third Party Payments,EGA,14/03/2014,12-10912,26089.56,Perthyn,,,,,,,,,,,
Nottinghamshire County Council,1111/1001,Adult Social Care and Health,ASCH,Third Party Payments,EGA,17/03/2014,12-10939,3554.76,Thera East Midlands,,,,,,,,,,,
Nottinghamshire County Council,1111/1001,Adult Social Care and Health,ASCH,Third Party Payments,EGA,17/03/2014,12-10940,3554.76,Thera East Midlands,,,,,,,,,,,
Nottinghamshire County Council,1111/1001,Adult Social Care and Health,ASCH,Third Party Payments,EGA,17/03/2014,12-10941,3554.76,Thera East Midlands,,,,,,,,,,,
Nottinghamshire County Council,1111/1001,Adult Social Care and Health,ASCH,Third Party Payments,EGA,17/03/2014,12-10942,3554.76,Thera East Midlands,,,,,,,,,,,
Nottinghamshire County Council,1111/1001,Adult Social Care and Health,ASCH,Third Party Payments,EGA,17/03/2014,12-10943,3554.76,Thera East Midlands,,,,,,,,,,,
Nottinghamshire County Council,1111/1001,Adult Social Care and Health,ASCH,Third Party Payments,EGA,17/03/2014,12-10946,520,Ashcroft,,,,,,,,,,,
Nottinghamshire County Council,1111/1001,Adult Social Care and Health,ASCH,Third Party Payments,EGA,17/03/2014,12-10947,1195.75,HC1 Ltd Re. Oaklands (Whaley Thorns,,,,,,,,,,,
Nottinghamshire County Council,1111/1001,Adult Social Care and Health,ASCH,Third Party Payments,EGA,17/03/2014,12-10948,741,Spring Water Lodge,,,,,,,,,,,
Nottinghamshire County Council,1111/1001,Adult Social Care and Health,ASCH,Third Party Payments,EGA,17/03/2014,12-10949,694.57,Four Seasons (Evedale) Ltd/Tudor Gr,,,,,,,,,,,
Nottinghamshire County Council,1111/1001,Adult Social Care and Health,ASCH,Third Party Payments,EGA,17/03/2014,12-10950,884,Four Seasons (Evedale) Ltd/Tudor Gr,,,,,,,,,,,
Nottinghamshire County Council,1111/1001,Adult Social Care and Health,ASCH,Third Party Payments,EGA,17/03/2014,12-10951,1957.14,Oaks Care Centre,,,,,,,,,,,
Nottinghamshire County Council,1111/1001,Adult Social Care and Health,ASCH,Third Party Payments,EGA,17/03/2014,12-10952,2822.86,Oaks Care Centre,,,,,,,,,,,
Nottinghamshire County Council,1111/1001,Adult Social Care and Health,ASCH,Third Party Payments,EGA,17/03/2014,12-10953,1017.71,Oaks Care Centre,,,,,,,,,,,
Nottinghamshire County Council,1111/1001,Adult Social Care and Health,ASCH,Third Party Payments,EGA,17/03/2014,12-10954,846.86,Oaks Care Centre,,,,,,,,,,,
Nottinghamshire County Council,1111/1001,Adult Social Care and Health,ASCH,Third Party Payments,EGA,17/03/2014,12-10955,500,Four Seasons (Evedale) Ltd Re Westw,,,,,,,,,,,
Nottinghamshire County Council,1111/1001,Adult Social Care and Health,ASCH,Third Party Payments,EGA,17/03/2014,12-10956,2473.71,Four Seasons (Bamford) Ltd - Old Vi,,,,,,,,,,,
Nottinghamshire County Council,1111/1001,Adult Social Care and Health,ASCH,Third Party Payments,EGA,17/03/2014,12-10957,2808,Four Seasons (Bamford) Ltd - Old Vi,,,,,,,,,,,
Nottinghamshire County Council,1111/1001,Adult Social Care and Health,ASCH,Third Party Payments,EGA,17/03/2014,12-10958,1040,The Herons Residential Care Home,,,,,,,,,,,
Nottinghamshire County Council,1111/1001,Adult Social Care and Health,ASCH,Third Party Payments,EGA,17/03/2014,12-10959,1080,Edward House Care Home,,,,,,,,,,,
Nottinghamshire County Council,1111/1001,Adult Social Care and Health,ASCH,Third Party Payments,EGA,17/03/2014,12-10960,8177.14,Edward House Care Home,,,,,,,,,,,
Nottinghamshire County Council,1111/1001,Adult Social Care and Health,ASCH,Third Party Payments,EGA,17/03/2014,12-10961,1069.71,Acer Court Care Home,,,,,,,,,,,
Nottinghamshire County Council,1111/1001,Adult Social Care and Health,ASCH,Third Party Payments,EGA,17/03/2014,12-10962,6240,Sutton Lodge Nursing Home,,,,,,,,,,,
Nottinghamshire County Council,1111/1001,Adult Social Care and Health,ASCH,Third Party Payments,EGA,17/03/2014,12-10963,6240,Sutton Lodge Nursing Home,,,,,,,,,,,
Nottinghamshire County Council,1111/1001,Adult Social Care and Health,ASCH,Third Party Payments,EGA,17/03/2014,12-10964,6240,Sutton Lodge Nursing Home,,,,,,,,,,,
Nottinghamshire County Council,1111/1001,Adult Social Care and Health,ASCH,Third Party Payments,EGA,17/03/2014,12-10965,6240,Sutton Lodge Nursing Home,,,,,,,,,,,
Nottinghamshire County Council,1111/1001,Adult Social Care and Health,ASCH,Third Party Payments,EGA,17/03/2014,12-10966,6240,Sutton Lodge Nursing Home,,,,,,,,,,,
Nottinghamshire County Council,1111/1001,Adult Social Care and Health,ASCH,Third Party Payments,EGA,17/03/2014,12-10967,5493.43,Tuxford Manor Care Home,,,,,,,,,,,
Nottinghamshire County Council,1111/1001,Adult Social Care and Health,ASCH,Third Party Payments,EGA,17/03/2014,12-10968,978,Tuxford Manor Care Home,,,,,,,,,,,
Nottinghamshire County Council,1111/1001,Adult Social Care and Health,ASCH,Third Party Payments,EGA,17/03/2014,12-10969,505.14,Avondale Residential Care Home,,,,,,,,,,,
Nottinghamshire County Council,1111/1001,Adult Social Care and Health,ASCH,Third Party Payments,EGA,17/03/2014,12-10970,3214.29,Orchard House,,,,,,,,,,,
Nottinghamshire County Council,1111/1001,Adult Social Care and Health,ASCH,Third Party Payments,EGA,17/03/2014,12-10971,2661.71,Alexandra House Nursing Home,,,,,,,,,,,
Nottinghamshire County Council,1111/1001,Adult Social Care and Health,ASCH,Third Party Payments,EGA,17/03/2014,12-10972,6240,Bluebell Lodge,,,,,,,,,,,
Nottinghamshire County Council,1111/1001,Adult Social Care and Health,ASCH,Third Party Payments,EGA,17/03/2014,12-10973,6240,Bluebell Lodge,,,,,,,,,,,
Nottinghamshire County Council,1111/1001,Adult Social Care and Health,ASCH,Third Party Payments,EGA,17/03/2014,12-10974,6240,Bluebell Lodge,,,,,,,,,,,
Nottinghamshire County Council,1111/1001,Adult Social Care and Health,ASCH,Third Party Payments,EGA,17/03/2014,12-10975,6240,Bluebell Lodge,,,,,,,,,,,
Nottinghamshire County Council,1111/1001,Adult Social Care and Health,ASCH,Third Party Payments,EGA,17/03/2014,12-10976,1560,Bluebell Lodge,,,,,,,,,,,
Nottinghamshire County Council,1111/1001,Adult Social Care and Health,ASCH,Third Party Payments,EGA,17/03/2014,12-10977,1612.04,Loreto Cottage,,,,,,,,,,,
Nottinghamshire County Council,1111/1001,Adult Social Care and Health,ASCH,Third Party Payments,EGA,17/03/2014,12-10978,3531.43,Ashton Court,,,,,,,,,,,
Nottinghamshire County Council,1111/1001,Adult Social Care and Health,ASCH,Third Party Payments,EGA,17/03/2014,12-10979,1230,Church Farm Nursing Home Ltd,,,,,,,,,,,
Nottinghamshire County Council,1111/1001,Adult Social Care and Health,ASCH,Third Party Payments,EGA,17/03/2014,12-10980,1845,Church Farm Nursing Home Ltd,,,,,,,,,,,
Nottinghamshire County Council,1111/1001,Adult Social Care and Health,ASCH,Third Party Payments,EGA,17/03/2014,12-10981,1044,Countrywide Care Homes Ltd T/A Gate,,,,,,,,,,,
Nottinghamshire County Council,1111/1001,Adult Social Care and Health,ASCH,Third Party Payments,EGA,17/03/2014,12-10982,601.71,Countrywide Care Homes Ltd T/A Gate,,,,,,,,,,,
Nottinghamshire County Council,1111/1001,Adult Social Care and Health,ASCH,Third Party Payments,EGA,17/03/2014,12-10983,14041.29,Red Rose Nursing Home,,,,,,,,,,,
Nottinghamshire County Council,1111/1001,Adult Social Care and Health,ASCH,Third Party Payments,EGA,17/03/2014,12-10984,1133.71,Red Rose Nursing Home,,,,,,,,,,,
Nottinghamshire County Council,1111/1001,Adult Social Care and Health,ASCH,Third Party Payments,EGA,17/03/2014,12-10986,1340.86,Beech House Care Home Worksop Ltd,,,,,,,,,,,
Nottinghamshire County Council,1111/1001,Adult Social Care and Health,ASCH,Third Party Payments,EGA,17/03/2014,12-10987,586,Fbc Care Homes Ltd,,,,,,,,,,,
Nottinghamshire County Council,1111/1001,Adult Social Care and Health,ASCH,Third Party Payments,EGA,17/03/2014,12-10988,5497.14,Fernleaf Care Home,,,,,,,,,,,
Nottinghamshire County Council,1111/1001,Adult Social Care and Health,ASCH,Third Party Payments,EGA,17/03/2014,12-10989,936,Rose Farm Care Home,,,,,,,,,,,
Nottinghamshire County Council,1111/1001,Adult Social Care and Health,ASCH,Third Party Payments,EGA,17/03/2014,12-10990,4457.71,Rose Farm Care Home,,,,,,,,,,,
Nottinghamshire County Council,1111/1001,Adult Social Care and Health,ASCH,Third Party Payments,EGA,17/03/2014,12-10991,2480,Hawthorne Nursing Home,,,,,,,,,,,
Nottinghamshire County Council,1111/1001,Adult Social Care and Health,ASCH,Third Party Payments,EGA,17/03/2014,12-10992,828,Hazelford Residential Home,,,,,,,,,,,
Nottinghamshire County Council,1111/1001,Adult Social Care and Health,ASCH,Third Party Payments,EGA,17/03/2014,12-10993,917.43,Hazel Grove Nursing Home,,,,,,,,,,,
Nottinghamshire County Council,1111/1001,Adult Social Care and Health,ASCH,Third Party Payments,EGA,17/03/2014,12-10994,1080,Newton House,,,,,,,,,,,
Nottinghamshire County Council,1111/1001,Adult Social Care and Health,ASCH,Third Party Payments,EGA,17/03/2014,12-10995,1080,Newton House,,,,,,,,,,,
Nottinghamshire County Council,1111/1001,Adult Social Care and Health,ASCH,Third Party Payments,EGA,17/03/2014,12-10996,1411.43,Newgate Lodge Care Home,,,,,,,,,,,
Nottinghamshire County Council,1111/1001,Adult Social Care and Health,ASCH,Third Party Payments,EGA,17/03/2014,12-10997,988,Aj & Sa Verjee,,,,,,,,,,,
Nottinghamshire County Council,1111/1001,Adult Social Care and Health,ASCH,Third Party Payments,EGA,17/03/2014,12-10998,1058.57,Sutton Court,,,,,,,,,,,
Nottinghamshire County Council,1111/1001,Adult Social Care and Health,ASCH,Third Party Payments,EGA,17/03/2014,12-10999,1566,Sutton Court,,,,,,,,,,,
Nottinghamshire County Council,1111/1001,Adult Social Care and Health,ASCH,Third Party Payments,EGA,17/03/2014,12-11000,5857.43,Sutton Court,,,,,,,,,,,
Nottinghamshire County Council,1111/1001,Adult Social Care and Health,ASCH,Third Party Payments,EGA,17/03/2014,12-11001,2356,Elmbank Nursing Home,,,,,,,,,,,
Nottinghamshire County Council,1111/1001,Adult Social Care and Health,ASCH,Third Party Payments,EGA,17/03/2014,12-11002,2701.29,Mansfield Manor Care Home,,,,,,,,,,,
Nottinghamshire County Council,1111/1001,Adult Social Care and Health,ASCH,Third Party Payments,EGA,17/03/2014,12-11003,936,The Hollies,,,,,,,,,,,
Nottinghamshire County Council,1111/1001,Adult Social Care and Health,ASCH,Third Party Payments,EGA,17/03/2014,12-11004,2904.57,The Troc Residential Home,,,,,,,,,,,
Nottinghamshire County Council,1111/1001,Adult Social Care and Health,ASCH,Third Party Payments,EGA,17/03/2014,12-11005,1457.57,Giltbrook Carehomes Ltd,,,,,,,,,,,
Nottinghamshire County Council,1111/1001,Adult Social Care and Health,ASCH,Third Party Payments,EGA,17/03/2014,12-11006,917.43,Glenesk,,,,,,,,,,,
Nottinghamshire County Council,1111/1001,Adult Social Care and Health,ASCH,Third Party Payments,EGA,17/03/2014,12-11007,917.43,Glenesk,,,,,,,,,,,
Nottinghamshire County Council,1111/1001,Adult Social Care and Health,ASCH,Third Party Payments,EGA,17/03/2014,12-11008,1693.71,Glenesk,,,,,,,,,,,
Nottinghamshire County Council,1111/1001,Adult Social Care and Health,ASCH,Third Party Payments,EGA,17/03/2014,12-11009,1002.86,Bramcote House Nursing Home,,,,,,,,,,,
Nottinghamshire County Council,1111/1001,Adult Social Care and Health,ASCH,Third Party Payments,EGA,17/03/2014,12-11010,820,Broadlands Care Home,,,,,,,,,,,
Nottinghamshire County Council,1111/1001,Adult Social Care and Health,ASCH,Third Party Payments,EGA,17/03/2014,12-11011,3417.14,Broadlands Care Home,,,,,,,,,,,
Nottinghamshire County Council,1111/1001,Adult Social Care and Health,ASCH,Third Party Payments,EGA,17/03/2014,12-11012,601.71,The Beeches,,,,,,,,,,,
Nottinghamshire County Council,1111/1001,Adult Social Care and Health,ASCH,Third Party Payments,EGA,17/03/2014,12-11013,1984,Broadgate Nursing Home,,,,,,,,,,,
Nottinghamshire County Council,1111/1001,Adult Social Care and Health,ASCH,Third Party Payments,EGA,17/03/2014,12-11014,3094,Broadgate Nursing Home,,,,,,,,,,,
Nottinghamshire County Council,1111/1001,Adult Social Care and Health,ASCH,Third Party Payments,EGA,17/03/2014,12-11015,1010.29,Elizabeth House Home,,,,,,,,,,,
Nottinghamshire County Council,1111/1001,Adult Social Care and Health,ASCH,Third Party Payments,EGA,17/03/2014,12-11016,1931.43,St Saviours Care Home,,,,,,,,,,,
Nottinghamshire County Council,1111/1001,Adult Social Care and Health,ASCH,Third Party Payments,EGA,17/03/2014,12-11017,15290,The Shires Care Centre,,,,,,,,,,,
Nottinghamshire County Council,1111/1001,Adult Social Care and Health,ASCH,Third Party Payments,EGA,17/03/2014,12-11018,3851.71,Loxley Lodge Residential Home,,,,,,,,,,,
Nottinghamshire County Council,1111/1001,Adult Social Care and Health,ASCH,Third Party Payments,EGA,17/03/2014,12-11019,1146,Cherry Holt Care Home,,,,,,,,,,,
Nottinghamshire County Council,1111/1001,Adult Social Care and Health,ASCH,Third Party Payments,EGA,17/03/2014,12-11020,728.57,Pathfinders Neurological Care Centr,,,,,,,,,,,
Nottinghamshire County Council,1111/1001,Adult Social Care and Health,ASCH,Third Party Payments,EGA,17/03/2014,12-11021,21831.43,Pathfinders Neurological Care Centr,,,,,,,,,,,
Nottinghamshire County Council,1111/1001,Adult Social Care and Health,ASCH,Third Party Payments,EGA,17/03/2014,12-11022,1389.15,Southwell Court Care Home,,,,,,,,,,,
Nottinghamshire County Council,1111/1001,Adult Social Care and Health,ASCH,Third Party Payments,EGA,17/03/2014,12-11023,757.71,Southwell Court Care Home,,,,,,,,,,,
Nottinghamshire County Council,1111/1001,Adult Social Care and Health,ASCH,Third Party Payments,EGA,17/03/2014,12-11024,3476.58,Clipstone Hall Care Home,,,,,,,,,,,
Nottinghamshire County Council,1111/1001,Adult Social Care and Health,ASCH,Third Party Payments,EGA,17/03/2014,12-11025,1030,Clipstone Hall Care Home,,,,,,,,,,,
Nottinghamshire County Council,1111/1001,Adult Social Care and Health,ASCH,Third Party Payments,EGA,17/03/2014,12-11026,2942.86,Clipstone Hall Care Home,,,,,,,,,,,
Nottinghamshire County Council,1111/1001,Adult Social Care and Health,ASCH,Third Party Payments,EGA,17/03/2014,12-11027,1404,Kestrel Lodge House,,,,,,,,,,,
Nottinghamshire County Council,1111/1001,Adult Social Care and Health,ASCH,Third Party Payments,EGA,17/03/2014,12-11028,2340,Kestrel Lodge House,,,,,,,,,,,
Nottinghamshire County Council,1111/1001,Adult Social Care and Health,ASCH,Third Party Payments,EGA,17/03/2014,12-11029,939.43,Westvilla Nursing Home,,,,,,,,,,,
Nottinghamshire County Council,1111/1001,Adult Social Care and Health,ASCH,Third Party Payments,EGA,17/03/2014,12-11030,1096,Westvilla Nursing Home,,,,,,,,,,,
Nottinghamshire County Council,1111/1001,Adult Social Care and Health,ASCH,Third Party Payments,EGA,17/03/2014,12-11031,4340.71,Heritage Care,,,,,,,,,,,
Nottinghamshire County Council,1111/1001,Adult Social Care and Health,ASCH,Third Party Payments,EGA,17/03/2014,12-11032,2060,Heritage Care,,,,,,,,,,,
Nottinghamshire County Council,1111/1001,Adult Social Care and Health,ASCH,Third Party Payments,EGA,17/03/2014,12-11033,936,Heritage Care,,,,,,,,,,,
Nottinghamshire County Council,1111/1001,Adult Social Care and Health,ASCH,Third Party Payments,EGA,17/03/2014,12-11034,1002.86,Heritage Care,,,,,,,,,,,
Nottinghamshire County Council,1111/1001,Adult Social Care and Health,ASCH,Third Party Payments,EGA,17/03/2014,12-11035,3952.22,Forest Manor Care Home,,,,,,,,,,,
Nottinghamshire County Council,1111/1001,Adult Social Care and Health,ASCH,Third Party Payments,EGA,17/03/2014,12-11036,1905.43,Maun View,,,,,,,,,,,
Nottinghamshire County Council,1111/1001,Adult Social Care and Health,ASCH,Third Party Payments,EGA,17/03/2014,12-11037,2228.57,Westwood,,,,,,,,,,,
Nottinghamshire County Council,1111/1001,Adult Social Care and Health,ASCH,Third Party Payments,EGA,17/03/2014,12-11038,2377.14,Westwood,,,,,,,,,,,
Nottinghamshire County Council,1111/1001,Adult Social Care and Health,ASCH,Third Party Payments,EGA,17/03/2014,12-11039,1411.43,Westwood,,,,,,,,,,,
Nottinghamshire County Council,1111/1001,Adult Social Care and Health,ASCH,Third Party Payments,EGA,17/03/2014,12-11040,2154.29,Westwood,,,,,,,,,,,
Nottinghamshire County Council,1111/1001,Adult Social Care and Health,ASCH,Third Party Payments,EGA,17/03/2014,12-11041,1560,Westwood,,,,,,,,,,,
Nottinghamshire County Council,1111/1001,Adult Social Care and Health,ASCH,Third Party Payments,EGA,17/03/2014,12-11042,1114.29,Westwood,,,,,,,,,,,
Nottinghamshire County Council,1111/1001,Adult Social Care and Health,ASCH,Third Party Payments,EGA,17/03/2014,12-11043,1560,Westwood,,,,,,,,,,,
Nottinghamshire County Council,1111/1001,Adult Social Care and Health,ASCH,Third Party Payments,EGA,17/03/2014,12-11044,2154.29,Westwood,,,,,,,,,,,
Nottinghamshire County Council,1111/1001,Adult Social Care and Health,ASCH,Third Party Payments,EGA,17/03/2014,12-11045,1411.43,Westwood,,,,,,,,,,,
Nottinghamshire County Council,1111/1001,Adult Social Care and Health,ASCH,Third Party Payments,EGA,17/03/2014,12-11046,1411.43,Westwood,,,,,,,,,,,
Nottinghamshire County Council,1111/1001,Adult Social Care and Health,ASCH,Third Party Payments,EGA,17/03/2014,12-11047,1040,Westwood,,,,,,,,,,,
Nottinghamshire County Council,1111/1001,Adult Social Care and Health,ASCH,Third Party Payments,EGA,17/03/2014,12-11048,1482,Leawood Manor,,,,,,,,,,,
Nottinghamshire County Council,1111/1001,Adult Social Care and Health,ASCH,Third Party Payments,EGA,17/03/2014,12-11049,1620,Leawood Manor,,,,,,,,,,,
Nottinghamshire County Council,1111/1001,Adult Social Care and Health,ASCH,Third Party Payments,EGA,17/03/2014,12-11050,4007.14,The Manor Residential Home (Arnold),,,,,,,,,,,
Nottinghamshire County Council,1111/1001,Adult Social Care and Health,ASCH,Third Party Payments,EGA,17/03/2014,12-11051,14240,Morton Grange Care Home,,,,,,,,,,,
Nottinghamshire County Council,1111/1001,Adult Social Care and Health,ASCH,Third Party Payments,EGA,18/03/2014,12-11062,583.38,Maid Service Ltd,,,,,,,,,,,
Nottinghamshire County Council,1111/1001,Adult Social Care and Health,ASCH,Third Party Payments,EGA,18/03/2014,12-11063,846.24,Care Uk Homecare Ltd,,,,,,,,,,,
Nottinghamshire County Council,1111/1001,Adult Social Care and Health,ASCH,Third Party Payments,EGA,20/03/2014,12-11105,1006.56,Advance Housing & Support Ltd,,,,,,,,,,,
Nottinghamshire County Council,1111/1001,Adult Social Care and Health,ASCH,Third Party Payments,EGA,20/03/2014,12-11108,1348,Fitzroy,,,,,,,,,,,
Nottinghamshire County Council,1111/1001,Adult Social Care and Health,ASCH,Third Party Payments,EGA,20/03/2014,12-11109,24352.6,Perthyn,,,,,,,,,,,
Nottinghamshire County Council,1111/1001,Adult Social Care and Health,ASCH,Third Party Payments,EGA,20/03/2014,12-11110,24352.6,Perthyn,,,,,,,,,,,
Nottinghamshire County Council,1111/1001,Adult Social Care and Health,ASCH,Third Party Payments,EGA,20/03/2014,12-11111,5690,Calverton Supreme Home Care Ltd,,,,,,,,,,,
Nottinghamshire County Council,1111/1001,Adult Social Care and Health,ASCH,Third Party Payments,EGA,20/03/2014,12-11112,10974.68,Sterling Homecare Ltd,,,,,,,,,,,
Nottinghamshire County Council,1111/1001,Adult Social Care and Health,ASCH,Third Party Payments,EGA,20/03/2014,12-11113,9159.42,Care Uk Homecare Ltd,,,,,,,,,,,
Nottinghamshire County Council,1111/1001,Adult Social Care and Health,ASCH,Third Party Payments,EGA,20/03/2014,12-11114,2563.81,Mears Care Ltd,,,,,,,,,,,
Nottinghamshire County Council,1111/1001,Adult Social Care and Health,ASCH,Third Party Payments,EGA,20/03/2014,12-11115,7052,Sterling Homecare Ltd,,,,,,,,,,,
Nottinghamshire County Council,1111/1001,Adult Social Care and Health,ASCH,Third Party Payments,EGA,20/03/2014,12-11116,1180.6,Notts Homecare Ltd,,,,,,,,,,,
Nottinghamshire County Council,1111/1001,Adult Social Care and Health,ASCH,Third Party Payments,EGA,20/03/2014,12-11117,1771.11,Housing 21,,,,,,,,,,,
Nottinghamshire County Council,1111/1001,Adult Social Care and Health,ASCH,Third Party Payments,EGA,20/03/2014,12-11118,676.96,Leda Homecare Ltd,,,,,,,,,,,
Nottinghamshire County Council,1111/1001,Adult Social Care and Health,ASCH,Third Party Payments,EGA,20/03/2014,12-11119,2601.94,Westminster Homecare Ltd,,,,,,,,,,,
Nottinghamshire County Council,1111/1001,Adult Social Care and Health,ASCH,Third Party Payments,EGA,20/03/2014,12-11120,1641.44,Priority Homecare Ltd,,,,,,,,,,,
Nottinghamshire County Council,1111/1001,Adult Social Care and Health,ASCH,Third Party Payments,EGA,20/03/2014,12-11121,1590.73,Always There Homecare Ltd,,,,,,,,,,,
Nottinghamshire County Council,1111/1001,Adult Social Care and Health,ASCH,Third Party Payments,EGA,20/03/2014,12-11122,1812.84,Hatzfeld Care Ltd,,,,,,,,,,,
Nottinghamshire County Council,1111/1001,Adult Social Care and Health,ASCH,Third Party Payments,EGA,20/03/2014,12-11123,6650.7,Hatzfeld Care Ltd,,,,,,,,,,,
Nottinghamshire County Council,1111/1001,Adult Social Care and Health,ASCH,Third Party Payments,EGA,20/03/2014,12-11124,5102.81,Workwise Healthcare Ltd,,,,,,,,,,,
Nottinghamshire County Council,1111/1001,Adult Social Care and Health,ASCH,Third Party Payments,EGA,20/03/2014,12-11125,6239.65,Priority Homecare Ltd,,,,,,,,,,,
Nottinghamshire County Council,1111/1001,Adult Social Care and Health,ASCH,Third Party Payments,EGA,20/03/2014,12-11126,8484.66,Crossroads Care East Midlands,,,,,,,,,,,
Nottinghamshire County Council,1111/1001,Adult Social Care and Health,ASCH,Third Party Payments,EGA,20/03/2014,12-11127,1165.67,Premier Nursing Agency Ltd,,,,,,,,,,,
Nottinghamshire County Council,1111/1001,Adult Social Care and Health,ASCH,Third Party Payments,EGA,20/03/2014,12-11128,10741.38,Mears Care Ltd,,,,,,,,,,,
Nottinghamshire County Council,1111/1001,Adult Social Care and Health,ASCH,Third Party Payments,EGA,20/03/2014,12-11129,1177.43,Direct Health (uk) Ltd,,,,,,,,,,,
Nottinghamshire County Council,1111/1001,Adult Social Care and Health,ASCH,Third Party Payments,EGA,20/03/2014,12-11130,8812.06,Sterling Homecare Ltd,,,,,,,,,,,
Nottinghamshire County Council,1111/1001,Adult Social Care and Health,ASCH,Third Party Payments,EGA,20/03/2014,12-11131,563.28,Housing 21,,,,,,,,,,,
Nottinghamshire County Council,1111/1001,Adult Social Care and Health,ASCH,Third Party Payments,EGA,20/03/2014,12-11132,13101.46,Direct Health (uk) Ltd,,,,,,,,,,,
Nottinghamshire County Council,1111/1001,Adult Social Care and Health,ASCH,Third Party Payments,EGA,20/03/2014,12-11133,6646.46,Care Uk Homecare Ltd,,,,,,,,,,,
Nottinghamshire County Council,1111/1001,Adult Social Care and Health,ASCH,Third Party Payments,EGA,20/03/2014,12-11134,639.21,Always There Homecare Ltd,,,,,,,,,,,
Nottinghamshire County Council,1111/1001,Adult Social Care and Health,ASCH,Third Party Payments,EGA,20/03/2014,12-11135,862.47,Premier Nursing Agency Ltd,,,,,,,,,,,
Nottinghamshire County Council,1111/1001,Adult Social Care and Health,ASCH,Third Party Payments,EGA,20/03/2014,12-11136,4288.82,Hatzfeld Care Ltd,,,,,,,,,,,
Nottinghamshire County Council,1111/1001,Adult Social Care and Health,ASCH,Third Party Payments,EGA,20/03/2014,12-11137,688.73,Medico Nursing & Homecare,,,,,,,,,,,
Nottinghamshire County Council,1111/1001,Adult Social Care and Health,ASCH,Third Party Payments,EGA,20/03/2014,12-11138,6194.06,Sterling Homecare Ltd,,,,,,,,,,,
Nottinghamshire County Council,1111/1001,Adult Social Care and Health,ASCH,Third Party Payments,EGA,20/03/2014,12-11139,2860.03,Priority Homecare Ltd,,,,,,,,,,,
Nottinghamshire County Council,1111/1001,Adult Social Care and Health,ASCH,Third Party Payments,EGA,20/03/2014,12-11140,797.04,Mediline Nurses & Carers Ltd,,,,,,,,,,,
Nottinghamshire County Council,1111/1001,Adult Social Care and Health,ASCH,Third Party Payments,EGA,20/03/2014,12-11141,21399.33,Direct Health (uk) Ltd,,,,,,,,,,,
Nottinghamshire County Council,1111/1001,Adult Social Care and Health,ASCH,Third Party Payments,EGA,20/03/2014,12-11142,7820.79,Direct Health (uk) Ltd,,,,,,,,,,,
Nottinghamshire County Council,1111/1001,Adult Social Care and Health,ASCH,Third Party Payments,EGA,20/03/2014,12-11143,770.55,Medico Nursing & Homecare,,,,,,,,,,,
Nottinghamshire County Council,1111/1001,Adult Social Care and Health,ASCH,Third Party Payments,EGA,20/03/2014,12-11144,6839.08,North Notts Crossroads Care,,,,,,,,,,,
Nottinghamshire County Council,1111/1001,Adult Social Care and Health,ASCH,Third Party Payments,EGA,20/03/2014,12-11145,1322.36,Sterling Homecare Ltd,,,,,,,,,,,
Nottinghamshire County Council,1111/1001,Adult Social Care and Health,ASCH,Third Party Payments,EGA,20/03/2014,12-11146,886.66,Home Care Solution Ltd,,,,,,,,,,,
Nottinghamshire County Council,1111/1001,Adult Social Care and Health,ASCH,Third Party Payments,EGA,20/03/2014,12-11147,962.86,Amg Nursing & Care Services Ltd,,,,,,,,,,,
Nottinghamshire County Council,1111/1001,Adult Social Care and Health,ASCH,Third Party Payments,EGA,20/03/2014,12-11148,3786.55,Medico Nursing & Homecare,,,,,,,,,,,
Nottinghamshire County Council,1111/1001,Adult Social Care and Health,ASCH,Third Party Payments,EGA,20/03/2014,12-11149,3152.9,Premier Nursing Agency Ltd,,,,,,,,,,,
Nottinghamshire County Council,1111/1001,Adult Social Care and Health,ASCH,Third Party Payments,EGA,20/03/2014,12-11150,4108.38,Notts Homecare Ltd,,,,,,,,,,,
Nottinghamshire County Council,1111/1001,Adult Social Care and Health,ASCH,Third Party Payments,EGA,20/03/2014,12-11151,7863.14,Westminster Homecare Ltd,,,,,,,,,,,
Nottinghamshire County Council,1111/1001,Adult Social Care and Health,ASCH,Third Party Payments,EGA,20/03/2014,12-11152,1289.41,North Notts Crossroads Care,,,,,,,,,,,
Nottinghamshire County Council,1111/1001,Adult Social Care and Health,ASCH,Third Party Payments,EGA,20/03/2014,12-11153,12487.71,Care Uk Homecare Ltd,,,,,,,,,,,
Nottinghamshire County Council,1111/1001,Adult Social Care and Health,ASCH,Third Party Payments,EGA,20/03/2014,12-11154,618.09,Housing 21,,,,,,,,,,,
Nottinghamshire County Council,1111/1001,Adult Social Care and Health,ASCH,Third Party Payments,EGA,20/03/2014,12-11155,760.66,The Human Support Group,,,,,,,,,,,
Nottinghamshire County Council,1111/1001,Adult Social Care and Health,ASCH,Third Party Payments,EGA,20/03/2014,12-11156,1050.91,Crossroads Care East Midlands,,,,,,,,,,,
